Workbook

Sheet Formato2020
A2: VEEDURIA DISTRITAL - RENDICION DE CUENTAS DE LA GESTION CONTRACTUAL EN EL DISTRITO CAPITAL (Acuerdo 380 de 2009)
A3: INFORMACION GENERAL DE CONTRATACION ENTIDADES DISTRITALES - ENERO 1 A 31 DICIEMBRE DE 2020
A5: 1. Entidad | E5: ALCALDÍA LOCAL DE FONTIBÓN | H5: 2. Sector | I5: Gobierno
A6: 3. Presupuesto Disponible Inversión Directa PREDIS | E6: 28901578639 | H6: 5. Presupuesto Disponible Funcionamiento PREDIS | I6: 4719357686 | AD6: 9. Nombre de quien diligencia el formato
A7: 4. Presupuesto Comprometido de Inversión Directa según PREDIS | E7: 26161202354 | H7: 6. Presupuesto Comprometido Funcionamiento según PREDIS | I7: 3779433925 | AD7: Cargo | AF7: HEIDI VANESSA SARAY GUATAQUIRA
AD8: Dependencia | AF8: DESPACHO
A9: 7. Presupuesto Disponible Operación (Régimen Privado) | AD9: Teléfono | AF9: 2670114
A10: 8. Presupuesto Comprometido Operación mediante contratos | AD10: Correo Electrónico | AF10: heidi.saray@gobiernobogota.gov.co
A11: 1- INFORMACION GENERAL | Q11: 2- INFORMACION FINANCIERA | X11: 3 - PLAZOS | AD11: 4. CESION | AL11: 5. % Avance y/o cumplimiento
A12: 1 | B12: 2 | C12: 3 | E12: 4 | F12: 5 | G12: 6 | H12: 7 | I12: 8 | N12: 9 | O12: 10 | Q12: 11 | R12: 12 | S12: 13 | T12: 14 | U12: 15 | V12: 16 | W12: 17 | X12: 18 | Y12: 19 | Z12: 20 | AA12: 21 | AB12: 22 | AC12: 23 | AD12: 24 | AE12: 25 | AF12: 26 | AG12: 27 | AL12: 29
A13: Número Contrato | B13: Año | C13: Proceso Publicado en | D13: Número de proceso contractual SECOP | E13: Tipo de contrato | F13: Modalidad de Selección | G13: Procedimiento o causal | H13: Objeto | I13: Afectación | J13: Plan de Desarrollo Distrital | K13: Número Programa | L13: Equivalencia número de programa | M13: Eje / Pilar / Propósito | N13: Número Proyecto | O13: Número de Identificación del contratista (NIT con digito de verificación) | P13: Nombre del contratista | Q13: Valor Inicial del contrato | R13: Número de reducciones | S13: Valor total reducciones (En valor negativo) | T13: Número de adiciones | U13: Valor total de adiciones | V13: Valor Final | W13: Giros (Valor en pesos) | X13: Fecha de suscripción (DD/MM/AAAA) | Y13: Fecha de inicio (DD/MM/AAAA) | Z13: Fecha de terminación (DD/MM/AAAA) | AA13: Plazo en días | AB13: Número de prórrogas | AC13: Prorroga en días | AD13: Número de Identificación del cesionario (NIT con digito de verificación) | AE13: Nombre cesionario | AF13: Fecha cesión (DD/MM/AAAA) | AG13: Valor cesión | AH13: Celebrado o por iniciar | AI13: En Ejecución | AJ13: Terminado | AK13: Liquidado | AL13: % Avance y/o Cumplimiento
A14: 1 | B14: 2020 | C14: SECOP II | D14: FDLF-CD-1-2020 | E14: Contratos de prestación de servicios | F14: Contratación Directa | G14: Prestación de servicios profesionales y de apoyo a la gestión, o para la ejecución de trabajos artísticos que sólo puedan encomendarse a determinadas personas naturales; | H14: Prestar servicios de apoyo a las actividades operativas y administrativas de la junta administradora local | I14: Inversión | J14: Bogotá Mejor para Todos | K14: 45 | L14: =IF(ISERROR(VLOOKUP(K14,Eje_Pilar_Prop!$C$2:$E$104,2,FALSE))," ",VLOOKUP(K14,Eje_Pilar_Prop!$C$2:$E$104,2,FALSE)) -> Gobernanza e influencia local, regional e internacional | M14: =IF(ISERROR(VLOOKUP(K14,Eje_Pilar_Prop!$C$2:$E$104,3,FALSE))," ",VLOOKUP(K14,Eje_Pilar_Prop!$C$2:$E$104,3,FALSE)) -> Eje Transversal 4 Gobierno Legitimo, Fortalecimiento Local y Eficiencia | N14: 1474 | O14: 19426466 | P14: RAUL ARMANDO LUQUE RUIZ | Q14: 9452000 | T14: 1 | U14: 4726000 | V14: =+Q14+S14+U14 -> 14178000 | W14: 14178000 | X14: 2020-02-06 | Y14: 2020-02-07 | Z14: 2020-08-06 | AA14: 120 | AB14: 1 | AC14: 60 | AJ14: X | AL14: =IF(ISERROR(W14/V14),"-",(W14/V14)) -> 1
A15: 2 | B15: 2020 | C15: SECOP II | D15: FDLF-CD-2-2020 | E15: Contratos de prestación de servicios | F15: Contratación Directa | G15: Prestación de servicios profesionales y de apoyo a la gestión, o para la ejecución de trabajos artísticos que sólo puedan encomendarse a determinadas personas naturales; | H15: Prestar servicios para Apoyar y dar soporte técnico al administrador y usuario final de la red de sistemas y tecnología e información de la Alcaldía Local | I15: Inversión | J15: Bogotá Mejor para Todos | K15: 45 | L15: =IF(ISERROR(VLOOKUP(K15,Eje_Pilar_Prop!$C$2:$E$104,2,FALSE))," ",VLOOKUP(K15,Eje_Pilar_Prop!$C$2:$E$104,2,FALSE)) -> Gobernanza e influencia local, regional e internacional | M15: =IF(ISERROR(VLOOKUP(K15,Eje_Pilar_Prop!$C$2:$E$104,3,FALSE))," ",VLOOKUP(K15,Eje_Pilar_Prop!$C$2:$E$104,3,FALSE)) -> Eje Transversal 4 Gobierno Legitimo, Fortalecimiento Local y Eficiencia | N15: 1474 | O15: 1015410053 | P15: JUAN DAVID RAMIREZ FARIAS | Q15: 15400000 | T15: 1 | U15: 7700000 | V15: 23100000 | W15: 23100000 | X15: 2020-02-17 | Y15: 2020-02-18 | Z15: 2020-08-17 | AA15: 120 | AB15: 1 | AC15: 60 | AJ15: X | AL15: 1
A16: 3 | B16: 2020 | C16: SECOP II | D16: FDLF-CD-3-2020 | E16: Contratos de prestación de servicios | F16: Contratación Directa | G16: Prestación de servicios profesionales y de apoyo a la gestión, o para la ejecución de trabajos artísticos que sólo puedan encomendarse a determinadas personas naturales; | H16: Prestar servicios para Apoyar técnicamente a los responsables e integrantes de los procesos en la implementación de herramientas de gestión, siguiendo los lineamientos metodológicos establecidos por la Oficina Asesora de Planeación de la Secretaría Distrital de Gobierno | I16: Inversión | J16: Bogotá Mejor para Todos | K16: 45 | L16: =IF(ISERROR(VLOOKUP(K16,Eje_Pilar_Prop!$C$2:$E$104,2,FALSE))," ",VLOOKUP(K16,Eje_Pilar_Prop!$C$2:$E$104,2,FALSE)) -> Gobernanza e influencia local, regional e internacional | M16: =IF(ISERROR(VLOOKUP(K16,Eje_Pilar_Prop!$C$2:$E$104,3,FALSE))," ",VLOOKUP(K16,Eje_Pilar_Prop!$C$2:$E$104,3,FALSE)) -> Eje Transversal 4 Gobierno Legitimo, Fortalecimiento Local y Eficiencia | N16: 1474 | O16: 1026555099 | P16: MANUEL GUILLERMO FRANCISCO AMOROCHO B | Q16: 22612000 | T16: 0 | U16: 0 | V16: 22612000 | W16: 22612000 | X16: 2020-02-18 | Y16: 2020-02-20 | Z16: 2020-06-19 | AA16: 120 | AB16: 0 | AC16: 0 | AD16: 52521699 | AE16: JENIFFER ZAPATA VILLALOBOS | AF16: 2020-03-17 | AG16: 17524300 | AJ16: X | AL16: 1
A17: 4 | B17: 2020 | C17: SECOP II | D17: FDLF-CD-04-2020 | E17: Contratos de prestación de servicios | F17: Contratación Directa | G17: Prestación de servicios profesionales y de apoyo a la gestión, o para la ejecución de trabajos artísticos que sólo puedan encomendarse a determinadas personas naturales; | H17: Prestar servicios profesionales para apoyar al Alcalde Local de Fontibón en la formulación, seguimiento e implementación de la estrategia local para la terminación jurídica de las actuaciones administrativas que cursan en la Alcaldía Local | I17: Inversión | J17: Bogotá Mejor para Todos | K17: 45 | L17: =IF(ISERROR(VLOOKUP(K17,Eje_Pilar_Prop!$C$2:$E$104,2,FALSE))," ",VLOOKUP(K17,Eje_Pilar_Prop!$C$2:$E$104,2,FALSE)) -> Gobernanza e influencia local, regional e internacional | M17: =IF(ISERROR(VLOOKUP(K17,Eje_Pilar_Prop!$C$2:$E$104,3,FALSE))," ",VLOOKUP(K17,Eje_Pilar_Prop!$C$2:$E$104,3,FALSE)) -> Eje Transversal 4 Gobierno Legitimo, Fortalecimiento Local y Eficiencia | N17: 1474 | O17: 80203157 | P17: HAROLD RAUL MOLANO CERQUERA | Q17: 26336000 | T17: 1 | U17: 13168000 | V17: 39504000 | W17: 39504000 | X17: 2020-02-18 | Y17: 2020-02-19 | Z17: 2020-08-18 | AA17: 120 | AB17: 1 | AC17: 60 | AJ17: X | AL17: 1
A18: 5 | B18: 2020 | C18: SECOP II | D18: FDLF-CD-05-2020 | E18: Contratos de prestación de servicios | F18: Contratación Directa | G18: Prestación de servicios profesionales y de apoyo a la gestión, o para la ejecución de trabajos artísticos que sólo puedan encomendarse a determinadas personas naturales; | H18: Prestar servicios como auxiliar que apoye la digitalización y subida al aplicativo SI ACTUA para el área de Gestión Policiva de la Alcaldía Local de Fontibón | I18: Inversión | J18: Bogotá Mejor para Todos | K18: 45 | L18: =IF(ISERROR(VLOOKUP(K18,Eje_Pilar_Prop!$C$2:$E$104,2,FALSE))," ",VLOOKUP(K18,Eje_Pilar_Prop!$C$2:$E$104,2,FALSE)) -> Gobernanza e influencia local, regional e internacional | M18: =IF(ISERROR(VLOOKUP(K18,Eje_Pilar_Prop!$C$2:$E$104,3,FALSE))," ",VLOOKUP(K18,Eje_Pilar_Prop!$C$2:$E$104,3,FALSE)) -> Eje Transversal 4 Gobierno Legitimo, Fortalecimiento Local y Eficiencia | N18: 1474 | O18: 1026585989 | P18: MARIA ALEJANDRA QUINTERO MARTINEZ | Q18: 9452000 | T18: 1 | U18: 4726000 | V18: 14178000 | W18: 14178000 | X18: 2020-02-28 | Y18: 2020-03-02 | Z18: 2020-09-04 | AA18: 120 | AB18: 1 | AC18: 60 | AJ18: X | AL18: 1
A19: 6 | B19: 2020 | C19: SECOP II | D19: FDLF-CD-6-2020 | E19: Contratos de prestación de servicios | F19: Contratación Directa | G19: Prestación de servicios profesionales y de apoyo a la gestión, o para la ejecución de trabajos artísticos que sólo puedan encomendarse a determinadas personas naturales; | H19: Prestar servicios para apoyar al equipo de prensa y comunicaciones de la alcaldía local mediante el registro, la atención, y la presentación de fotografía de los acontecimientos hechos y eventos de la alcaldía local en los medios de comunicación especialmente escritos digitales y audiovisuales. | I19: Inversión | J19: Bogotá Mejor para Todos | K19: 45 | L19: =IF(ISERROR(VLOOKUP(K19,Eje_Pilar_Prop!$C$2:$E$104,2,FALSE))," ",VLOOKUP(K19,Eje_Pilar_Prop!$C$2:$E$104,2,FALSE)) -> Gobernanza e influencia local, regional e internacional | M19: =IF(ISERROR(VLOOKUP(K19,Eje_Pilar_Prop!$C$2:$E$104,3,FALSE))," ",VLOOKUP(K19,Eje_Pilar_Prop!$C$2:$E$104,3,FALSE)) -> Eje Transversal 4 Gobierno Legitimo, Fortalecimiento Local y Eficiencia | N19: 1474 | O19: 79654994 | P19: JORGE ENRIQUE CAÑON UBAQUE | Q19: 19132000 | T19: 0 | U19: 0 | V19: 19132000 | W19: 18813133 | X19: 2020-03-02 | Y19: 2020-03-03 | Z19: 2020-07-02 | AA19: 120 | AB19: 0 | AC19: 0 | AJ19: X | AL19: 0.9833333159
A20: 7 | B20: 2020 | C20: SECOP II | D20: FDLF-CD-7-2020 | E20: Contratos de prestación de servicios | F20: Contratación Directa | G20: Prestación de servicios profesionales y de apoyo a la gestión, o para la ejecución de trabajos artísticos que sólo puedan encomendarse a determinadas personas naturales; | H20: Prestar servicios profesionales para realizar el control seguimiento actualización y análisis del banco de programas y proyectos, así como también los instrumentos de la planeación y gestión del desarrollo local de Fontibon. | I20: Inversión | J20: Bogotá Mejor para Todos | K20: 45 | L20: =IF(ISERROR(VLOOKUP(K20,Eje_Pilar_Prop!$C$2:$E$104,2,FALSE))," ",VLOOKUP(K20,Eje_Pilar_Prop!$C$2:$E$104,2,FALSE)) -> Gobernanza e influencia local, regional e internacional | M20: =IF(ISERROR(VLOOKUP(K20,Eje_Pilar_Prop!$C$2:$E$104,3,FALSE))," ",VLOOKUP(K20,Eje_Pilar_Prop!$C$2:$E$104,3,FALSE)) -> Eje Transversal 4 Gobierno Legitimo, Fortalecimiento Local y Eficiencia | N20: 1474 | O20: 1015402473 | P20: CARLOS ANDRES DUQUE NIÑO | Q20: 16800000 | T20: 0 | U20: 0 | V20: 16800000 | W20: 15540000 | X20: 2020-03-02 | Y20: 2020-03-10 | Z20: 2020-07-09 | AA20: 120 | AB20: 0 | AC20: 0 | AJ20: X | AL20: 0.925
A21: 8 | B21: 2020 | C21: SECOP II | D21: FDLF-CD-8-2020 | E21: Contratos de prestación de servicios | F21: Contratación Directa | G21: Prestación de servicios profesionales y de apoyo a la gestión, o para la ejecución de trabajos artísticos que sólo puedan encomendarse a determinadas personas naturales; | H21: Servicios profesionales parta apoyar el área de gestión de desarrollo local orientado a los temas de recreación y deporte enfocados en la creación e implementación de escuelas de formación deportiva. | I21: Inversión | J21: Bogotá Mejor para Todos | K21: 45 | L21: =IF(ISERROR(VLOOKUP(K21,Eje_Pilar_Prop!$C$2:$E$104,2,FALSE))," ",VLOOKUP(K21,Eje_Pilar_Prop!$C$2:$E$104,2,FALSE)) -> Gobernanza e influencia local, regional e internacional | M21: =IF(ISERROR(VLOOKUP(K21,Eje_Pilar_Prop!$C$2:$E$104,3,FALSE))," ",VLOOKUP(K21,Eje_Pilar_Prop!$C$2:$E$104,3,FALSE)) -> Eje Transversal 4 Gobierno Legitimo, Fortalecimiento Local y Eficiencia | N21: 1458 | O21: 1014185339 | P21: LUISA FERNANDA LEON LUQUE | Q21: 19132000 | T21: 1 | U21: 9566000 | V21: 28698000 | W21: 28379133 | X21: 2020-03-02 | Y21: 2020-03-03 | Z21: 2020-09-02 | AA21: 120 | AB21: 1 | AC21: 60 | AJ21: X | AL21: 0.9888888773
A22: 9 | B22: 2020 | C22: SECOP II | D22: FDLF-CD-09-2020 | E22: Contratos de prestación de servicios | F22: Contratación Directa | G22: Prestación de servicios profesionales y de apoyo a la gestión, o para la ejecución de trabajos artísticos que sólo puedan encomendarse a determinadas personas naturales; | H22: Prestar servicios para apoyar administrativa y asistencialmente al área de gestión policiva de la Alcaldia local de Fontibon. | I22: Inversión | J22: Bogotá Mejor para Todos | K22: 45 | L22: =IF(ISERROR(VLOOKUP(K22,Eje_Pilar_Prop!$C$2:$E$104,2,FALSE))," ",VLOOKUP(K22,Eje_Pilar_Prop!$C$2:$E$104,2,FALSE)) -> Gobernanza e influencia local, regional e internacional | M22: =IF(ISERROR(VLOOKUP(K22,Eje_Pilar_Prop!$C$2:$E$104,3,FALSE))," ",VLOOKUP(K22,Eje_Pilar_Prop!$C$2:$E$104,3,FALSE)) -> Eje Transversal 4 Gobierno Legitimo, Fortalecimiento Local y Eficiencia | N22: 1474 | O22: 51874701 | P22: CLAUDIA TERESA MORENO BOBADILLA | Q22: 9452000 | T22: 1 | U22: 4726000 | V22: 14178000 | W22: 14178000 | X22: 2020-03-02 | Y22: 2020-03-10 | Z22: 2020-09-09 | AA22: 120 | AB22: 1 | AC22: 60 | AJ22: X | AL22: 1
A23: 10 | B23: 2020 | C23: SECOP II | D23: FDLF-CD-10-2020 | E23: Contratos de prestación de servicios | F23: Contratación Directa | G23: Prestación de servicios profesionales y de apoyo a la gestión, o para la ejecución de trabajos artísticos que sólo puedan encomendarse a determinadas personas naturales; | H23: Prestar servicios para Apoyar técnicamente las distintas etapas de los procesos de copetencia de las inspecciones de Plocia de la Localidad.Segun reparto | I23: Inversión | J23: Bogotá Mejor para Todos | K23: 45 | L23: =IF(ISERROR(VLOOKUP(K23,Eje_Pilar_Prop!$C$2:$E$104,2,FALSE))," ",VLOOKUP(K23,Eje_Pilar_Prop!$C$2:$E$104,2,FALSE)) -> Gobernanza e influencia local, regional e internacional | M23: =IF(ISERROR(VLOOKUP(K23,Eje_Pilar_Prop!$C$2:$E$104,3,FALSE))," ",VLOOKUP(K23,Eje_Pilar_Prop!$C$2:$E$104,3,FALSE)) -> Eje Transversal 4 Gobierno Legitimo, Fortalecimiento Local y Eficiencia | N23: 1474 | O23: 19374118 | P23: JUAN BAUTISTA VANEGAS QUINTERO | Q23: 22612000 | T23: 1 | U23: 11306000 | V23: 33918000 | W23: 33918000 | X23: 2020-03-09 | Y23: 2020-03-16 | Z23: 2020-09-15 | AA23: 120 | AB23: 1 | AC23: 60 | AJ23: X | AL23: 1
A24: 11 | B24: 2020 | C24: SECOP II | D24: FDLF-CD-11-2020 | E24: Contratos de prestación de servicios | F24: Contratación Directa | G24: Prestación de servicios profesionales y de apoyo a la gestión, o para la ejecución de trabajos artísticos que sólo puedan encomendarse a determinadas personas naturales; | H24: Servicios profesionales parta apoyar el área de gestión de desarrollo local orientado a los temas deportivos y recreativos. | I24: Inversión | J24: Bogotá Mejor para Todos | K24: 45 | L24: =IF(ISERROR(VLOOKUP(K24,Eje_Pilar_Prop!$C$2:$E$104,2,FALSE))," ",VLOOKUP(K24,Eje_Pilar_Prop!$C$2:$E$104,2,FALSE)) -> Gobernanza e influencia local, regional e internacional | M24: =IF(ISERROR(VLOOKUP(K24,Eje_Pilar_Prop!$C$2:$E$104,3,FALSE))," ",VLOOKUP(K24,Eje_Pilar_Prop!$C$2:$E$104,3,FALSE)) -> Eje Transversal 4 Gobierno Legitimo, Fortalecimiento Local y Eficiencia | N24: 1458 | O24: 36065900 | P24: ANGELICA MARIA PUENTES AVILA | Q24: 19132000 | T24: 0 | U24: 0 | V24: 19132000 | W24: 19132000 | X24: 2020-03-03 | Y24: 2020-03-09 | Z24: 2020-07-08 | AA24: 120 | AB24: 0 | AC24: 0 | AJ24: X | AL24: 1
A25: 12 | B25: 2020 | C25: SECOP II | D25: FDLF-CD-12-2020 | E25: Contratos de prestación de servicios | F25: Contratación Directa | G25: Prestación de servicios profesionales y de apoyo a la gestión, o para la ejecución de trabajos artísticos que sólo puedan encomendarse a determinadas personas naturales; | H25: Prestar servicios profesionales para brindar el apoyo al área de gestión del desarrollo local en los temas sociales desarrollados en la localidad de Fontibón. | I25: Inversión | J25: Bogotá Mejor para Todos | K25: 45 | L25: =IF(ISERROR(VLOOKUP(K25,Eje_Pilar_Prop!$C$2:$E$104,2,FALSE))," ",VLOOKUP(K25,Eje_Pilar_Prop!$C$2:$E$104,2,FALSE)) -> Gobernanza e influencia local, regional e internacional | M25: =IF(ISERROR(VLOOKUP(K25,Eje_Pilar_Prop!$C$2:$E$104,3,FALSE))," ",VLOOKUP(K25,Eje_Pilar_Prop!$C$2:$E$104,3,FALSE)) -> Eje Transversal 4 Gobierno Legitimo, Fortalecimiento Local y Eficiencia | N25: 1474 | O25: 52187970 | P25: ANA PAOLA AMAYA RABE | Q25: 19132000 | T25: 0 | U25: 0 | V25: 19132000 | W25: 19132000 | X25: 2020-03-06 | Y25: 2020-03-09 | Z25: 2020-07-08 | AA25: 120 | AB25: 0 | AC25: 0 | AJ25: X | AL25: 1
A26: 13 | B26: 2020 | C26: SECOP II | D26: FDLF-CD-13-2020 | E26: Contratos de prestación de servicios | F26: Contratación Directa | G26: Prestación de servicios profesionales y de apoyo a la gestión, o para la ejecución de trabajos artísticos que sólo puedan encomendarse a determinadas personas naturales; | H26: Prestar servicios profesionales especializados para apoyar el área de gestión de desarrollo local en la ejecución del proyecto Fontibon mejor movilidad para todos. | I26: Inversión | J26: Bogotá Mejor para Todos | K26: 18 | L26: =IF(ISERROR(VLOOKUP(K26,Eje_Pilar_Prop!$C$2:$E$104,2,FALSE))," ",VLOOKUP(K26,Eje_Pilar_Prop!$C$2:$E$104,2,FALSE)) -> Mejor movilidad para todos | M26: =IF(ISERROR(VLOOKUP(K26,Eje_Pilar_Prop!$C$2:$E$104,3,FALSE))," ",VLOOKUP(K26,Eje_Pilar_Prop!$C$2:$E$104,3,FALSE)) -> Pilar 2 Democracía Urbana | N26: 1464 | O26: 1026568535 | P26: DORIS JULIETH MORA DAZA | Q26: 26336000 | T26: 0 | U26: 0 | V26: 26336000 | W26: 24141333 | X26: 2020-03-09 | Y26: 2020-03-11 | Z26: 2020-07-10 | AA26: 120 | AB26: 0 | AC26: 0 | AJ26: X | AL26: 0.916666654
A27: 14 | B27: 2020 | C27: SECOP II | D27: FDLF-CD-14-2020 | E27: Contratos de prestación de servicios | F27: Contratación Directa | G27: Prestación de servicios profesionales y de apoyo a la gestión, o para la ejecución de trabajos artísticos que sólo puedan encomendarse a determinadas personas naturales; | H27: Prestar servicios para Apoyar juridicamente la ejecución de las acciones requeridas para la depuración de las actuaciones administrativas que cursan en la Alcaldia Local. | I27: Inversión | J27: Bogotá Mejor para Todos | K27: 45 | L27: =IF(ISERROR(VLOOKUP(K27,Eje_Pilar_Prop!$C$2:$E$104,2,FALSE))," ",VLOOKUP(K27,Eje_Pilar_Prop!$C$2:$E$104,2,FALSE)) -> Gobernanza e influencia local, regional e internacional | M27: =IF(ISERROR(VLOOKUP(K27,Eje_Pilar_Prop!$C$2:$E$104,3,FALSE))," ",VLOOKUP(K27,Eje_Pilar_Prop!$C$2:$E$104,3,FALSE)) -> Eje Transversal 4 Gobierno Legitimo, Fortalecimiento Local y Eficiencia | N27: 1474 | O27: 1031152968 | P27: NATALIA ALEJANDRA SEDANO GARZON | Q27: 19132000 | T27: 0 | U27: 0 | V27: 19132000 | W27: =+R27+T27+V27 -> 19132000 | X27: 2020-03-06 | Y27: 2020-03-11 | Z27: 2020-07-10 | AA27: 120 | AB27: 0 | AC27: 0 | AJ27: X | AL27: 1
A28: 15 | B28: 2020 | C28: SECOP II | D28: FDLF-CD-15-2020 | E28: Contratos de prestación de servicios | F28: Contratación Directa | G28: Prestación de servicios profesionales y de apoyo a la gestión, o para la ejecución de trabajos artísticos que sólo puedan encomendarse a determinadas personas naturales; | H28: Prestar servicios profesionales de apoyo contable en los procesos de causacion, sistematización y registros de información contable. | I28: Inversión | J28: Bogotá Mejor para Todos | K28: 45 | L28: =IF(ISERROR(VLOOKUP(K28,Eje_Pilar_Prop!$C$2:$E$104,2,FALSE))," ",VLOOKUP(K28,Eje_Pilar_Prop!$C$2:$E$104,2,FALSE)) -> Gobernanza e influencia local, regional e internacional | M28: =IF(ISERROR(VLOOKUP(K28,Eje_Pilar_Prop!$C$2:$E$104,3,FALSE))," ",VLOOKUP(K28,Eje_Pilar_Prop!$C$2:$E$104,3,FALSE)) -> Eje Transversal 4 Gobierno Legitimo, Fortalecimiento Local y Eficiencia | N28: 1474 | O28: 79378493 | P28: ELMAN CIFUENTES CASTAÑEDA | Q28: 19132000 | T28: 1 | U28: 9566000 | V28: 28698000 | W28: 28698000 | X28: 2020-03-10 | Y28: 2020-03-13 | Z28: 2020-09-12 | AA28: 120 | AB28: 1 | AC28: 60 | AJ28: X | AL28: 1
A29: 16 | B29: 2020 | C29: SECOP II | D29: FDLF-CD-16-2020 | E29: Contratos de prestación de servicios | F29: Contratación Directa | G29: Prestación de servicios profesionales y de apoyo a la gestión, o para la ejecución de trabajos artísticos que sólo puedan encomendarse a determinadas personas naturales; | H29: Prestar servicios profesionales de apoyo contable en los procesos de causacion, sistematización y registros de información contable y a la gestión presupuestal del Fondo de Desarrollo Local. | I29: Inversión | J29: Bogotá Mejor para Todos | K29: 45 | L29: =IF(ISERROR(VLOOKUP(K29,Eje_Pilar_Prop!$C$2:$E$104,2,FALSE))," ",VLOOKUP(K29,Eje_Pilar_Prop!$C$2:$E$104,2,FALSE)) -> Gobernanza e influencia local, regional e internacional | M29: =IF(ISERROR(VLOOKUP(K29,Eje_Pilar_Prop!$C$2:$E$104,3,FALSE))," ",VLOOKUP(K29,Eje_Pilar_Prop!$C$2:$E$104,3,FALSE)) -> Eje Transversal 4 Gobierno Legitimo, Fortalecimiento Local y Eficiencia | N29: 1474 | O29: 79938920 | P29: JHON FREDY ROA PINTO | Q29: 19132000 | T29: 1 | U29: 9566000 | V29: 28698000 | W29: 28698000 | X29: 2020-03-06 | Y29: 2020-03-11 | Z29: 2020-09-10 | AA29: 120 | AB29: 1 | AC29: 60 | AJ29: X | AL29: 1
A30: 17 | B30: 2020 | E30: Otros | F30: Contratación directa | G30: No aplica | H30: RESOLUCION No 017 DE 2020- POR MEDIO DE LA CUAL SE GARANTIZA EL GASTO Y EL PAGO CORRESPONDIENTE AL PROYECTO NO. 1453 - FONTIBON INCLUYENTE, DIGNO Y FELIZ PARA PERSONAS MAYORES Y EN CONDICIÓN DE DISCAPACIDAD COMPONENTE: ENTREGA SUBSIDIO ECONOMICO TIPO C, VIGENCIA2020 | I30: Inversión | J30: Bogotá Mejor para Todos | K30: 3 | L30: =IF(ISERROR(VLOOKUP(K30,[1]Eje_Pilar_Prop!$C$2:$E$104,2,FALSE))," ",VLOOKUP(K30,[1]Eje_Pilar_Prop!$C$2:$E$104,2,FALSE)) -> Igualdad y autonomía para una Bogotá incluyente | M30: =IF(ISERROR(VLOOKUP(K30,[1]Eje_Pilar_Prop!$C$2:$E$104,3,FALSE))," ",VLOOKUP(K30,[1]Eje_Pilar_Prop!$C$2:$E$104,3,FALSE)) -> Pilar 1 Igualdad de Calidad de Vida | N30: 1453 | O30: 860.066942-7 | P30: CAJA DE COMPENSACION FAMILIAR COMPENSAR | Q30: 612500000 | V30: 612500000 | W30: 611000000 | X30: 2020-01-14 | Y30: 2020-01-14 | Z30: 2020-06-13 | AA30: =5*30 -> 150 | AJ30: X | AL30: 0.9975510204
A31: 18 | B31: 2020 | C31: SECOP II | D31: FDLF-CD-18-2020 | E31: Contratos de prestación de servicios | F31: Contratación Directa | G31: Prestación de servicios profesionales y de apoyo a la gestión, o para la ejecución de trabajos artísticos que sólo puedan encomendarse a determinadas personas naturales; | H31: Prestar servicios para apoyar la gestión documental de la Alcaldia local en la implementación de los procesos de clasificación, ordenación, selección natural, foliación, identificación, levantamiento de inventarios, almacenamiento y aplicación de protocolos de eliminacion y transferencias documentales | I31: Inversión | J31: Bogotá Mejor para Todos | K31: 45 | L31: =IF(ISERROR(VLOOKUP(K31,Eje_Pilar_Prop!$C$2:$E$104,2,FALSE))," ",VLOOKUP(K31,Eje_Pilar_Prop!$C$2:$E$104,2,FALSE)) -> Gobernanza e influencia local, regional e internacional | M31: =IF(ISERROR(VLOOKUP(K31,Eje_Pilar_Prop!$C$2:$E$104,3,FALSE))," ",VLOOKUP(K31,Eje_Pilar_Prop!$C$2:$E$104,3,FALSE)) -> Eje Transversal 4 Gobierno Legitimo, Fortalecimiento Local y Eficiencia | N31: 1474 | O31: 1016111572 | P31: ANA MARIA LOPEZ MORENO | Q31: 9452000 | T31: 0 | U31: 0 | V31: 9452000 | W31: 8585567 | X31: 2020-03-06 | Y31: 2020-03-12 | Z31: 2020-07-11 | AA31: 120 | AB31: 0 | AC31: 0 | AJ31: X | AL31: =IF(ISERROR(W31/V31),"-",(W31/V31)) -> 0.9083333686
A32: 18 | B32: 2020 | E32: Otros | F32: Contratación directa | G32: No aplica | H32: POR MEDIO DE LA CUAL SE GARANTIZA EL PAGO DE LOS COSTOS OPERATIVOS QUE SE CAUSEN EN DESARROLLO DEL CONVENIO DE ASOCIACION NO. 4002 DE 2011, CELEBRADO ENTRE LA ALCALDIA LOCAL DE FONTIBON Y LA CAJA DE COMPENSACION FAMILIAR COMPENSAR, DENTRO DEL PROYECTO 1453 DE LA LOCALIDAD DE FONTIBON, VIGENCIA 2020- SEGUN MEMORANDO 5920001273- SEGUN MEMORANDO DE CREACION DE CRP NO 5920001193 DE 18-02-2020 | I32: Inversión | J32: Bogotá Mejor para Todos | K32: 3 | L32: =IF(ISERROR(VLOOKUP(K32,[1]Eje_Pilar_Prop!$C$2:$E$104,2,FALSE))," ",VLOOKUP(K32,[1]Eje_Pilar_Prop!$C$2:$E$104,2,FALSE)) -> Igualdad y autonomía para una Bogotá incluyente | M32: =IF(ISERROR(VLOOKUP(K32,[1]Eje_Pilar_Prop!$C$2:$E$104,3,FALSE))," ",VLOOKUP(K32,[1]Eje_Pilar_Prop!$C$2:$E$104,3,FALSE)) -> Pilar 1 Igualdad de Calidad de Vida | N32: 1453 | O32: 860.066942-7 | P32: CAJA DE COMPENSACION FAMILIAR COMPENSAR | Q32: 8000000 | V32: 8000000 | W32: 6598932 | X32: 2020-01-14 | Y32: 2020-01-14 | Z32: 2020-06-13 | AA32: 150 | AJ32: X | AL32: =IF(ISERROR(W32/V32),"-",(W32/V32)) -> 0.8248665
A33: 19 | B33: 2020 | C33: SECOP II | D33: FDLF-CD-19-2020 | E33: Contratos de prestación de servicios | F33: Contratación Directa | G33: Prestación de servicios profesionales y de apoyo a la gestión, o para la ejecución de trabajos artísticos que sólo puedan encomendarse a determinadas personas naturales; | H33: Prestar servicios profesionales en derecho para apoyar las actividades juridicas y administrativas propias de la casa del consumidor,en el marco del convenio suscrito entre la superintendencia de industria y comercio y la Alcaldia Local de Fontibon. | I33: Inversión | J33: Bogotá Mejor para Todos | K33: 45 | L33: =IF(ISERROR(VLOOKUP(K33,Eje_Pilar_Prop!$C$2:$E$104,2,FALSE))," ",VLOOKUP(K33,Eje_Pilar_Prop!$C$2:$E$104,2,FALSE)) -> Gobernanza e influencia local, regional e internacional | M33: =IF(ISERROR(VLOOKUP(K33,Eje_Pilar_Prop!$C$2:$E$104,3,FALSE))," ",VLOOKUP(K33,Eje_Pilar_Prop!$C$2:$E$104,3,FALSE)) -> Eje Transversal 4 Gobierno Legitimo, Fortalecimiento Local y Eficiencia | N33: 1474 | O33: 1115690569 | P33: ELIZABETH GONZÁLEZ ROA | Q33: 19132000 | T33: 0 | U33: 0 | V33: 19132000 | W33: 19132000 | X33: 2020-03-10 | Y33: 2020-04-22 | Z33: 2020-08-21 | AA33: 120 | AB33: 0 | AC33: 0 | AJ33: X | AL33: 1
A34: 20 | B34: 2020 | C34: SECOP II | D34: FDLF-CD-20-2020 | E34: Contratos de prestación de servicios | F34: Contratación Directa | G34: Prestación de servicios profesionales y de apoyo a la gestión, o para la ejecución de trabajos artísticos que sólo puedan encomendarse a determinadas personas naturales; | H34: Prestar servicios de apoyo al área de gestión de desarrollo local de Fontibón. | I34: Inversión | J34: Bogotá Mejor para Todos | K34: 45 | L34: =IF(ISERROR(VLOOKUP(K34,Eje_Pilar_Prop!$C$2:$E$104,2,FALSE))," ",VLOOKUP(K34,Eje_Pilar_Prop!$C$2:$E$104,2,FALSE)) -> Gobernanza e influencia local, regional e internacional | M34: =IF(ISERROR(VLOOKUP(K34,Eje_Pilar_Prop!$C$2:$E$104,3,FALSE))," ",VLOOKUP(K34,Eje_Pilar_Prop!$C$2:$E$104,3,FALSE)) -> Eje Transversal 4 Gobierno Legitimo, Fortalecimiento Local y Eficiencia | N34: 1474 | O34: 1016039271 | P34: JUAN DAVID RAMIREZ MONTOYA | Q34: 9452000 | T34: 1 | U34: 4726000 | V34: 14178000 | W34: 14178000 | X34: 2020-03-10 | Y34: 2020-03-11 | Z34: 2020-09-10 | AA34: 120 | AB34: 1 | AC34: 60 | AJ34: X | AL34: 1
A35: 21 | B35: 2020 | C35: SECOP II | D35: FDLF-CD-21-2020 | E35: Contratos de prestación de servicios | F35: Contratación Directa | G35: Prestación de servicios profesionales y de apoyo a la gestión, o para la ejecución de trabajos artísticos que sólo puedan encomendarse a determinadas personas naturales; | H35: Prestar servicios para apoyar el 100% del proceso de radicación y distribución de la correspondencia, así como la atención en la ventanilla cdi de las inspecciones de policía de la alcaldía local de Fontibón. | I35: Inversión | J35: Bogotá Mejor para Todos | K35: 45 | L35: =IF(ISERROR(VLOOKUP(K35,Eje_Pilar_Prop!$C$2:$E$104,2,FALSE))," ",VLOOKUP(K35,Eje_Pilar_Prop!$C$2:$E$104,2,FALSE)) -> Gobernanza e influencia local, regional e internacional | M35: =IF(ISERROR(VLOOKUP(K35,Eje_Pilar_Prop!$C$2:$E$104,3,FALSE))," ",VLOOKUP(K35,Eje_Pilar_Prop!$C$2:$E$104,3,FALSE)) -> Eje Transversal 4 Gobierno Legitimo, Fortalecimiento Local y Eficiencia | N35: 1474 | O35: 1019064411 | P35: ADRIANA PAOLA ROJAS VASQUEZ | Q35: 9452000 | T35: 1 | U35: 4726000 | V35: 14178000 | W35: 14178000 | X35: 2020-03-10 | Y35: 2020-03-12 | Z35: 2020-09-11 | AA35: 120 | AB35: 1 | AC35: 60 | AJ35: X | AL35: 1
A36: 22 | B36: 2020 | C36: SECOP II | D36: FDLF-CD-22-2020 | E36: Contratos de prestación de servicios | F36: Contratación Directa | G36: Prestación de servicios profesionales y de apoyo a la gestión, o para la ejecución de trabajos artísticos que sólo puedan encomendarse a determinadas personas naturales; | H36: Prestar servicios para apoyar la gestión documental de la Alcaldia local en la implementación de los procesos de clasificación, ordenación, selección natural, foliación, identificación, levantamiento de inventarios, almacenamiento y aplicación de protocolos de eliminación y transferencia documental. | I36: Inversión | J36: Bogotá Mejor para Todos | K36: 45 | L36: =IF(ISERROR(VLOOKUP(K36,Eje_Pilar_Prop!$C$2:$E$104,2,FALSE))," ",VLOOKUP(K36,Eje_Pilar_Prop!$C$2:$E$104,2,FALSE)) -> Gobernanza e influencia local, regional e internacional | M36: =IF(ISERROR(VLOOKUP(K36,Eje_Pilar_Prop!$C$2:$E$104,3,FALSE))," ",VLOOKUP(K36,Eje_Pilar_Prop!$C$2:$E$104,3,FALSE)) -> Eje Transversal 4 Gobierno Legitimo, Fortalecimiento Local y Eficiencia | N36: 1474 | O36: 80804691 | P36: JOHAN MANUEL RAMOS RODRIGUEZ | Q36: 9452000 | T36: 1 | U36: 4726000 | V36: 14178000 | W36: 14178000 | X36: 2020-03-10 | Y36: 2020-03-13 | Z36: 2020-09-12 | AA36: 120 | AB36: 1 | AC36: 60 | AJ36: X | AL36: 1
A37: 23 | B37: 2020 | C37: SECOP II | D37: FDLF-CD-23-2020 | E37: Contratos de prestación de servicios | F37: Contratación Directa | G37: Prestación de servicios profesionales y de apoyo a la gestión, o para la ejecución de trabajos artísticos que sólo puedan encomendarse a determinadas personas naturales; | H37: Prestar servicios profesionales en ingeniería para apoyar las actividades administrativas propias de la casa del consumidor en el marco de convenio suscrito entre la superintendencia de la industria y comercio y la Alcaldia local de Fontibón. | I37: Inversión | J37: Bogotá Mejor para Todos | K37: 45 | L37: =IF(ISERROR(VLOOKUP(K37,Eje_Pilar_Prop!$C$2:$E$104,2,FALSE))," ",VLOOKUP(K37,Eje_Pilar_Prop!$C$2:$E$104,2,FALSE)) -> Gobernanza e influencia local, regional e internacional | M37: =IF(ISERROR(VLOOKUP(K37,Eje_Pilar_Prop!$C$2:$E$104,3,FALSE))," ",VLOOKUP(K37,Eje_Pilar_Prop!$C$2:$E$104,3,FALSE)) -> Eje Transversal 4 Gobierno Legitimo, Fortalecimiento Local y Eficiencia | N37: 1474 | O37: 14320959 | P37: JOSE ALBEYRO AVILEZ CRUZ | Q37: 19132000 | T37: 1 | U37: 9566000 | V37: 28698000 | W37: 28698000 | X37: 2020-03-10 | Y37: 2020-03-13 | Z37: 2020-09-12 | AA37: 120 | AB37: 1 | AC37: 60 | AJ37: X | AL37: 1
A38: 24 | B38: 2020 | C38: SECOP II | D38: FDLF-CD-24-2020 | E38: Contratos de prestación de servicios | F38: Contratación Directa | G38: Prestación de servicios profesionales y de apoyo a la gestión, o para la ejecución de trabajos artísticos que sólo puedan encomendarse a determinadas personas naturales; | H38: Prestar servicios de apoyo a la Area de gestión del desarrollo local de la Alcaldía Local de Fontibon. | I38: Inversión | J38: Bogotá Mejor para Todos | K38: 45 | L38: =IF(ISERROR(VLOOKUP(K38,Eje_Pilar_Prop!$C$2:$E$104,2,FALSE))," ",VLOOKUP(K38,Eje_Pilar_Prop!$C$2:$E$104,2,FALSE)) -> Gobernanza e influencia local, regional e internacional | M38: =IF(ISERROR(VLOOKUP(K38,Eje_Pilar_Prop!$C$2:$E$104,3,FALSE))," ",VLOOKUP(K38,Eje_Pilar_Prop!$C$2:$E$104,3,FALSE)) -> Eje Transversal 4 Gobierno Legitimo, Fortalecimiento Local y Eficiencia | N38: 1474 | O38: 1016064829 | P38: CARLOS EDUARDO FLOREZ TORRES | Q38: 9452000 | T38: 0 | U38: 0 | V38: 9452000 | W38: 9452000 | X38: 2020-03-10 | Y38: 2020-03-12 | Z38: 2020-07-11 | AA38: 120 | AB38: 0 | AC38: 0 | AJ38: X | AL38: 1
A39: 25 | B39: 2020 | C39: SECOP II | D39: FDLF-CD-25-2020 | E39: Contratos de prestación de servicios | F39: Contratación Directa | G39: Prestación de servicios profesionales y de apoyo a la gestión, o para la ejecución de trabajos artísticos que sólo puedan encomendarse a determinadas personas naturales; | H39: Prestar servicios como auxiliar de apoyo en el trámite y desarrollo de los despachos comisorios que por competencia corresponden a la alcaldía local de Fontibon y las demás actividades que se le asignen de acuerdo a la naturaleza del contrato. | I39: Inversión | J39: Bogotá Mejor para Todos | K39: 45 | L39: =IF(ISERROR(VLOOKUP(K39,Eje_Pilar_Prop!$C$2:$E$104,2,FALSE))," ",VLOOKUP(K39,Eje_Pilar_Prop!$C$2:$E$104,2,FALSE)) -> Gobernanza e influencia local, regional e internacional | M39: =IF(ISERROR(VLOOKUP(K39,Eje_Pilar_Prop!$C$2:$E$104,3,FALSE))," ",VLOOKUP(K39,Eje_Pilar_Prop!$C$2:$E$104,3,FALSE)) -> Eje Transversal 4 Gobierno Legitimo, Fortalecimiento Local y Eficiencia | N39: 1474 | O39: 35221867 | P39: MARIA JOHANA LOPEZ ULCUE | Q39: 9452000 | T39: 0 | U39: 0 | V39: 9452000 | W39: 9452000 | X39: 2020-03-10 | Y39: 2020-03-11 | Z39: 2020-07-10 | AA39: 120 | AB39: 0 | AC39: 0 | AJ39: X | AL39: 1
A40: 26 | B40: 2020 | C40: SECOP II | D40: FDLF-CD-26-2020 | E40: Contratos de prestación de servicios | F40: Contratación Directa | G40: Prestación de servicios profesionales y de apoyo a la gestión, o para la ejecución de trabajos artísticos que sólo puedan encomendarse a determinadas personas naturales; | H40: Prestar servicios para apoyar jurídicamente la ejecución de las acciones requeridas para el trámite e impulso procesal de las actuaciones contravencionales y/o querellas en las inspecciones de policía de la localidad. | I40: Inversión | J40: Bogotá Mejor para Todos | K40: 45 | L40: =IF(ISERROR(VLOOKUP(K40,Eje_Pilar_Prop!$C$2:$E$104,2,FALSE))," ",VLOOKUP(K40,Eje_Pilar_Prop!$C$2:$E$104,2,FALSE)) -> Gobernanza e influencia local, regional e internacional | M40: =IF(ISERROR(VLOOKUP(K40,Eje_Pilar_Prop!$C$2:$E$104,3,FALSE))," ",VLOOKUP(K40,Eje_Pilar_Prop!$C$2:$E$104,3,FALSE)) -> Eje Transversal 4 Gobierno Legitimo, Fortalecimiento Local y Eficiencia | N40: 1474 | O40: 93020228 | P40: HAMIXON LEAL CHILATRA | Q40: 19132000 | T40: 0 | U40: 0 | V40: 19132000 | W40: 19132000 | X40: 2020-03-10 | Y40: 2020-03-12 | Z40: 2020-07-11 | AA40: 120 | AB40: 0 | AC40: 0 | AJ40: X | AL40: 1
A41: 27 | B41: 2020 | C41: SECOP II | D41: FDLF-CD-27-2020 | E41: Contratos de prestación de servicios | F41: Contratación Directa | G41: Prestación de servicios profesionales y de apoyo a la gestión, o para la ejecución de trabajos artísticos que sólo puedan encomendarse a determinadas personas naturales; | H41: Prestar servicios para apoyar jurídicamente la ejecución de las acciones requeridas para el trámite e impulso procesal de las actuaciones contravencionales y/o querellas en las inspecciones de policía de la localidad. | I41: Inversión | J41: Bogotá Mejor para Todos | K41: 45 | L41: =IF(ISERROR(VLOOKUP(K41,Eje_Pilar_Prop!$C$2:$E$104,2,FALSE))," ",VLOOKUP(K41,Eje_Pilar_Prop!$C$2:$E$104,2,FALSE)) -> Gobernanza e influencia local, regional e internacional | M41: =IF(ISERROR(VLOOKUP(K41,Eje_Pilar_Prop!$C$2:$E$104,3,FALSE))," ",VLOOKUP(K41,Eje_Pilar_Prop!$C$2:$E$104,3,FALSE)) -> Eje Transversal 4 Gobierno Legitimo, Fortalecimiento Local y Eficiencia | N41: 1474 | O41: 79307654 | P41: ALVARO GOMEZ GOMEZ | Q41: 19132000 | T41: 0 | U41: 0 | V41: 19132000 | W41: 19132000 | X41: 2020-03-10 | Y41: 2020-03-12 | Z41: 2020-07-11 | AA41: 120 | AB41: 0 | AC41: 0 | AJ41: X | AL41: 1
A42: 28 | B42: 2020 | C42: SECOP II | D42: FDLF-CD-28-2020 | E42: Contratos de prestación de servicios | F42: Contratación Directa | G42: Prestación de servicios profesionales y de apoyo a la gestión, o para la ejecución de trabajos artísticos que sólo puedan encomendarse a determinadas personas naturales; | H42: Prestar servicios para apoyar jurídicamente la ejecución de las acciones requeridas para el trámite e impulso procesal de las actuaciones contravencionales y/o querellas en las inspecciones de policía de la localidad. | I42: Inversión | J42: Bogotá Mejor para Todos | K42: 45 | L42: =IF(ISERROR(VLOOKUP(K42,Eje_Pilar_Prop!$C$2:$E$104,2,FALSE))," ",VLOOKUP(K42,Eje_Pilar_Prop!$C$2:$E$104,2,FALSE)) -> Gobernanza e influencia local, regional e internacional | M42: =IF(ISERROR(VLOOKUP(K42,Eje_Pilar_Prop!$C$2:$E$104,3,FALSE))," ",VLOOKUP(K42,Eje_Pilar_Prop!$C$2:$E$104,3,FALSE)) -> Eje Transversal 4 Gobierno Legitimo, Fortalecimiento Local y Eficiencia | N42: 1474 | O42: 1136886171 | P42: JUAN FELIPE GAVIRIA VILLEGAS | Q42: 19132000 | T42: 0 | U42: 0 | V42: 19132000 | W42: 19132000 | X42: 2020-03-10 | Y42: 2020-03-12 | Z42: 2020-07-11 | AA42: 120 | AB42: 0 | AC42: 0 | AJ42: X | AL42: 1
A43: 29 | B43: 2020 | C43: SECOP II | D43: FDLF-CD-29-2020 | E43: Contratos de prestación de servicios | F43: Contratación Directa | G43: Prestación de servicios profesionales y de apoyo a la gestión, o para la ejecución de trabajos artísticos que sólo puedan encomendarse a determinadas personas naturales; | H43: Prestar servicios para apoyar jurídicamente la ejecución de las acciones requeridas para el trámite e impulso procesal de las actuaciones contravencionales y/o querellas en las inspecciones de policía de la localidad. | I43: Inversión | J43: Bogotá Mejor para Todos | K43: 45 | L43: =IF(ISERROR(VLOOKUP(K43,Eje_Pilar_Prop!$C$2:$E$104,2,FALSE))," ",VLOOKUP(K43,Eje_Pilar_Prop!$C$2:$E$104,2,FALSE)) -> Gobernanza e influencia local, regional e internacional | M43: =IF(ISERROR(VLOOKUP(K43,Eje_Pilar_Prop!$C$2:$E$104,3,FALSE))," ",VLOOKUP(K43,Eje_Pilar_Prop!$C$2:$E$104,3,FALSE)) -> Eje Transversal 4 Gobierno Legitimo, Fortalecimiento Local y Eficiencia | N43: 1474 | O43: 79131970 | P43: WILFORD LIBERMAN RODRIGUEZ FONSECA | Q43: 19132000 | T43: 1 | U43: 9566000 | V43: 28698000 | W43: 28698000 | X43: 2020-03-10 | Y43: 2020-03-12 | Z43: 2020-09-11 | AA43: 120 | AB43: 1 | AC43: 60 | AJ43: X | AL43: 1
A44: 30 | B44: 2020 | C44: SECOP II | D44: FDLF-CD-30-2020 | E44: Contratos de prestación de servicios | F44: Contratación Directa | G44: Prestación de servicios profesionales y de apoyo a la gestión, o para la ejecución de trabajos artísticos que sólo puedan encomendarse a determinadas personas naturales; | H44: Prestar servicios para apoyar el equipo de prensa y comunicaciones de la Alcaldia local en la creación, realización y producción de videos que transmitan un mensaje en la comunicación interna y externa. | I44: Inversión | J44: Bogotá Mejor para Todos | K44: 45 | L44: =IF(ISERROR(VLOOKUP(K44,Eje_Pilar_Prop!$C$2:$E$104,2,FALSE))," ",VLOOKUP(K44,Eje_Pilar_Prop!$C$2:$E$104,2,FALSE)) -> Gobernanza e influencia local, regional e internacional | M44: =IF(ISERROR(VLOOKUP(K44,Eje_Pilar_Prop!$C$2:$E$104,3,FALSE))," ",VLOOKUP(K44,Eje_Pilar_Prop!$C$2:$E$104,3,FALSE)) -> Eje Transversal 4 Gobierno Legitimo, Fortalecimiento Local y Eficiencia | N44: 1474 | O44: 1016060955 | P44: DIEGO ARMANDO HUERTAS GARCIA | Q44: 16800000 | T44: 0 | U44: 0 | V44: 16800000 | W44: 16800000 | X44: 2020-03-10 | Y44: 2020-03-12 | Z44: 2020-07-11 | AA44: 120 | AB44: 0 | AC44: 0 | AJ44: X | AL44: 1
A45: 31 | B45: 2020 | C45: SECOP II | D45: FDLF-CD-31-2020 | E45: Contratos de prestación de servicios | F45: Contratación Directa | G45: Prestación de servicios profesionales y de apoyo a la gestión, o para la ejecución de trabajos artísticos que sólo puedan encomendarse a determinadas personas naturales; | H45: Prestar servicios para apoyar la formulación gestión y seguimiento de actividades a la gestión ambiental externa encaminada a la mitigación de los diferentes impactos ambientales y la conservación de los recursos naturales de la localidad. | I45: Inversión | J45: Bogotá Mejor para Todos | K45: 45 | L45: =IF(ISERROR(VLOOKUP(K45,Eje_Pilar_Prop!$C$2:$E$104,2,FALSE))," ",VLOOKUP(K45,Eje_Pilar_Prop!$C$2:$E$104,2,FALSE)) -> Gobernanza e influencia local, regional e internacional | M45: =IF(ISERROR(VLOOKUP(K45,Eje_Pilar_Prop!$C$2:$E$104,3,FALSE))," ",VLOOKUP(K45,Eje_Pilar_Prop!$C$2:$E$104,3,FALSE)) -> Eje Transversal 4 Gobierno Legitimo, Fortalecimiento Local y Eficiencia | N45: 1474 | O45: 1015437921 | P45: CRISTIAN STIVEN TAMBO LOPEZ | Q45: 19132000 | T45: 0 | U45: 0 | V45: 19132000 | W45: 17378233 | X45: 2020-03-10 | Y45: 2020-03-12 | Z45: 2020-07-11 | AA45: 120 | AB45: 0 | AC45: 0 | AJ45: X | AL45: 0.9083333159
A46: 32 | B46: 2020 | C46: SECOP II | D46: FDLF-CD-32-2020 | E46: Contratos de prestación de servicios | F46: Contratación Directa | G46: Prestación de servicios profesionales y de apoyo a la gestión, o para la ejecución de trabajos artísticos que sólo puedan encomendarse a determinadas personas naturales; | H46: Prestar servicios para apoyar jurídicamente la ejecución de las acciones requeridas para la depuración de las actualizaciones administrativas que cursan en la Alcaldia local. | I46: Inversión | J46: Bogotá Mejor para Todos | K46: 45 | L46: =IF(ISERROR(VLOOKUP(K46,Eje_Pilar_Prop!$C$2:$E$104,2,FALSE))," ",VLOOKUP(K46,Eje_Pilar_Prop!$C$2:$E$104,2,FALSE)) -> Gobernanza e influencia local, regional e internacional | M46: =IF(ISERROR(VLOOKUP(K46,Eje_Pilar_Prop!$C$2:$E$104,3,FALSE))," ",VLOOKUP(K46,Eje_Pilar_Prop!$C$2:$E$104,3,FALSE)) -> Eje Transversal 4 Gobierno Legitimo, Fortalecimiento Local y Eficiencia | N46: 1474 | O46: 1121839153 | P46: YULI NATALY GARCIA MEJIA | Q46: 19132000 | T46: 1 | U46: 9566000 | V46: 28698000 | W46: 22161233 | X46: 2020-03-10 | Y46: 2020-03-12 | Z46: 2020-09-11 | AA46: 120 | AB46: 1 | AC46: 60 | AJ46: X | AL46: 0.7722222106
A47: 33 | B47: 2020 | C47: SECOP II | D47: FDLF-CD-33-2020 | E47: Contratos de prestación de servicios | F47: Contratación Directa | G47: Prestación de servicios profesionales y de apoyo a la gestión, o para la ejecución de trabajos artísticos que sólo puedan encomendarse a determinadas personas naturales; | H47: Prestar servicios para apoyar jurídicamente la ejecución de las acciones requeridas para la depuración de las actualizaciones administrativas que cursan en la Alcaldia local. | I47: Inversión | J47: Bogotá Mejor para Todos | K47: 45 | L47: =IF(ISERROR(VLOOKUP(K47,Eje_Pilar_Prop!$C$2:$E$104,2,FALSE))," ",VLOOKUP(K47,Eje_Pilar_Prop!$C$2:$E$104,2,FALSE)) -> Gobernanza e influencia local, regional e internacional | M47: =IF(ISERROR(VLOOKUP(K47,Eje_Pilar_Prop!$C$2:$E$104,3,FALSE))," ",VLOOKUP(K47,Eje_Pilar_Prop!$C$2:$E$104,3,FALSE)) -> Eje Transversal 4 Gobierno Legitimo, Fortalecimiento Local y Eficiencia | N47: 1474 | O47: 1022941624 | P47: ANDY FABIAN HERRERA PINTO | Q47: 19132000 | T47: 1 | U47: 9566000 | V47: 28698000 | W47: 26944233 | X47: 2020-03-10 | Y47: 2020-03-12 | Z47: 2020-09-11 | AA47: 120 | AB47: 1 | AC47: 60 | AJ47: X | AL47: 0.9388888773
A48: 34 | B48: 2020 | C48: SECOP II | D48: FDLF-CD-34-2020 | E48: Contratos de prestación de servicios | F48: Contratación Directa | G48: Prestación de servicios profesionales y de apoyo a la gestión, o para la ejecución de trabajos artísticos que sólo puedan encomendarse a determinadas personas naturales; | H48: Prestar servicios para apoyo a la gestión de expedientes contractuales vigentes y activos a cargo del área de contratación del fondo de desarrollo local de Fontibón. | I48: Inversión | J48: Bogotá Mejor para Todos | K48: 45 | L48: =IF(ISERROR(VLOOKUP(K48,Eje_Pilar_Prop!$C$2:$E$104,2,FALSE))," ",VLOOKUP(K48,Eje_Pilar_Prop!$C$2:$E$104,2,FALSE)) -> Gobernanza e influencia local, regional e internacional | M48: =IF(ISERROR(VLOOKUP(K48,Eje_Pilar_Prop!$C$2:$E$104,3,FALSE))," ",VLOOKUP(K48,Eje_Pilar_Prop!$C$2:$E$104,3,FALSE)) -> Eje Transversal 4 Gobierno Legitimo, Fortalecimiento Local y Eficiencia | N48: 1474 | O48: 80147386 | P48: JOHN FREDY HERRERA RINCON | Q48: 9452000 | T48: 0 | U48: 0 | V48: 9452000 | W48: 9452000 | X48: 2020-03-10 | Y48: 2020-03-13 | Z48: 2020-07-12 | AA48: 120 | AB48: 0 | AC48: 0 | AJ48: X | AL48: 1
A49: 35 | B49: 2020 | C49: SECOP II | D49: FDLF-CD-35-2020 | E49: Contratos de prestación de servicios | F49: Contratación Directa | G49: Prestación de servicios profesionales y de apoyo a la gestión, o para la ejecución de trabajos artísticos que sólo puedan encomendarse a determinadas personas naturales; | H49: Prestar servcios profesionales como abogado para brindar apoyo juridico en el trámite y desarrollo de los despachos comisorios que por competencia corresponden a la Alcaldía Local de Fontibon. | I49: Inversión | J49: Bogotá Mejor para Todos | K49: 45 | L49: =IF(ISERROR(VLOOKUP(K49,Eje_Pilar_Prop!$C$2:$E$104,2,FALSE))," ",VLOOKUP(K49,Eje_Pilar_Prop!$C$2:$E$104,2,FALSE)) -> Gobernanza e influencia local, regional e internacional | M49: =IF(ISERROR(VLOOKUP(K49,Eje_Pilar_Prop!$C$2:$E$104,3,FALSE))," ",VLOOKUP(K49,Eje_Pilar_Prop!$C$2:$E$104,3,FALSE)) -> Eje Transversal 4 Gobierno Legitimo, Fortalecimiento Local y Eficiencia | N49: 1474 | O49: 80228231 | P49: CRHISTIAN ANDRES PINTO GONZALEZ | Q49: 22612000 | T49: 1 | U49: 11306000 | V49: 33918000 | W49: 31656800 | X49: 2020-03-10 | Y49: 2020-03-13 | Z49: 2020-09-12 | AA49: 120 | AB49: 1 | AC49: 60 | AJ49: X | AL49: 0.9333333333
A50: 36 | B50: 2020 | C50: SECOP II | D50: FDLF-CD-36-2020 | E50: Contratos de prestación de servicios | F50: Contratación Directa | G50: Prestación de servicios profesionales y de apoyo a la gestión, o para la ejecución de trabajos artísticos que sólo puedan encomendarse a determinadas personas naturales; | H50: Prestar servicios para apoyar jurídicamente la ejecución de las acciones requeridas para la depuración de las actualizaciones administrativas que cursan en la Alcaldia local. | I50: Inversión | J50: Bogotá Mejor para Todos | K50: 45 | L50: =IF(ISERROR(VLOOKUP(K50,Eje_Pilar_Prop!$C$2:$E$104,2,FALSE))," ",VLOOKUP(K50,Eje_Pilar_Prop!$C$2:$E$104,2,FALSE)) -> Gobernanza e influencia local, regional e internacional | M50: =IF(ISERROR(VLOOKUP(K50,Eje_Pilar_Prop!$C$2:$E$104,3,FALSE))," ",VLOOKUP(K50,Eje_Pilar_Prop!$C$2:$E$104,3,FALSE)) -> Eje Transversal 4 Gobierno Legitimo, Fortalecimiento Local y Eficiencia | N50: 1474 | O50: 1016053840 | P50: EVELYN LORENA GÓMEZ ORTIZ | Q50: 19132000 | T50: 1 | U50: 9566000 | V50: 28698000 | W50: 26944233 | X50: 2020-03-10 | Y50: 2020-03-12 | Z50: 2020-09-11 | AA50: 120 | AB50: 1 | AC50: 60 | AJ50: X | AL50: 0.9388888773
A51: 37 | B51: 2020 | C51: SECOP II | D51: FDLF-CD-37-2020 | E51: Contratos de prestación de servicios | F51: Contratación Directa | G51: Prestación de servicios profesionales y de apoyo a la gestión, o para la ejecución de trabajos artísticos que sólo puedan encomendarse a determinadas personas naturales; | H51: Prestar servicios para apoyar jurídicamente la ejecución de las acciones requeridas para la depuración de las actualizaciones administrativas que cursan en la Alcaldia local. | I51: Inversión | J51: Bogotá Mejor para Todos | K51: 45 | L51: =IF(ISERROR(VLOOKUP(K51,Eje_Pilar_Prop!$C$2:$E$104,2,FALSE))," ",VLOOKUP(K51,Eje_Pilar_Prop!$C$2:$E$104,2,FALSE)) -> Gobernanza e influencia local, regional e internacional | M51: =IF(ISERROR(VLOOKUP(K51,Eje_Pilar_Prop!$C$2:$E$104,3,FALSE))," ",VLOOKUP(K51,Eje_Pilar_Prop!$C$2:$E$104,3,FALSE)) -> Eje Transversal 4 Gobierno Legitimo, Fortalecimiento Local y Eficiencia | N51: 1474 | O51: 52783302 | P51: CLAUDIA PATRICIA VILLAMIZAR ALCALA | Q51: 19132000 | T51: 1 | U51: 9566000 | V51: 28698000 | W51: 26784800 | X51: 2020-03-10 | Y51: 2020-03-13 | Z51: 2020-09-12 | AA51: 120 | AB51: 1 | AC51: 60 | AJ51: X | AL51: 0.9333333333
A52: 38 | B52: 2020 | C52: SECOP II | D52: FDLF-CD-38-2020 | E52: Contratos de prestación de servicios | F52: Contratación Directa | G52: Prestación de servicios profesionales y de apoyo a la gestión, o para la ejecución de trabajos artísticos que sólo puedan encomendarse a determinadas personas naturales; | H52: Apoyar las labores de entrega y recibo de las comunicaciones emitidas o recibidas por las inspecciones de policia de la localidad. | I52: Inversión | J52: Bogotá Mejor para Todos | K52: 45 | L52: =IF(ISERROR(VLOOKUP(K52,Eje_Pilar_Prop!$C$2:$E$104,2,FALSE))," ",VLOOKUP(K52,Eje_Pilar_Prop!$C$2:$E$104,2,FALSE)) -> Gobernanza e influencia local, regional e internacional | M52: =IF(ISERROR(VLOOKUP(K52,Eje_Pilar_Prop!$C$2:$E$104,3,FALSE))," ",VLOOKUP(K52,Eje_Pilar_Prop!$C$2:$E$104,3,FALSE)) -> Eje Transversal 4 Gobierno Legitimo, Fortalecimiento Local y Eficiencia | N52: 1474 | O52: 79538248 | P52: SABAS CRUZ ORTIZ | Q52: 9452000 | T52: 0 | U52: 0 | V52: 9452000 | W52: 9452000 | X52: 2020-03-11 | Y52: 2020-03-12 | Z52: 2020-07-11 | AA52: 120 | AB52: 0 | AC52: 0 | AJ52: X | AL52: 1
A53: 39 | B53: 2020 | C53: SECOP II | D53: FDLF-CD-39-2020 | E53: Contratos de prestación de servicios | F53: Contratación Directa | G53: Prestación de servicios profesionales y de apoyo a la gestión, o para la ejecución de trabajos artísticos que sólo puedan encomendarse a determinadas personas naturales; | H53: Prestar servicios técnicos para el apoyo logísticos y administrativo del despacho de la Alcaldia local de Fontibón. | I53: Inversión | J53: Bogotá Mejor para Todos | K53: 45 | L53: =IF(ISERROR(VLOOKUP(K53,Eje_Pilar_Prop!$C$2:$E$104,2,FALSE))," ",VLOOKUP(K53,Eje_Pilar_Prop!$C$2:$E$104,2,FALSE)) -> Gobernanza e influencia local, regional e internacional | M53: =IF(ISERROR(VLOOKUP(K53,Eje_Pilar_Prop!$C$2:$E$104,3,FALSE))," ",VLOOKUP(K53,Eje_Pilar_Prop!$C$2:$E$104,3,FALSE)) -> Eje Transversal 4 Gobierno Legitimo, Fortalecimiento Local y Eficiencia | N53: 1474 | O53: 51653895 | P53: MARTHA LUCIA AVELLANEDA BAUTISTA | Q53: 14000000 | T53: 1 | U53: 7000000 | V53: 21000000 | W53: 19600000 | X53: 2020-03-11 | Y53: 2020-03-13 | Z53: 2020-09-12 | AA53: 120 | AB53: 1 | AC53: 60 | AJ53: X | AL53: 0.9333333333
A54: 40 | B54: 2020 | C54: SECOP II | D54: FDLF-CD-40-2020 | E54: Contratos de prestación de servicios | F54: Contratación Directa | G54: Prestación de servicios profesionales y de apoyo a la gestión, o para la ejecución de trabajos artísticos que sólo puedan encomendarse a determinadas personas naturales; | H54: Prestar servicios como auxiliar de apoyo a las actividades correspondientes a temas de malla vial,obras,espacio publico e infraestructura para la Alcaldia Local de Fontibon. | I54: Inversión | J54: Bogotá Mejor para Todos | K54: 18 | L54: =IF(ISERROR(VLOOKUP(K54,Eje_Pilar_Prop!$C$2:$E$104,2,FALSE))," ",VLOOKUP(K54,Eje_Pilar_Prop!$C$2:$E$104,2,FALSE)) -> Mejor movilidad para todos | M54: =IF(ISERROR(VLOOKUP(K54,Eje_Pilar_Prop!$C$2:$E$104,3,FALSE))," ",VLOOKUP(K54,Eje_Pilar_Prop!$C$2:$E$104,3,FALSE)) -> Pilar 2 Democracía Urbana | N54: 1464 | O54: 19497903 | P54: EDGAR AUGUSTO GRANADOS MEJIA | Q54: 10180000 | T54: 0 | U54: 0 | V54: 10180000 | W54: 8059167 | X54: 2020-03-13 | Y54: 2020-03-26 | Z54: 2020-08-06 | AA54: 120 | AB54: 0 | AC54: 0 | AJ54: X | AL54: 0.7916666994
A55: 41 | B55: 2020 | C55: SECOP II | D55: FDLF-CD-41-2020 | E55: Contratos de prestación de servicios | F55: Contratación Directa | G55: Prestación de servicios profesionales y de apoyo a la gestión, o para la ejecución de trabajos artísticos que sólo puedan encomendarse a determinadas personas naturales; | H55: Apoyar técnicamente las distintas etapas de los procesos de cometencia de las inspecciones de Policía de la localidad,según reparto. | I55: Inversión | J55: Bogotá Mejor para Todos | K55: 45 | L55: =IF(ISERROR(VLOOKUP(K55,Eje_Pilar_Prop!$C$2:$E$104,2,FALSE))," ",VLOOKUP(K55,Eje_Pilar_Prop!$C$2:$E$104,2,FALSE)) -> Gobernanza e influencia local, regional e internacional | M55: =IF(ISERROR(VLOOKUP(K55,Eje_Pilar_Prop!$C$2:$E$104,3,FALSE))," ",VLOOKUP(K55,Eje_Pilar_Prop!$C$2:$E$104,3,FALSE)) -> Eje Transversal 4 Gobierno Legitimo, Fortalecimiento Local y Eficiencia | N55: 1474 | O55: 1013601563 | P55: JENNY ANGELICA MALAGON CORTES | Q55: 22612000 | T55: 0 | U55: 0 | V55: 22612000 | W55: 22612000 | X55: 2020-03-12 | Y55: 2020-04-08 | Z55: 2020-08-07 | AA55: 120 | AB55: 0 | AC55: 0 | AJ55: X | AL55: 1
A56: 42 | B56: 2020 | C56: SECOP II | D56: FDLF-CD-42-2020 | E56: Contratos de prestación de servicios | F56: Contratación Directa | G56: Prestación de servicios profesionales y de apoyo a la gestión, o para la ejecución de trabajos artísticos que sólo puedan encomendarse a determinadas personas naturales; | H56: Apoyar técnicamente las distintas etapas de los procesos de cometencia de las inspecciones de Policía de la localidad,según reparto. | I56: Inversión | J56: Bogotá Mejor para Todos | K56: 45 | L56: =IF(ISERROR(VLOOKUP(K56,Eje_Pilar_Prop!$C$2:$E$104,2,FALSE))," ",VLOOKUP(K56,Eje_Pilar_Prop!$C$2:$E$104,2,FALSE)) -> Gobernanza e influencia local, regional e internacional | M56: =IF(ISERROR(VLOOKUP(K56,Eje_Pilar_Prop!$C$2:$E$104,3,FALSE))," ",VLOOKUP(K56,Eje_Pilar_Prop!$C$2:$E$104,3,FALSE)) -> Eje Transversal 4 Gobierno Legitimo, Fortalecimiento Local y Eficiencia | N56: 1474 | O56: 52283995 | P56: EMMA CECILIA BAUTISTA IBARRA | Q56: 22612000 | T56: 0 | U56: 0 | V56: 22612000 | W56: 22612000 | X56: 2020-03-12 | Y56: 2020-04-08 | Z56: 2020-08-07 | AA56: 120 | AB56: 0 | AC56: 0 | AJ56: X | AL56: 1
A57: 43 | B57: 2020 | C57: SECOP II | D57: FDLF-CD-43-2020 | E57: Contratos de prestación de servicios | F57: Contratación Directa | G57: Prestación de servicios profesionales y de apoyo a la gestión, o para la ejecución de trabajos artísticos que sólo puedan encomendarse a determinadas personas naturales; | H57: Prestar servicios profesionales para liderar y garantizar la implementacion y seguimiento de los procesos y prodecimientos del servicio social. | I57: Inversión | J57: Bogotá Mejor para Todos | K57: 3 | L57: =IF(ISERROR(VLOOKUP(K57,Eje_Pilar_Prop!$C$2:$E$104,2,FALSE))," ",VLOOKUP(K57,Eje_Pilar_Prop!$C$2:$E$104,2,FALSE)) -> Igualdad y autonomía para una Bogotá incluyente | M57: =IF(ISERROR(VLOOKUP(K57,Eje_Pilar_Prop!$C$2:$E$104,3,FALSE))," ",VLOOKUP(K57,Eje_Pilar_Prop!$C$2:$E$104,3,FALSE)) -> Pilar 1 Igualdad de Calidad de Vida | N57: 1453 | O57: 1016024724 | P57: GINA PAOLA RODRIGUEZ RIAÑO | Q57: 49344167 | T57: 0 | U57: 0 | V57: 49344167 | W57: 33015733 | X57: 2020-03-25 | Y57: 2020-03-25 | Z57: 2021-02-21 | AA57: 275 | AB57: 0 | AC57: 0 | AI57: X | AL57: 0.6690908978
A58: 44 | B58: 2020 | C58: SECOP II | D58: FDLF-CD-44-2020 | E58: Contratos de prestación de servicios | F58: Contratación Directa | G58: Prestación de servicios profesionales y de apoyo a la gestión, o para la ejecución de trabajos artísticos que sólo puedan encomendarse a determinadas personas naturales; | H58: Prestar servicios de apoyo a la gestión de la Alcaldia Local de Fontibon en la recepción de correspondencia interna y externa, asi como la signacion de solicitudes y/o correspondencia recibida. | I58: Inversión | J58: Bogotá Mejor para Todos | K58: 45 | L58: =IF(ISERROR(VLOOKUP(K58,Eje_Pilar_Prop!$C$2:$E$104,2,FALSE))," ",VLOOKUP(K58,Eje_Pilar_Prop!$C$2:$E$104,2,FALSE)) -> Gobernanza e influencia local, regional e internacional | M58: =IF(ISERROR(VLOOKUP(K58,Eje_Pilar_Prop!$C$2:$E$104,3,FALSE))," ",VLOOKUP(K58,Eje_Pilar_Prop!$C$2:$E$104,3,FALSE)) -> Eje Transversal 4 Gobierno Legitimo, Fortalecimiento Local y Eficiencia | N58: 1474 | O58: 52223673 | P58: SANDRA ROCIO VARGAS HERNANDEZ | Q58: 9452000 | T58: 1 | U58: 4726000 | V58: 14178000 | W58: 14178000 | X58: 2020-03-26 | Y58: 2020-03-30 | Z58: 2020-09-29 | AA58: 120 | AB58: 1 | AC58: 60 | AJ58: X | AL58: 1
A59: 45 | B59: 2020 | C59: SECOP II | D59: FDLF-CD-45-2020 | E59: Contratos de prestación de servicios | F59: Contratación Directa | G59: Prestación de servicios profesionales y de apoyo a la gestión, o para la ejecución de trabajos artísticos que sólo puedan encomendarse a determinadas personas naturales; | H59: Prestar servicios profesionales a la Alcaldia Local de Fontibon en la Administración de la Red de voz y datos, en la actualización y soporte con las tecnologias y sistemas de información,asi como el apoyo a la supervisión de los contratos que tienen relación con soportes tecnologicos y temas relacionados. | I59: Inversión | J59: Bogotá Mejor para Todos | K59: 45 | L59: =IF(ISERROR(VLOOKUP(K59,Eje_Pilar_Prop!$C$2:$E$104,2,FALSE))," ",VLOOKUP(K59,Eje_Pilar_Prop!$C$2:$E$104,2,FALSE)) -> Gobernanza e influencia local, regional e internacional | M59: =IF(ISERROR(VLOOKUP(K59,Eje_Pilar_Prop!$C$2:$E$104,3,FALSE))," ",VLOOKUP(K59,Eje_Pilar_Prop!$C$2:$E$104,3,FALSE)) -> Eje Transversal 4 Gobierno Legitimo, Fortalecimiento Local y Eficiencia | N59: 1474 | O59: 79955070 | P59: FERNANDO HUÉRFANO GUIZA | Q59: 22612000 | T59: 1 | U59: 11306000 | V59: 33918000 | W59: 33918000 | X59: 2020-03-26 | Y59: 2020-03-30 | Z59: 2020-09-29 | AA59: 120 | AB59: 1 | AC59: 60 | AJ59: X | AL59: 1
A60: 46 | B60: 2020 | C60: SECOP II | D60: FDLF-CD-046-2020 | E60: Contratos de prestación de servicios | F60: Contratación Directa | G60: Prestación de servicios profesionales y de apoyo a la gestión, o para la ejecución de trabajos artísticos que sólo puedan encomendarse a determinadas personas naturales; | H60: Prestar servicios técnicos para la operación,segumiento y cumplimiento de los procesos y procedimientos del servicio social Apoyo para la seguridada Economíca Tipo C,requerídos para el oportuno y adecuado registro,cruce y reporte de datos en el sistema de informacion y registro de beneficiarios SIRBE,que contribuyan a la garantia de los derechos de la poblacion mayor en el marco de la Politica Pública Social para el Envejecimiento y la Vejez en el Distrito Capital a cargo de la Alcaldia Local. | I60: Inversión | J60: Bogotá Mejor para Todos | K60: 3 | L60: =IF(ISERROR(VLOOKUP(K60,Eje_Pilar_Prop!$C$2:$E$104,2,FALSE))," ",VLOOKUP(K60,Eje_Pilar_Prop!$C$2:$E$104,2,FALSE)) -> Igualdad y autonomía para una Bogotá incluyente | M60: =IF(ISERROR(VLOOKUP(K60,Eje_Pilar_Prop!$C$2:$E$104,3,FALSE))," ",VLOOKUP(K60,Eje_Pilar_Prop!$C$2:$E$104,3,FALSE)) -> Pilar 1 Igualdad de Calidad de Vida | N60: 1453 | O60: 52771657 | P60: LUISA FERNANDA GARZON HERNANDEZ | Q60: 11936000 | T60: 1 | U60: 5968000 | V60: 17904000 | W60: 17605600 | X60: 2020-04-08 | Y60: 2020-04-13 | Z60: 2020-10-12 | AA60: 120 | AB60: 1 | AC60: 60 | AD60: 53080759 | AE60: VIVIANA ANDREA OJEDA VILLALBA | AF60: 2020-08-04 | AG60: 4177600 | AJ60: X | AL60: 0.9833333333
A61: 47 | B61: 2020 | C61: SECOP I | D61: FDLF-CD-47-2020 | E61: Contratos de prestación de servicios | F61: Contratación directa | G61: Urgencia manifiesta | H61: La Cruz Roja se obliga a prestar, a monto agotable, los servicios y realizar las acciones necesarias para la provisión y entrega de ayudas humanitarias y asistencia para la contingencia de la población pobre y vulnerable de Bogotá D.C., en el marco de Ia contención y migración del Co\ld-19, la declaratoria de emergencia sanitaria en todo el territorio nacional y la calamidad pública declarada en la ciudad de Bogotá D.C, de acuerdo a lo establecido en el manual Operativo del sistema Distrital Bogotá Solidaria en casa. | I61: Inversión | J61: Bogotá Mejor para Todos | K61: 3 | L61: =IF(ISERROR(VLOOKUP(K61,Eje_Pilar_Prop!$C$2:$E$104,2,FALSE))," ",VLOOKUP(K61,Eje_Pilar_Prop!$C$2:$E$104,2,FALSE)) -> Igualdad y autonomía para una Bogotá incluyente | M61: =IF(ISERROR(VLOOKUP(K61,Eje_Pilar_Prop!$C$2:$E$104,3,FALSE))," ",VLOOKUP(K61,Eje_Pilar_Prop!$C$2:$E$104,3,FALSE)) -> Pilar 1 Igualdad de Calidad de Vida | N61: 1453 | O61: 860070301-1 | P61: LA CRUZ ROJA COLOMBIANA SECCIONAL CUNDINAMARCA Y BOGOTA MODIFICATORIO VALOR | Q61: 1700543830 | T61: 0 | U61: 0 | V61: 1700543830 | W61: 1416810252 | X61: 2020-05-06 | Y61: 2020-05-15 | Z61: 2020-10-09 | AA61: 120 | AB61: 2 | AC61: 20 | AK61: X | AL61: 0.8331512702
A62: 48 | B62: 2020 | C62: SECOP II | D62: FDLF-CD-48-2020 | E62: Contratos de prestación de servicios | F62: Contratación mínima cuantia | G62: Prestación de servicios profesionales y de apoyo a la gestión, o para la ejecución de trabajos artísticos que sólo puedan encomendarse a determinadas personas naturales; | H62: Prestar servicios como profesional para realizar el proceso de liquidaciones de los contratos suscritos por el fondo de Desarrollo Local de Fontibón. | I62: Inversión | J62: Bogotá Mejor para Todos | K62: 45 | L62: =IF(ISERROR(VLOOKUP(K62,Eje_Pilar_Prop!$C$2:$E$104,2,FALSE))," ",VLOOKUP(K62,Eje_Pilar_Prop!$C$2:$E$104,2,FALSE)) -> Gobernanza e influencia local, regional e internacional | M62: =IF(ISERROR(VLOOKUP(K62,Eje_Pilar_Prop!$C$2:$E$104,3,FALSE))," ",VLOOKUP(K62,Eje_Pilar_Prop!$C$2:$E$104,3,FALSE)) -> Eje Transversal 4 Gobierno Legitimo, Fortalecimiento Local y Eficiencia | N62: 1474 | O62: 1123730820 | P62: RODRIGO JOSE ZABALETA BAÑOL | Q62: 19132000 | T62: 0 | U62: 0 | V62: 19132000 | W62: 16421634 | X62: 2020-05-08 | Y62: 2020-05-11 | Z62: 2020-08-24 | AA62: 120 | AB62: 0 | AC62: 0 | AJ62: X | AL62: 0.8583333682
A63: 49 | B63: 2020 | C63: SECOP II | D63: FDLF-CD-49-2020 | E63: Contratos de prestación de servicios | F63: Contratación Directa | G63: Prestación de servicios profesionales y de apoyo a la gestión, o para la ejecución de trabajos artísticos que sólo puedan encomendarse a determinadas personas naturales; | H63: Prestar servicios para apoyar juridicamente la ejecución de las acciones requeridas para la depuración de las actuaciones administartivas que cursan en la Alcaldía Local. | I63: Inversión | J63: Bogotá Mejor para Todos | K63: 45 | L63: =IF(ISERROR(VLOOKUP(K63,Eje_Pilar_Prop!$C$2:$E$104,2,FALSE))," ",VLOOKUP(K63,Eje_Pilar_Prop!$C$2:$E$104,2,FALSE)) -> Gobernanza e influencia local, regional e internacional | M63: =IF(ISERROR(VLOOKUP(K63,Eje_Pilar_Prop!$C$2:$E$104,3,FALSE))," ",VLOOKUP(K63,Eje_Pilar_Prop!$C$2:$E$104,3,FALSE)) -> Eje Transversal 4 Gobierno Legitimo, Fortalecimiento Local y Eficiencia | N63: 1474 | O63: 1033701606 | P63: CARLOS MAURICIO OVIEDO DÍAZ | Q63: 19132000 | T63: 0 | U63: 0 | V63: 19132000 | W63: 17378233 | X63: 2020-05-11 | Y63: 2020-05-12 | Z63: 2020-09-11 | AA63: 120 | AB63: 0 | AC63: 0 | AJ63: X | AL63: 0.9083333159
A64: 50 | B64: 2020 | C64: SECOP II | D64: FDLF-CD-50-2020 | E64: Contratos de prestación de servicios | F64: Contratación Directa | G64: Prestación de servicios profesionales y de apoyo a la gestión, o para la ejecución de trabajos artísticos que sólo puedan encomendarse a determinadas personas naturales; | H64: Prestar servicios como profesional de apoyo a la gestión relacionada con el espacio público,establecmientos de comercio y las acciones operativas para el control ambiental para el área de gestión policiva de la alcaldía local de fontibon. | I64: Inversión | J64: Bogotá Mejor para Todos | K64: 45 | L64: =IF(ISERROR(VLOOKUP(K64,Eje_Pilar_Prop!$C$2:$E$104,2,FALSE))," ",VLOOKUP(K64,Eje_Pilar_Prop!$C$2:$E$104,2,FALSE)) -> Gobernanza e influencia local, regional e internacional | M64: =IF(ISERROR(VLOOKUP(K64,Eje_Pilar_Prop!$C$2:$E$104,3,FALSE))," ",VLOOKUP(K64,Eje_Pilar_Prop!$C$2:$E$104,3,FALSE)) -> Eje Transversal 4 Gobierno Legitimo, Fortalecimiento Local y Eficiencia | N64: 1474 | O64: 1026270867 | P64: LEIDY JOHANNA SIERRA COLLAZOS | Q64: 19132000 | T64: 1 | U64: 9850199 | V64: 28982199 | W64: =28982199-3029233 -> 25952966 | X64: 2020-05-18 | Y64: 2020-05-20 | Z64: 2020-11-19 | AA64: 120 | AB64: 1 | AC64: 60 | AJ64: X | AL64: 0.8954795321
A65: 50 | B65: 2020 | E65: Otros | F65: Contratación directa | G65: No aplica | H65: PRESTAR LOS SERVICIOS DE NOTIFICACIÓN DE CORRESPONDENCIA DE LA ALCALDÍA LOCAL DE FONTIBÓN. CERTIFICADO DE NO EXISTENCIA DE PERSONAL 17140, RADICADO SIPSE 40102. SE EXPIDE CRP PARA COMPLETAR EL VALOR DE LA CUENTA POR PAGAR SEGÚN RESOLUCIÓN 050 DEL 18 MAYO 2020 | I65: Inversión | J65: Bogotá Mejor para Todos | K65: 45 | L65: =IF(ISERROR(VLOOKUP(K65,[1]Eje_Pilar_Prop!$C$2:$E$104,2,FALSE))," ",VLOOKUP(K65,[1]Eje_Pilar_Prop!$C$2:$E$104,2,FALSE)) -> Gobernanza e influencia local, regional e internacional | M65: =IF(ISERROR(VLOOKUP(K65,[1]Eje_Pilar_Prop!$C$2:$E$104,3,FALSE))," ",VLOOKUP(K65,[1]Eje_Pilar_Prop!$C$2:$E$104,3,FALSE)) -> Eje Transversal 4 Gobierno Legitimo, Fortalecimiento Local y Eficiencia | N65: 1474 | P65: JEFFERSON STEVEN PENAGOS BARRERA | Q65: 200000 | V65: 200000 | W65: 200000 | X65: 2020-06-05 | AK65: X | AL65: 1
A66: 51 | B66: 2020 | C66: SECOP II | D66: FDLF-CD-51-2020 | E66: Contratos de prestación de servicios | F66: Contratación Directa | G66: Prestación de servicios profesionales y de apoyo a la gestión, o para la ejecución de trabajos artísticos que sólo puedan encomendarse a determinadas personas naturales; | H66: Prestar servicioss para apoyar técnicamente las distintas etapas de los procesos de competencia de las inspecciones de policía de la localidad,según reparto | I66: Inversión | J66: Bogotá Mejor para Todos | K66: 45 | L66: =IF(ISERROR(VLOOKUP(K66,Eje_Pilar_Prop!$C$2:$E$104,2,FALSE))," ",VLOOKUP(K66,Eje_Pilar_Prop!$C$2:$E$104,2,FALSE)) -> Gobernanza e influencia local, regional e internacional | M66: =IF(ISERROR(VLOOKUP(K66,Eje_Pilar_Prop!$C$2:$E$104,3,FALSE))," ",VLOOKUP(K66,Eje_Pilar_Prop!$C$2:$E$104,3,FALSE)) -> Eje Transversal 4 Gobierno Legitimo, Fortalecimiento Local y Eficiencia | N66: 1474 | O66: 39536092 | P66: ANA YANET LEGUIZAMON FANDIÑO | Q66: 22612000 | T66: 0 | U66: 0 | V66: 22612000 | W66: 22612000 | X66: 2020-05-18 | Y66: 2020-05-22 | Z66: 2020-09-21 | AA66: 120 | AB66: 0 | AC66: 0 | AJ66: X | AL66: =IF(ISERROR(W66/V66),"-",(W66/V66)) -> 1
A67: 53 | B67: 2020 | C67: SECOP II | D67: FDLF-CD-53-2020 | E67: Contratos de prestación de servicios | F67: Contratación Directa | G67: Prestación de servicios profesionales y de apoyo a la gestión, o para la ejecución de trabajos artísticos que sólo puedan encomendarse a determinadas personas naturales; | H67: Servicios de apoyo al área de gestión del desarrollo local de fontibon en actividades inherentes a la planeación. | I67: Inversión | J67: Bogotá Mejor para Todos | K67: 45 | L67: =IF(ISERROR(VLOOKUP(K67,Eje_Pilar_Prop!$C$2:$E$104,2,FALSE))," ",VLOOKUP(K67,Eje_Pilar_Prop!$C$2:$E$104,2,FALSE)) -> Gobernanza e influencia local, regional e internacional | M67: =IF(ISERROR(VLOOKUP(K67,Eje_Pilar_Prop!$C$2:$E$104,3,FALSE))," ",VLOOKUP(K67,Eje_Pilar_Prop!$C$2:$E$104,3,FALSE)) -> Eje Transversal 4 Gobierno Legitimo, Fortalecimiento Local y Eficiencia | N67: 1474 | O67: 51712771 | P67: MARIA ELENA SARMIENTO FRANCO | Q67: 9452000 | T67: 1 | U67: 4726000 | V67: 14178000 | W67: 14178000 | X67: 2020-05-19 | Y67: 2020-05-20 | Z67: 2020-11-19 | AA67: 120 | AB67: 1 | AC67: 60 | AJ67: X | AL67: =IF(ISERROR(W67/V67),"-",(W67/V67)) -> 1
A68: 54 | B68: 2020 | C68: SECOP II | D68: FDLF-CD-54-2020 | E68: Contratos de prestación de servicios | F68: Contratación Directa | G68: Prestación de servicios profesionales y de apoyo a la gestión, o para la ejecución de trabajos artísticos que sólo puedan encomendarse a determinadas personas naturales; | H68: Prestar servicios profesionales para apoyar jurídicamente los diferentes procesos que requiera adelantar la Alcaldía Local de Fontibón desde las etapas precontractual, contractual y post contractual. | I68: Inversión | J68: Bogotá Mejor para Todos | K68: 45 | L68: =IF(ISERROR(VLOOKUP(K68,Eje_Pilar_Prop!$C$2:$E$104,2,FALSE))," ",VLOOKUP(K68,Eje_Pilar_Prop!$C$2:$E$104,2,FALSE)) -> Gobernanza e influencia local, regional e internacional | M68: =IF(ISERROR(VLOOKUP(K68,Eje_Pilar_Prop!$C$2:$E$104,3,FALSE))," ",VLOOKUP(K68,Eje_Pilar_Prop!$C$2:$E$104,3,FALSE)) -> Eje Transversal 4 Gobierno Legitimo, Fortalecimiento Local y Eficiencia | N68: 1474 | O68: 52489713 | P68: EDNA LORENA YISSETH LEON SAAVEDRA | Q68: 30000000 | T68: 2 | U68: =12400000+2600000 -> 15000000 | V68: 45000000 | W68: 36400000 | X68: 2020-05-28 | Y68: 2020-05-29 | Z68: 2021-01-13 | AA68: 150 | AB68: 2 | AC68: 62 | AI68: X | AL68: =IF(ISERROR(W68/V68),"-",(W68/V68)) -> 0.8088888889
A69: 54 | B69: 2020 | E69: Otros | F69: Contratación directa | G69: No aplica | H69: AUTORIZAR LA TRANSFERENCIA DE RECURSOS CON DESTINO A LA DIRECCIÓN DSITRITAL DE TESORERIA PARA ATENDER EL CANAL DE TRANSFERENCIAS MONETARIAS SEGÚN RESOLUCIÓN 054 DEL 09 DE JUNIO DE 2020 DE LA ALCALDÍA LOCAL DE FONTIBÓN. SOLCITUD DE CRP 10-06-2020 | I69: Inversión | J69: Bogotá Mejor para Todos | K69: 3 | L69: =IF(ISERROR(VLOOKUP(K69,[1]Eje_Pilar_Prop!$C$2:$E$104,2,FALSE))," ",VLOOKUP(K69,[1]Eje_Pilar_Prop!$C$2:$E$104,2,FALSE)) -> Igualdad y autonomía para una Bogotá incluyente | M69: =IF(ISERROR(VLOOKUP(K69,[1]Eje_Pilar_Prop!$C$2:$E$104,3,FALSE))," ",VLOOKUP(K69,[1]Eje_Pilar_Prop!$C$2:$E$104,3,FALSE)) -> Pilar 1 Igualdad de Calidad de Vida | N69: 1453 | O69: 899999061-2 | P69: FONDO DE DESARROLLO LOCAL DE FONTIBON | Q69: 425135957 | V69: 425135957 | W69: 425135957 | X69: 2020-06-09 | AK69: X | AL69: =IF(ISERROR(W69/V69),"-",(W69/V69)) -> 1
A70: 55 | B70: 2020 | C70: SECOP II | D70: FDLF-CD-55-2020 | E70: Contratos de prestación de servicios | F70: Contratación Directa | G70: Prestación de servicios profesionales y de apoyo a la gestión, o para la ejecución de trabajos artísticos que sólo puedan encomendarse a determinadas personas naturales; | H70: Prestar servicios profesionales para apoyar jurídicamente los diferentes procesos que requiera adelantar la Alcaldía Local de Fontibón desde las etapas precontractual, contractual y post contractual. | I70: Inversión | J70: Bogotá Mejor para Todos | K70: 45 | L70: =IF(ISERROR(VLOOKUP(K70,Eje_Pilar_Prop!$C$2:$E$104,2,FALSE))," ",VLOOKUP(K70,Eje_Pilar_Prop!$C$2:$E$104,2,FALSE)) -> Gobernanza e influencia local, regional e internacional | M70: =IF(ISERROR(VLOOKUP(K70,Eje_Pilar_Prop!$C$2:$E$104,3,FALSE))," ",VLOOKUP(K70,Eje_Pilar_Prop!$C$2:$E$104,3,FALSE)) -> Eje Transversal 4 Gobierno Legitimo, Fortalecimiento Local y Eficiencia | N70: 1474 | O70: 1026255330 | P70: CHRISTIAN CAMILO CRUZ MEJIA | Q70: 30000000 | T70: 1 | U70: 11800000 | V70: 41800000 | W70: 28200000 | X70: 2020-05-29 | Y70: 2020-06-02 | Z70: 2020-12-30 | AA70: 150 | AB70: 1 | AC70: 59 | AD70: 1118541837 | AE70: ZAIDA VIANNEY RODRIGUEZ RODRIGUEZ | AF70: 2020-10-09 | AG70: 4580000 | AJ70: X | AL70: =IF(ISERROR(W70/V70),"-",(W70/V70)) -> 0.6746411483
A71: 56 | B71: 2020 | C71: SECOP II | D71: FDLF-CD-56-2020 | E71: Contratos de prestación de servicios | F71: Contratación Directa | G71: Prestación de servicios profesionales y de apoyo a la gestión, o para la ejecución de trabajos artísticos que sólo puedan encomendarse a determinadas personas naturales; | H71: Prestar servicios profesionales de apoyo a presupuesto en el Fondo de Desarrollo Local de Fontibón en el registro, análisis y gestión de obligaciones por pagar y otros asuntos que en materia de presupuesto local le sean asignados. | I71: Inversión | J71: Bogotá Mejor para Todos | K71: 45 | L71: =IF(ISERROR(VLOOKUP(K71,Eje_Pilar_Prop!$C$2:$E$104,2,FALSE))," ",VLOOKUP(K71,Eje_Pilar_Prop!$C$2:$E$104,2,FALSE)) -> Gobernanza e influencia local, regional e internacional | M71: =IF(ISERROR(VLOOKUP(K71,Eje_Pilar_Prop!$C$2:$E$104,3,FALSE))," ",VLOOKUP(K71,Eje_Pilar_Prop!$C$2:$E$104,3,FALSE)) -> Eje Transversal 4 Gobierno Legitimo, Fortalecimiento Local y Eficiencia | N71: 1474 | O71: 1014177647 | P71: NAIRA CAROLINA PARRA BELTRAN | Q71: 19132000 | T71: 0 | U71: 0 | V71: 19132000 | W71: 19132000 | X71: 2020-05-29 | Y71: 2020-06-02 | Z71: 2020-10-01 | AA71: 120 | AB71: 0 | AC71: 0 | AJ71: X | AL71: 1
A72: 57 | B72: 2020 | C72: SECOP II | D72: FDLF-CD-57-2020 | E72: Contratos de prestación de servicios | F72: Contratación Directa | G72: Prestación de servicios profesionales y de apoyo a la gestión, o para la ejecución de trabajos artísticos que sólo puedan encomendarse a determinadas personas naturales; | H72: Servicios para el apoyo en la conducción de vehículos al servicio de la Alcaldía Local de Fontibón.” | I72: Inversión | J72: Bogotá Mejor para Todos | K72: 45 | L72: =IF(ISERROR(VLOOKUP(K72,Eje_Pilar_Prop!$C$2:$E$104,2,FALSE))," ",VLOOKUP(K72,Eje_Pilar_Prop!$C$2:$E$104,2,FALSE)) -> Gobernanza e influencia local, regional e internacional | M72: =IF(ISERROR(VLOOKUP(K72,Eje_Pilar_Prop!$C$2:$E$104,3,FALSE))," ",VLOOKUP(K72,Eje_Pilar_Prop!$C$2:$E$104,3,FALSE)) -> Eje Transversal 4 Gobierno Legitimo, Fortalecimiento Local y Eficiencia | N72: 1474 | O72: 11385997 | P72: JULIO ARMANDO GARZON MONTAÑEZ | Q72: 9452000 | T72: 0 | U72: 0 | V72: 9452000 | W72: 9452000 | X72: 2020-06-01 | Y72: 2020-06-02 | Z72: 2020-10-01 | AA72: 120 | AB72: 0 | AC72: 0 | AJ72: X | AL72: 1
A73: 58 | B73: 2020 | C73: SECOP II | D73: FDLF-CD-58-2020 | E73: Contratos de prestación de servicios | F73: Contratación Directa | G73: Prestación de servicios profesionales y de apoyo a la gestión, o para la ejecución de trabajos artísticos que sólo puedan encomendarse a determinadas personas naturales; | H73: Prestar servicios profesionales para apoyar el área de gestión de desarrollo local orientada a los temas culturales | I73: Inversión | J73: Bogotá Mejor para Todos | K73: 11 | L73: =IF(ISERROR(VLOOKUP(K73,Eje_Pilar_Prop!$C$2:$E$104,2,FALSE))," ",VLOOKUP(K73,Eje_Pilar_Prop!$C$2:$E$104,2,FALSE)) -> Mejores oportunidades para el desarrollo a través de la cultura, la recreación y el deporte | M73: =IF(ISERROR(VLOOKUP(K73,Eje_Pilar_Prop!$C$2:$E$104,3,FALSE))," ",VLOOKUP(K73,Eje_Pilar_Prop!$C$2:$E$104,3,FALSE)) -> Pilar 1 Igualdad de Calidad de Vida | N73: 1458 | O73: 80040922 | P73: ANDRES FERNANDO ACERO DIAZ | Q73: 19132000 | T73: 0 | U73: 0 | V73: 19132000 | W73: 19132000 | X73: 2020-06-02 | Y73: 2020-06-03 | Z73: 2020-10-02 | AA73: 120 | AB73: 0 | AC73: 0 | AJ73: X | AL73: 1
A74: 59 | B74: 2020 | C74: SECOP II | D74: FDLF-CD-59-2020 | E74: Contratos de prestación de servicios | F74: Contratación Directa | G74: Prestación de servicios profesionales y de apoyo a la gestión, o para la ejecución de trabajos artísticos que sólo puedan encomendarse a determinadas personas naturales; | H74: Prestar servicios como profesional para realizar el proceso de liquidaciones de los contratos suscritos por el fondo de Desarrollo Local de Fontibón. | I74: Inversión | J74: Bogotá Mejor para Todos | K74: 45 | L74: =IF(ISERROR(VLOOKUP(K74,Eje_Pilar_Prop!$C$2:$E$104,2,FALSE))," ",VLOOKUP(K74,Eje_Pilar_Prop!$C$2:$E$104,2,FALSE)) -> Gobernanza e influencia local, regional e internacional | M74: =IF(ISERROR(VLOOKUP(K74,Eje_Pilar_Prop!$C$2:$E$104,3,FALSE))," ",VLOOKUP(K74,Eje_Pilar_Prop!$C$2:$E$104,3,FALSE)) -> Eje Transversal 4 Gobierno Legitimo, Fortalecimiento Local y Eficiencia | N74: 1474 | O74: 79997685 | P74: NESTOR CAMILO FLORIAN TORRES | Q74: 19132000 | T74: 0 | U74: 0 | V74: 19132000 | W74: 19132000 | X74: 2020-06-01 | Y74: 2020-06-08 | Z74: 2020-10-07 | AA74: 120 | AB74: 0 | AC74: 0 | AJ74: X | AL74: 1
A75: 60 | B75: 2020 | C75: SECOP II | D75: FDLF-CD-60-2020 | E75: Contratos de prestación de servicios | F75: Contratación Directa | G75: Prestación de servicios profesionales y de apoyo a la gestión, o para la ejecución de trabajos artísticos que sólo puedan encomendarse a determinadas personas naturales; | H75: Prestar servicios profesionales para apoyar al alcalde (sa) local en la promoción, acompañamiento,coordinación y atención de las instancias de coordinación interinstucionales y las instintas de participacion locales asi como los procesos comunitarios en la localidad. | I75: Inversión | J75: Bogotá Mejor para Todos | K75: 45 | L75: =IF(ISERROR(VLOOKUP(K75,Eje_Pilar_Prop!$C$2:$E$104,2,FALSE))," ",VLOOKUP(K75,Eje_Pilar_Prop!$C$2:$E$104,2,FALSE)) -> Gobernanza e influencia local, regional e internacional | M75: =IF(ISERROR(VLOOKUP(K75,Eje_Pilar_Prop!$C$2:$E$104,3,FALSE))," ",VLOOKUP(K75,Eje_Pilar_Prop!$C$2:$E$104,3,FALSE)) -> Eje Transversal 4 Gobierno Legitimo, Fortalecimiento Local y Eficiencia | N75: 1473 | O75: 1016040453 | P75: HENRY ANDRÉS TENORIO ALBÁN | Q75: 19132000 | T75: 0 | U75: 0 | V75: 19132000 | W75: 18813133 | X75: 2020-06-02 | Y75: 2020-06-03 | Z75: 2020-10-02 | AA75: 120 | AB75: 0 | AC75: 0 | AJ75: X | AL75: 0.9833333159
A76: 61 | B76: 2020 | C76: SECOP II | D76: FDLF-CD-61-2020 | E76: Contratos de prestación de servicios | F76: Contratación Directa | G76: Prestación de servicios profesionales y de apoyo a la gestión, o para la ejecución de trabajos artísticos que sólo puedan encomendarse a determinadas personas naturales; | H76: Prestar servicios profesionales para apoyar jurídicamente los diferentes procesos que requiera adelantar la Alcaldía Local de Fontibón desde las etapas precontractual, contractual y post contractual. | I76: Inversión | J76: Bogotá Mejor para Todos | K76: 45 | L76: =IF(ISERROR(VLOOKUP(K76,Eje_Pilar_Prop!$C$2:$E$104,2,FALSE))," ",VLOOKUP(K76,Eje_Pilar_Prop!$C$2:$E$104,2,FALSE)) -> Gobernanza e influencia local, regional e internacional | M76: =IF(ISERROR(VLOOKUP(K76,Eje_Pilar_Prop!$C$2:$E$104,3,FALSE))," ",VLOOKUP(K76,Eje_Pilar_Prop!$C$2:$E$104,3,FALSE)) -> Eje Transversal 4 Gobierno Legitimo, Fortalecimiento Local y Eficiencia | N76: 1474 | O76: 40390477 | P76: BLANCA OLIVA CORDOBA MARTINEZ | Q76: 30000000 | T76: 2 | U76: =11800000+3200000 -> 15000000 | V76: 45000000 | W76: 35800000 | X76: 2020-06-01 | Y76: 2020-06-02 | Z76: 2021-01-16 | AA76: 150 | AB76: 2 | AC76: 59 | AD76: 1123730820 | AE76: RODRIGO JOSE ZABALETA BAÑOL | AF76: 2020-08-21 | AG76: 14200000 | AI76: X | AL76: 0.7955555556
A77: 62 | B77: 2020 | C77: SECOP II | D77: FDLF-CD-62-2020 | E77: Contratos de prestación de servicios | F77: Contratación Directa | G77: Prestación de servicios profesionales y de apoyo a la gestión, o para la ejecución de trabajos artísticos que sólo puedan encomendarse a determinadas personas naturales; | H77: PRESTAR SERVICIOS PROFESIONALES PARA APOYAR EL FORTALECIMIENTO DE LA GESTIÓN LOCAL DE RIESGO Y CAMBIO CLIMÁTICO EN EL MARCO DEL SISTEMA DISTRITAL DE GESTIÓN DE RIESGOS Y CAMBIO CLIMÁTICO DSGR-CC. | I77: Inversión | J77: Bogotá Mejor para Todos | K77: 45 | L77: =IF(ISERROR(VLOOKUP(K77,Eje_Pilar_Prop!$C$2:$E$104,2,FALSE))," ",VLOOKUP(K77,Eje_Pilar_Prop!$C$2:$E$104,2,FALSE)) -> Gobernanza e influencia local, regional e internacional | M77: =IF(ISERROR(VLOOKUP(K77,Eje_Pilar_Prop!$C$2:$E$104,3,FALSE))," ",VLOOKUP(K77,Eje_Pilar_Prop!$C$2:$E$104,3,FALSE)) -> Eje Transversal 4 Gobierno Legitimo, Fortalecimiento Local y Eficiencia | N77: 1474 | O77: 80166442 | P77: CARLOS ANDRES MARIN BAUTISTA | Q77: 16800000 | T77: 0 | U77: 0 | V77: 16800000 | W77: 16800000 | X77: 2020-06-09 | Y77: 2020-06-11 | Z77: 2020-10-10 | AA77: 120 | AB77: 0 | AC77: 0 | AJ77: X | AL77: 1
A78: 63 | B78: 2020 | C78: SECOP II | D78: FDLF-CD-63-2020 | E78: Contratos de prestación de servicios | F78: Contratación Directa | G78: Prestación de servicios profesionales y de apoyo a la gestión, o para la ejecución de trabajos artísticos que sólo puedan encomendarse a determinadas personas naturales; | H78: PRESTACIÓN DE SERVICIOS DE APOYO TÉCNICO AL ÁREA DE GESTIÓN DE DESARROLLO LOCAL EN PLANEACIÓN EN LAS ACTIVIDADES QUE SE REQUIERAN, DE CONFORMIDAD CON LOS ESTUDIOS PREVIOS. | I78: Inversión | J78: Bogotá Mejor para Todos | K78: 45 | L78: =IF(ISERROR(VLOOKUP(K78,Eje_Pilar_Prop!$C$2:$E$104,2,FALSE))," ",VLOOKUP(K78,Eje_Pilar_Prop!$C$2:$E$104,2,FALSE)) -> Gobernanza e influencia local, regional e internacional | M78: =IF(ISERROR(VLOOKUP(K78,Eje_Pilar_Prop!$C$2:$E$104,3,FALSE))," ",VLOOKUP(K78,Eje_Pilar_Prop!$C$2:$E$104,3,FALSE)) -> Eje Transversal 4 Gobierno Legitimo, Fortalecimiento Local y Eficiencia | N78: 1474 | O78: 52352116 | P78: NELLY ANGELICA MELENDEZ NUÑEZ | Q78: 22800000 | T78: 1 | U78: 3800000 | V78: =+Q78+S78+U78 -> 26600000 | W78: 21660000 | X78: 2020-06-05 | Y78: 2020-06-10 | Z78: 2021-01-09 | AA78: 180 | AB78: 1 | AC78: 30 | AI78: X | AL78: 0.8142857143
A79: 63 | B79: 2020 | E79: Otros | F79: Contratación directa | G79: No aplica | H79: RESOLUCION N° 63 DE 2020, POR MEDIO DE LA CUAL SE GARANTIZA EL GASTO Y PAGO CORRESPONDIENTE AL PROYECTO N° 1453 FONTIBON INCLUYENTE,DIGNO Y FELIZ PARA PERSONAS MAYORES Y EN CONDICIÓN DE DISCAPACIDAD COMPONENTE: ENTREGA DE SUBSIDIO ECONOMICO TIPO C, VIGENCIA 2020, DESDE LOS MESES DE JULIO DE 2020 A ENERO DE 2021, SE EXPIDE CRP SEGÚN MEMORANDO 20205900001733 DE FECHA JUL 16 DE 2020. | I79: Inversión | J79: Bogotá Mejor para Todos | K79: 3 | L79: =IF(ISERROR(VLOOKUP(K79,[1]Eje_Pilar_Prop!$C$2:$E$104,2,FALSE))," ",VLOOKUP(K79,[1]Eje_Pilar_Prop!$C$2:$E$104,2,FALSE)) -> Igualdad y autonomía para una Bogotá incluyente | M79: =IF(ISERROR(VLOOKUP(K79,[1]Eje_Pilar_Prop!$C$2:$E$104,3,FALSE))," ",VLOOKUP(K79,[1]Eje_Pilar_Prop!$C$2:$E$104,3,FALSE)) -> Pilar 1 Igualdad de Calidad de Vida | N79: 1453 | O79: 860.066942-7 | P79: CAJA DE COMPENSACION FAMILIAR COMPENSAR | Q79: 857500000 | V79: 857500000 | W79: 735000000 | X79: 2020-07-07 | Y79: 2020-07-07 | Z79: 2021-02-06 | AA79: =7*30 -> 210 | AI79: X | AL79: 0.8571428571
A80: 64 | B80: 2020 | C80: SECOP II | D80: FDLF-CD-64-2020 | E80: Contratos de prestación de servicios | F80: Contratación Directa | G80: Prestación de servicios profesionales y de apoyo a la gestión, o para la ejecución de trabajos artísticos que sólo puedan encomendarse a determinadas personas naturales; | H80: PRESTAR SERVICIOS COMO PROFESIONAL PARA REALIZAR EL PROCESO DE LIQUIDACIONES DE LOS CONTRATOS SUSCRITOS POR EL FONDO DE DESARROLLO LOCAL DE FONTIBÓN | I80: Inversión | J80: Bogotá Mejor para Todos | K80: 45 | L80: =IF(ISERROR(VLOOKUP(K80,Eje_Pilar_Prop!$C$2:$E$104,2,FALSE))," ",VLOOKUP(K80,Eje_Pilar_Prop!$C$2:$E$104,2,FALSE)) -> Gobernanza e influencia local, regional e internacional | M80: =IF(ISERROR(VLOOKUP(K80,Eje_Pilar_Prop!$C$2:$E$104,3,FALSE))," ",VLOOKUP(K80,Eje_Pilar_Prop!$C$2:$E$104,3,FALSE)) -> Eje Transversal 4 Gobierno Legitimo, Fortalecimiento Local y Eficiencia | N80: 1474 | O80: 51800753 | P80: MARIBEL SOLIS AVILA | Q80: 19132000 | T80: 0 | U80: 0 | V80: 19132000 | W80: 17537667 | X80: 2020-06-09 | Y80: 2020-06-11 | Z80: 2020-10-10 | AA80: 120 | AB80: 0 | AC80: 0 | AJ80: X | AL80: =IF(ISERROR(W80/V80),"-",(W80/V80)) -> 0.9166666841
A81: 64 | B81: 2020 | E81: Otros | F81: Contratación directa | G81: No aplica | H81: RESOLUCION N° 64 DE 2020, POR MEDIO DE LA CUAL SE GARANTIZA EL PAGO DE LOS COSTOS OPERATIVOS QUE CAUSEN EN EL DESARROLLO DEL CONVENIO N°4002 DE 2011, CELEBRADO ENTRE LA ALCALDIA LOCAL DE FONTIBÓN Y LA CAJA DE COMPENSACION FAMILIAR COMPENSAR, DENTRO DEL PROYECTO N° 1453 DE LA LOCALIDAD DE FONTIBÓN, VIGENCIA 2020, CON COBERTURA DE JULIO DE 2020 A ENERO DE 2021, SE EXPIDE CRP SEGÚN MEMORANDO 20205900001723 DE FECHA JUL 16 DE 2020. | I81: Inversión | J81: Bogotá Mejor para Todos | K81: 3 | L81: =IF(ISERROR(VLOOKUP(K81,[1]Eje_Pilar_Prop!$C$2:$E$104,2,FALSE))," ",VLOOKUP(K81,[1]Eje_Pilar_Prop!$C$2:$E$104,2,FALSE)) -> Igualdad y autonomía para una Bogotá incluyente | M81: =IF(ISERROR(VLOOKUP(K81,[1]Eje_Pilar_Prop!$C$2:$E$104,3,FALSE))," ",VLOOKUP(K81,[1]Eje_Pilar_Prop!$C$2:$E$104,3,FALSE)) -> Pilar 1 Igualdad de Calidad de Vida | N81: 1453 | O81: 860.066942-7 | P81: CAJA DE COMPENSACION FAMILIAR COMPENSAR | Q81: 11900000 | V81: 11900000 | W81: 6376755 | X81: 2020-07-07 | Y81: 2020-07-07 | Z81: 2021-02-06 | AA81: =7*30 -> 210 | AI81: X | AL81: =IF(ISERROR(W81/V81),"-",(W81/V81)) -> 0.5358617647
A82: 65 | B82: 2020 | C82: SECOP II | D82: FDLF-CD-65-2020 | E82: Contratos de prestación de servicios | F82: Contratación Directa | G82: Prestación de servicios profesionales y de apoyo a la gestión, o para la ejecución de trabajos artísticos que sólo puedan encomendarse a determinadas personas naturales; | H82: PRESTAR SERVICIOS COMO PROFESIONAL PARA REALIZAR EL PROCESO DE LIQUIDACIONES DE LOS CONTRATOS SUSCRITOS POR EL FONDO DE DESARROLLO LOCAL DE FONTIBÓN | I82: Inversión | J82: Bogotá Mejor para Todos | K82: 45 | L82: =IF(ISERROR(VLOOKUP(K82,Eje_Pilar_Prop!$C$2:$E$104,2,FALSE))," ",VLOOKUP(K82,Eje_Pilar_Prop!$C$2:$E$104,2,FALSE)) -> Gobernanza e influencia local, regional e internacional | M82: =IF(ISERROR(VLOOKUP(K82,Eje_Pilar_Prop!$C$2:$E$104,3,FALSE))," ",VLOOKUP(K82,Eje_Pilar_Prop!$C$2:$E$104,3,FALSE)) -> Eje Transversal 4 Gobierno Legitimo, Fortalecimiento Local y Eficiencia | N82: 1474 | O82: 60315384 | P82: MARTHA LUCIA VEGA RAMIREZ | Q82: 19132000 | T82: 0 | U82: 0 | V82: 19132000 | W82: 19132000 | X82: 2020-06-05 | Y82: 2020-06-08 | Z82: 2020-10-07 | AA82: 120 | AB82: 0 | AC82: 0 | AJ82: X | AL82: =IF(ISERROR(W82/V82),"-",(W82/V82)) -> 1
A83: 66 | B83: 2020 | C83: SECOP II | D83: FDLF-CD-66-2020 | E83: Contratos de prestación de servicios | F83: Contratación Directa | G83: Prestación de servicios profesionales y de apoyo a la gestión, o para la ejecución de trabajos artísticos que sólo puedan encomendarse a determinadas personas naturales; | H83: SERVICIOS PARA EL APOYO EN LA CONDUCCIÓN DE VEHÍCULOS AL SERVICIO DE LA ALCALDÍA LOCAL DE FONTIBÓN. | I83: Inversión | J83: Bogotá Mejor para Todos | K83: 45 | L83: =IF(ISERROR(VLOOKUP(K83,Eje_Pilar_Prop!$C$2:$E$104,2,FALSE))," ",VLOOKUP(K83,Eje_Pilar_Prop!$C$2:$E$104,2,FALSE)) -> Gobernanza e influencia local, regional e internacional | M83: =IF(ISERROR(VLOOKUP(K83,Eje_Pilar_Prop!$C$2:$E$104,3,FALSE))," ",VLOOKUP(K83,Eje_Pilar_Prop!$C$2:$E$104,3,FALSE)) -> Eje Transversal 4 Gobierno Legitimo, Fortalecimiento Local y Eficiencia | N83: 1474 | O83: 80066595 | P83: JHON FREDY ORDUZ ORTIZ | Q83: 9452000 | T83: 0 | U83: 0 | V83: 9452000 | W83: 9452000 | X83: 2020-06-08 | Y83: 2020-06-18 | Z83: 2020-10-17 | AA83: 120 | AB83: 0 | AC83: 0 | AJ83: X | AL83: =IF(ISERROR(W83/V83),"-",(W83/V83)) -> 1
A84: 67 | B84: 2020 | C84: SECOP II | D84: FDLF-CD-67-2020 | E84: Contratos de prestación de servicios | F84: Contratación Directa | G84: Prestación de servicios profesionales y de apoyo a la gestión, o para la ejecución de trabajos artísticos que sólo puedan encomendarse a determinadas personas naturales; | H84: PRESTACIÓN DE SERVICIOS COMO PROFESIONAL ESPECIALIZADO PARA ORIENTAR AL ÁREA DE GESTIÓN DE DESARROLLO EN LAS ACTIVIDADES DE REVISIÓN, CONTROL, SEGUIMIENTO A LOS PROYECTOS A CARGO DE LA ALCALDÍA LOCAL DE FONTIBÓN. | I84: Inversión | J84: Bogotá Mejor para Todos | K84: 45 | L84: =IF(ISERROR(VLOOKUP(K84,Eje_Pilar_Prop!$C$2:$E$104,2,FALSE))," ",VLOOKUP(K84,Eje_Pilar_Prop!$C$2:$E$104,2,FALSE)) -> Gobernanza e influencia local, regional e internacional | M84: =IF(ISERROR(VLOOKUP(K84,Eje_Pilar_Prop!$C$2:$E$104,3,FALSE))," ",VLOOKUP(K84,Eje_Pilar_Prop!$C$2:$E$104,3,FALSE)) -> Eje Transversal 4 Gobierno Legitimo, Fortalecimiento Local y Eficiencia | N84: 1474 | O84: 32294897 | P84: YAJAIRA CUESTA MACHUCA | Q84: 45000000 | T84: 1 | U84: 15000000 | V84: 60000000 | W84: 40750000 | X84: 2020-06-16 | Y84: 2020-06-18 | Z84: 2021-02-17 | AA84: 180 | AB84: 0 | AC84: 0 | AI84: X | AL84: =IF(ISERROR(W84/V84),"-",(W84/V84)) -> 0.6791666667
A85: 67 | B85: 2020 | E85: Otros | F85: Contratación directa | G85: No aplica | H85: POR EL CUAL SE AUTORIZA LA TRANSFERENCIA DE RECURSOS CON DESTINO A LA DIRECCIÓN DISTRITAL DE TESORERIA PARA ATENDER EL CANAL DE TRANSFERENCIAS MONETARIAS SEGÚN RESOLUCIÓN 067 DEL 22 DE JULIO DE 2020 DE LA ALCALDÍA LOCAL DE FONTIBÓN. SOLICITUD DE CRP 22-JULIO-2020 | I85: Inversión | J85: Bogotá Mejor para Todos | K85: 3 | L85: =IF(ISERROR(VLOOKUP(K85,[1]Eje_Pilar_Prop!$C$2:$E$104,2,FALSE))," ",VLOOKUP(K85,[1]Eje_Pilar_Prop!$C$2:$E$104,2,FALSE)) -> Igualdad y autonomía para una Bogotá incluyente | M85: =IF(ISERROR(VLOOKUP(K85,[1]Eje_Pilar_Prop!$C$2:$E$104,3,FALSE))," ",VLOOKUP(K85,[1]Eje_Pilar_Prop!$C$2:$E$104,3,FALSE)) -> Pilar 1 Igualdad de Calidad de Vida | N85: 1453 | O85: 899999061-2 | P85: FONDO DE DESARROLLO LOCAL DE FONTIBON | Q85: 1517521995 | V85: 1517521995 | W85: 1517521995 | X85: 2020-07-22 | AJ85: X | AL85: =IF(ISERROR(W85/V85),"-",(W85/V85)) -> 1
A86: 68 | B86: 2020 | C86: SECOP II | D86: FDLF-CD-68-2020 | E86: Contratos de prestación de servicios | F86: Contratación Directa | G86: Prestación de servicios profesionales y de apoyo a la gestión, o para la ejecución de trabajos artísticos que sólo puedan encomendarse a determinadas personas naturales; | H86: PRESTACIÓN DE SERVICIOS ESPECIALIZADOS DE APOYO AL DESPACHO DEL ALCALDE LOCAL EN LA REVISIÓN, GESTIÓN, EJECUCIÓN Y SEGUIMIENTO DE LA EJECUCIÓN PRESUPUESTAL, PROCESO ADMINISTRATIVOS, CONTRACTUALES Y ORGANIZACIONALES DEL ÁREA DE GESTIÓN POLICIVA Y JURÍDICA Y EL ÁREA DE GESTIÓN DE DESARROLLO LOCAL QUE LE SEAN REQUERIDOS, DE CONFORMIDAD CON LOS ESTUDIOS PREVIOS. | I86: Inversión | J86: Bogotá Mejor para Todos | K86: 45 | L86: =IF(ISERROR(VLOOKUP(K86,Eje_Pilar_Prop!$C$2:$E$104,2,FALSE))," ",VLOOKUP(K86,Eje_Pilar_Prop!$C$2:$E$104,2,FALSE)) -> Gobernanza e influencia local, regional e internacional | M86: =IF(ISERROR(VLOOKUP(K86,Eje_Pilar_Prop!$C$2:$E$104,3,FALSE))," ",VLOOKUP(K86,Eje_Pilar_Prop!$C$2:$E$104,3,FALSE)) -> Eje Transversal 4 Gobierno Legitimo, Fortalecimiento Local y Eficiencia | N86: 1474 | O86: 1014182635 | P86: HEIDI VANESSA SARAY GUATAQUIRA | Q86: 48000000 | T86: 1 | U86: 16000000 | V86: 64000000 | W86: 43466666 | X86: 2020-06-12 | Y86: 2020-06-18 | Z86: 2021-02-17 | AA86: 180 | AB86: 1 | AC86: 60 | AI86: X | AL86: =IF(ISERROR(W86/V86),"-",(W86/V86)) -> 0.6791666562
A87: 69 | B87: 2020 | C87: SECOP II | D87: FDLF-CD-69-2020 | E87: Contratos de prestación de servicios | F87: Contratación Directa | G87: Prestación de servicios profesionales y de apoyo a la gestión, o para la ejecución de trabajos artísticos que sólo puedan encomendarse a determinadas personas naturales; | H87: PRESTAR SERVICIOS PROFESIONALES ESPECIALIZADOS AL DESPACHO DEL ALCALDE LOCAL DE FONTIBÓN PARA ARTICULAR LA IMPLEMENTACIÓN DE PROCESOS ORIENTADOS A MEJORAR LA SEGURIDAD Y CONVIVENCIA EN LA LOCALIDAD DE FONTIBÓN A TRAVÉS DE LA PREVENCIÓN Y CONTROL DE DELITOS. | I87: Inversión | J87: Bogotá Mejor para Todos | K87: 19 | L87: =IF(ISERROR(VLOOKUP(K87,Eje_Pilar_Prop!$C$2:$E$104,2,FALSE))," ",VLOOKUP(K87,Eje_Pilar_Prop!$C$2:$E$104,2,FALSE)) -> Seguridad y convivencia para todos | M87: =IF(ISERROR(VLOOKUP(K87,Eje_Pilar_Prop!$C$2:$E$104,3,FALSE))," ",VLOOKUP(K87,Eje_Pilar_Prop!$C$2:$E$104,3,FALSE)) -> Pilar 3 Construcción de Comunidad y Cultura Ciudadana | N87: 1467 | O87: 98378367 | P87: CARLOS MARIN INSUASTI INSUASTI | Q87: 45000000 | T87: 1 | U87: 15000000 | V87: 60000000 | W87: 40750000 | X87: 2020-06-16 | Y87: 2020-06-18 | Z87: 2021-02-17 | AA87: 180 | AB87: 1 | AC87: 60 | AI87: X | AL87: 0.6791666667
A88: 71 | B88: 2020 | C88: SECOP II | D88: FDLF-CD-71-2020 | E88: Contratos de prestación de servicios | F88: Contratación Directa | G88: Prestación de servicios profesionales y de apoyo a la gestión, o para la ejecución de trabajos artísticos que sólo puedan encomendarse a determinadas personas naturales; | H88: PRESTAR SERVICIOS DE APOYO TÉCNICO AL ÁREA DE GESTIÓN DE DESARROLLO LOCAL EN EL FONDO DE DESARROLLO LOCAL DE FONTIBÓN, EN LOS TRÁMITES RELACIONADOS CON LOS PROCESOS PRECONTRACTUALES, CONTRACTUALES Y POST CONTRACTUALES Y EN LAS DEMÁS ACTIVIDADES QUE ALLÍ SE REQUIERAN | I88: Inversión | J88: Bogotá Mejor para Todos | K88: 45 | L88: =IF(ISERROR(VLOOKUP(K88,Eje_Pilar_Prop!$C$2:$E$104,2,FALSE))," ",VLOOKUP(K88,Eje_Pilar_Prop!$C$2:$E$104,2,FALSE)) -> Gobernanza e influencia local, regional e internacional | M88: =IF(ISERROR(VLOOKUP(K88,Eje_Pilar_Prop!$C$2:$E$104,3,FALSE))," ",VLOOKUP(K88,Eje_Pilar_Prop!$C$2:$E$104,3,FALSE)) -> Eje Transversal 4 Gobierno Legitimo, Fortalecimiento Local y Eficiencia | N88: 1474 | O88: 1026267502 | P88: JEFFERSON DAVID LADINO MALAGON | Q88: 17500000 | T88: 0 | U88: 0 | V88: 17500000 | W88: 17500000 | X88: 2020-06-19 | Y88: 2020-06-19 | Z88: 2020-11-18 | AA88: 150 | AB88: 0 | AC88: 0 | AD88: 52290771 | AE88: JOHANNA GONZALEZ GONZALEZ | AF88: 2020-09-25 | AG88: 6300000 | AJ88: X | AL88: 1
A89: 72 | B89: 2020 | C89: SECOP II | D89: FDLF-CD-72-2020 | E89: Contratos de prestación de servicios | F89: Contratación Directa | G89: Prestación de servicios profesionales y de apoyo a la gestión, o para la ejecución de trabajos artísticos que sólo puedan encomendarse a determinadas personas naturales; | H89: PRESTAR SERVICIOS PROFESIONALES PARA LA OPERACIÓN, PRESTACIÓN, SEGUIMIENTO Y CUMPLIMIENTO DE LOS PROCEDIMIENTOS ADMINISTRATIVOS, OPERATIVOS Y PROGRAMÁTICOS DEL SERVICIO APOYO ECONÓMICO TIPO C, QUE CONTRIBUYAN A LA GARANTÍA DE LOS DERECHOS DE LA POBLACIÓN MAYOR EN EL MARCO DE LA POLÍTICA PÚBLICA SOCIAL PARA EL ENVEJECIMIENTO Y LA VEJEZ EN EL DISTRITO CAPITAL A CARGO DE LA ALCALDÍA LOCAL | I89: Inversión | J89: Bogotá Mejor para Todos | K89: 3 | L89: =IF(ISERROR(VLOOKUP(K89,Eje_Pilar_Prop!$C$2:$E$104,2,FALSE))," ",VLOOKUP(K89,Eje_Pilar_Prop!$C$2:$E$104,2,FALSE)) -> Igualdad y autonomía para una Bogotá incluyente | M89: =IF(ISERROR(VLOOKUP(K89,Eje_Pilar_Prop!$C$2:$E$104,3,FALSE))," ",VLOOKUP(K89,Eje_Pilar_Prop!$C$2:$E$104,3,FALSE)) -> Pilar 1 Igualdad de Calidad de Vida | N89: 1453 | O89: 52783244 | P89: DUDLEY JOHANNA PALACIOS GARCIA | Q89: 23915000 | T89: 0 | U89: 0 | V89: 23915000 | W89: 23915000 | X89: 2020-06-25 | Y89: 2020-06-26 | Z89: 2021-11-26 | AA89: 150 | AB89: 0 | AC89: 0 | AJ89: X | AL89: 1
A90: 73 | B90: 2020 | C90: SECOP II | D90: FDLF-CD-73-2020 | E90: Contratos de prestación de servicios | F90: Contratación Directa | G90: Prestación de servicios profesionales y de apoyo a la gestión, o para la ejecución de trabajos artísticos que sólo puedan encomendarse a determinadas personas naturales; | H90: PRESTAR SERVICIOS PROFESIONALES PARA APOYAR TÉCNICAMENTE A LOS RESPONSABLES E INTEGRANTES DE LOS PROCESOS EN LA IMPLEMENTACIÓN DE HERRAMIENTAS DE GESTIÓN, SIGUIENDO LOS LINEAMIENTOS METODOLÓGICOS ESTABLECIDOS POR LA OFICINA ASESORA DE PLANEACIÓN DE LA SECRETARÍA DISTRITAL DE GOBIERNO | I90: Inversión | J90: Bogotá Mejor para Todos | K90: 45 | L90: =IF(ISERROR(VLOOKUP(K90,Eje_Pilar_Prop!$C$2:$E$104,2,FALSE))," ",VLOOKUP(K90,Eje_Pilar_Prop!$C$2:$E$104,2,FALSE)) -> Gobernanza e influencia local, regional e internacional | M90: =IF(ISERROR(VLOOKUP(K90,Eje_Pilar_Prop!$C$2:$E$104,3,FALSE))," ",VLOOKUP(K90,Eje_Pilar_Prop!$C$2:$E$104,3,FALSE)) -> Eje Transversal 4 Gobierno Legitimo, Fortalecimiento Local y Eficiencia | N90: 1474 | O90: 9022215 | P90: JORGE ISAAC GARAVITO JIMENEZ | Q90: 34800000 | T90: 1 | U90: 6960000 | V90: 41760000 | W90: 30160000 | X90: 2020-06-24 | Y90: 2020-06-25 | Z90: 2021-01-30 | AA90: 180 | AB90: 1 | AC90: 36 | AI90: X | AL90: 0.7222222222
A91: 74 | B91: 2020 | C91: SECOP II | D91: FDLF-CD-74-2020 | E91: Contratos de prestación de servicios | F91: Contratación Directa | G91: Prestación de servicios profesionales y de apoyo a la gestión, o para la ejecución de trabajos artísticos que sólo puedan encomendarse a determinadas personas naturales; | H91: PRESTAR SERVICIOS PROFESIONALES PARA APOYAR EL ÁREA DE GESTIÓN DEL DESARROLLO LOCAL EN LA EJECUCIÓN DEL PROYECTO FONTIBÓN, MEJORES PARQUES PARA TODOS | I91: Inversión | J91: Bogotá Mejor para Todos | K91: 17 | L91: =IF(ISERROR(VLOOKUP(K91,Eje_Pilar_Prop!$C$2:$E$104,2,FALSE))," ",VLOOKUP(K91,Eje_Pilar_Prop!$C$2:$E$104,2,FALSE)) -> Espacio público, derecho de todos | M91: =IF(ISERROR(VLOOKUP(K91,Eje_Pilar_Prop!$C$2:$E$104,3,FALSE))," ",VLOOKUP(K91,Eje_Pilar_Prop!$C$2:$E$104,3,FALSE)) -> Pilar 2 Democracía Urbana | N91: 1462 | O91: 25026067 | P91: LIDA MARIA GIRALDO SANCHEZ | Q91: 19132000 | T91: 0 | U91: 0 | V91: 19132000 | W91: 19132000 | X91: 2020-06-24 | Y91: 2020-06-26 | Z91: 2020-10-25 | AA91: 120 | AB91: 0 | AC91: 0 | AD91: 52152211 | AE91: DORA ALIX HERNÁNDEZ CEBALLO | AF91: 2020-08-21 | AG91: 10522600 | AJ91: X | AL91: 1
A92: 75 | B92: 2020 | C92: SECOP II | D92: FDLF-CD-75-2020 | E92: Contratos de prestación de servicios | F92: Contratación Directa | G92: Prestación de servicios profesionales y de apoyo a la gestión, o para la ejecución de trabajos artísticos que sólo puedan encomendarse a determinadas personas naturales; | H92: PRESTAR SERVICIOS COMO PROFESIONAL QUE DESARROLLE ACTIVIDADES DE APOYO, FORMULACIÓN, SEGUIMIENTO Y ACOMPAÑAMIENTO TÉCNICO EN OBRAS E INFRAESTRUCTURA EN LA LOCALIDAD DE FONTIBÓN | I92: Inversión | J92: Bogotá Mejor para Todos | K92: 18 | L92: =IF(ISERROR(VLOOKUP(K92,Eje_Pilar_Prop!$C$2:$E$104,2,FALSE))," ",VLOOKUP(K92,Eje_Pilar_Prop!$C$2:$E$104,2,FALSE)) -> Mejor movilidad para todos | M92: =IF(ISERROR(VLOOKUP(K92,Eje_Pilar_Prop!$C$2:$E$104,3,FALSE))," ",VLOOKUP(K92,Eje_Pilar_Prop!$C$2:$E$104,3,FALSE)) -> Pilar 2 Democracía Urbana | N92: 1464 | O92: 1019050768 | P92: RIYHAT SIMAHAN BERNAL | Q92: 19132000 | T92: 1 | U92: 9359400 | V92: 28491400 | W92: 23708400 | X92: 2020-07-03 | Y92: 2020-07-07 | Z92: 2020-12-30 | AA92: 120 | AB92: 1 | AC92: 54 | AJ92: X | AL92: 0.8321247815
A93: 76 | B93: 2020 | C93: SECOP II | D93: FDLF-CD-76-2020 | E93: Contratos de prestación de servicios | F93: Contratación Directa | G93: Prestación de servicios profesionales y de apoyo a la gestión, o para la ejecución de trabajos artísticos que sólo puedan encomendarse a determinadas personas naturales; | H93: PRESTAR SERVICIOS PROFESIONALES PARA APOYAR EL ÁREA DE GESTIÓN DEL DESARROLLO LOCAL EN LA EJECUCIÓN DEL PROYECTO FONTIBÓN, MEJORES PARQUES PARA TODOS | I93: Inversión | J93: Bogotá Mejor para Todos | K93: 17 | L93: =IF(ISERROR(VLOOKUP(K93,Eje_Pilar_Prop!$C$2:$E$104,2,FALSE))," ",VLOOKUP(K93,Eje_Pilar_Prop!$C$2:$E$104,2,FALSE)) -> Espacio público, derecho de todos | M93: =IF(ISERROR(VLOOKUP(K93,Eje_Pilar_Prop!$C$2:$E$104,3,FALSE))," ",VLOOKUP(K93,Eje_Pilar_Prop!$C$2:$E$104,3,FALSE)) -> Pilar 2 Democracía Urbana | N93: 1462 | O93: 1030533242 | P93: DIEGO ALEJANDRO HERNANDEZ BOCANEGRA | Q93: 19132000 | T93: 1 | U93: 8609400 | V93: 27741400 | W93: 22958400 | X93: 2020-07-03 | Y93: 2020-07-07 | Z93: 2020-12-30 | AA93: 120 | AB93: 1 | AC93: 54 | AJ93: X | AL93: 0.8275862069
A94: 78 | B94: 2020 | C94: SECOP II | D94: FDLF-CD-78-2020 | E94: Contratos de prestación de servicios | F94: Contratación Directa | G94: Prestación de servicios profesionales y de apoyo a la gestión, o para la ejecución de trabajos artísticos que sólo puedan encomendarse a determinadas personas naturales; | H94: APOYO OPERATIVO PARA LAS ACTIVIDADES RELACIONADAS CON EL MANTENIMIENTO Y REPARACIONES MENORES DE LA SEDE Y DEMÁS DEPENDENCIAS DE LA ALCALDÍA LOCAL DE FONTIBÓN. | I94: Inversión | J94: Bogotá Mejor para Todos | K94: 45 | L94: =IF(ISERROR(VLOOKUP(K94,Eje_Pilar_Prop!$C$2:$E$104,2,FALSE))," ",VLOOKUP(K94,Eje_Pilar_Prop!$C$2:$E$104,2,FALSE)) -> Gobernanza e influencia local, regional e internacional | M94: =IF(ISERROR(VLOOKUP(K94,Eje_Pilar_Prop!$C$2:$E$104,3,FALSE))," ",VLOOKUP(K94,Eje_Pilar_Prop!$C$2:$E$104,3,FALSE)) -> Eje Transversal 4 Gobierno Legitimo, Fortalecimiento Local y Eficiencia | N94: 1474 | O94: 79138055 | P94: RENE JAVIER MELO MAZABEL | Q94: 7020000 | T94: 1 | U94: 2340000 | V94: 9360000 | W94: 7605000 | X94: 2020-07-17 | Y94: 2020-07-21 | Z94: 2020-12-30 | AA94: 120 | AB94: 1 | AC94: 40 | AJ94: X | AL94: 0.8125
A95: 79 | B95: 2020 | C95: SECOP II | D95: FDLF-CD-79-2020 | E95: Contratos de prestación de servicios | F95: Contratación Directa | G95: Prestación de servicios profesionales y de apoyo a la gestión, o para la ejecución de trabajos artísticos que sólo puedan encomendarse a determinadas personas naturales; | H95: SERVICIOS PARA EL APOYO EN LA CONDUCCIÓN DE VEHÍCULOS AL SERVICIO DE LA ALCALDÍA LOCAL DE FONTIBÓN. | I95: Inversión | J95: Bogotá Mejor para Todos | K95: 45 | L95: =IF(ISERROR(VLOOKUP(K95,Eje_Pilar_Prop!$C$2:$E$104,2,FALSE))," ",VLOOKUP(K95,Eje_Pilar_Prop!$C$2:$E$104,2,FALSE)) -> Gobernanza e influencia local, regional e internacional | M95: =IF(ISERROR(VLOOKUP(K95,Eje_Pilar_Prop!$C$2:$E$104,3,FALSE))," ",VLOOKUP(K95,Eje_Pilar_Prop!$C$2:$E$104,3,FALSE)) -> Eje Transversal 4 Gobierno Legitimo, Fortalecimiento Local y Eficiencia | N95: 1474 | O95: 80064974 | P95: CARLOS ANDRES ULCUE | Q95: 9452000 | T95: 0 | U95: 0 | V95: 9452000 | W95: 9452000 | X95: 2020-07-03 | Y95: 2020-07-08 | Z95: 2020-11-07 | AA95: 120 | AB95: 0 | AC95: 0 | AJ95: X | AL95: 1
A96: 80 | B96: 2020 | C96: SECOP II | D96: FDLF-CD-80-2020 | E96: Contratos de prestación de servicios | F96: Contratación Directa | G96: Prestación de servicios profesionales y de apoyo a la gestión, o para la ejecución de trabajos artísticos que sólo puedan encomendarse a determinadas personas naturales; | H96: SERVICIOS DE APOYO TÉCNICO ADMINISTRATIVO AL ÁREA DE GESTIÓN DEL DESARROLLO LOCAL DE LA ALCALDÍA LOCAL DE FONTIBÓN | I96: Inversión | J96: Bogotá Mejor para Todos | K96: 45 | L96: =IF(ISERROR(VLOOKUP(K96,Eje_Pilar_Prop!$C$2:$E$104,2,FALSE))," ",VLOOKUP(K96,Eje_Pilar_Prop!$C$2:$E$104,2,FALSE)) -> Gobernanza e influencia local, regional e internacional | M96: =IF(ISERROR(VLOOKUP(K96,Eje_Pilar_Prop!$C$2:$E$104,3,FALSE))," ",VLOOKUP(K96,Eje_Pilar_Prop!$C$2:$E$104,3,FALSE)) -> Eje Transversal 4 Gobierno Legitimo, Fortalecimiento Local y Eficiencia | N96: 1473 | O96: 1016055638 | P96: SERGIO SEBASTIAN VILLEGAS TORRES | Q96: 14000000 | T96: 1 | U96: 2800000 | V96: 16800000 | W96: 13253333 | X96: 2020-07-08 | Y96: 2020-07-09 | Z96: 2021-01-08 | AA96: 150 | AB96: 1 | AC96: 30 | AI96: X | AL96: 0.788888869
A97: 81 | B97: 2020 | C97: SECOP II | D97: FDLF-CD-81-2020 | E97: Contratos de prestación de servicios | F97: Contratación Directa | G97: Prestación de servicios profesionales y de apoyo a la gestión, o para la ejecución de trabajos artísticos que sólo puedan encomendarse a determinadas personas naturales; | H97: PRESTAR SERVICIOS PROFESIONALES PARA APOYAR EL ÁREA DE GESTIÓN DE DESARROLLO LOCAL ORIENTADA A LOS TEMAS DEPORTIVOS Y RECREATIVOS. | I97: Inversión | J97: Bogotá Mejor para Todos | K97: 11 | L97: =IF(ISERROR(VLOOKUP(K97,Eje_Pilar_Prop!$C$2:$E$104,2,FALSE))," ",VLOOKUP(K97,Eje_Pilar_Prop!$C$2:$E$104,2,FALSE)) -> Mejores oportunidades para el desarrollo a través de la cultura, la recreación y el deporte | M97: =IF(ISERROR(VLOOKUP(K97,Eje_Pilar_Prop!$C$2:$E$104,3,FALSE))," ",VLOOKUP(K97,Eje_Pilar_Prop!$C$2:$E$104,3,FALSE)) -> Pilar 1 Igualdad de Calidad de Vida | N97: 1458 | O97: 1032430030 | P97: MIGUEL ANGEL GONZALEZ GARCIA | Q97: 27500000 | T97: 1 | U97: 5500000 | V97: 33000000 | W97: 24933333 | X97: 2020-07-09 | Y97: 2020-07-15 | Z97: 2021-01-14 | AA97: 150 | AB97: 1 | AC97: 30 | AI97: X | AL97: 0.7555555455
A98: 82 | B98: 2020 | C98: SECOP II | D98: FDLF-CD-82-2020 | E98: Contratos de prestación de servicios | F98: Contratación Directa | G98: Prestación de servicios profesionales y de apoyo a la gestión, o para la ejecución de trabajos artísticos que sólo puedan encomendarse a determinadas personas naturales; | H98: PRESTAR SERVICIOS PROFESIONALES PARA APOYAR A LA ADMINISTRACIÓN LOCAL EN LA FORMULACIÓN Y SEGUIMIENTO A LOS PROYECTOS DE INVERSIÓN Y GASTOS DE FUNCIONAMIENTO. | I98: Inversión | J98: Bogotá Mejor para Todos | K98: 45 | L98: =IF(ISERROR(VLOOKUP(K98,Eje_Pilar_Prop!$C$2:$E$104,2,FALSE))," ",VLOOKUP(K98,Eje_Pilar_Prop!$C$2:$E$104,2,FALSE)) -> Gobernanza e influencia local, regional e internacional | M98: =IF(ISERROR(VLOOKUP(K98,Eje_Pilar_Prop!$C$2:$E$104,3,FALSE))," ",VLOOKUP(K98,Eje_Pilar_Prop!$C$2:$E$104,3,FALSE)) -> Eje Transversal 4 Gobierno Legitimo, Fortalecimiento Local y Eficiencia | N98: 1474 | O98: 36065900 | P98: ANGELICA MARIA PUENTES AVILA | Q98: 36000000 | T98: 1 | U98: 6000000 | V98: 42000000 | W98: 27400000 | X98: 2020-07-10 | Y98: 2020-07-14 | Z98: 2021-02-13 | AA98: 180 | AB98: 1 | AC98: 30 | AI98: X | AL98: 0.6523809524
A99: 83 | B99: 2020 | C99: SECOP II | D99: FDLF-IPMC-3-2020 | E99: Compraventa de bienes muebles | F99: Contratación mínima cuantia | G99: No aplica | H99: ADQUISICIÓN DE EQUIPOS, ACCESORIOS DE CÓMPUTO Y SERVICIOS DE DATOS E INTERNET PARA FORTALECER ORGANIZACIONES, INSTANCIAS Y EXPRESIONES CIUDADANAS PARA LA PARTICIPACIÓN. | I99: Inversión | J99: Bogotá Mejor para Todos | K99: 45 | L99: =IF(ISERROR(VLOOKUP(K99,Eje_Pilar_Prop!$C$2:$E$104,2,FALSE))," ",VLOOKUP(K99,Eje_Pilar_Prop!$C$2:$E$104,2,FALSE)) -> Gobernanza e influencia local, regional e internacional | M99: =IF(ISERROR(VLOOKUP(K99,Eje_Pilar_Prop!$C$2:$E$104,3,FALSE))," ",VLOOKUP(K99,Eje_Pilar_Prop!$C$2:$E$104,3,FALSE)) -> Eje Transversal 4 Gobierno Legitimo, Fortalecimiento Local y Eficiencia | N99: 1473 | O99: 901101612-1 | P99: CG CONTACT GROUP S.A.S | Q99: 21256530 | T99: 0 | U99: 0 | V99: 21256530 | W99: 18152400 | X99: 2020-07-10 | Y99: 2020-07-15 | Z99: 2020-11-14 | AA99: 120 | AB99: 0 | AC99: 0 | AJ99: X | AL99: 0.8539681688
A100: 84 | B100: 2020 | C100: SECOP II | D100: FDLF-CD-84-2020 | E100: Contratos de prestación de servicios | F100: Contratación Directa | G100: Prestación de servicios profesionales y de apoyo a la gestión, o para la ejecución de trabajos artísticos que sólo puedan encomendarse a determinadas personas naturales; | H100: PRESTAR SERVICIOS PROFESIONALES PARA APOYAR AL ÁREA DE GESTIÓN DE DESARROLLO LOCAL EN LA PROMOCIÓN, ACOMPAÑAMIENTO Y ATENCIÓN DE LAS INSTANCIAS DE PARTICIPACIÓN LOCALES, ASÍ COMO LOS PROCESOS COMUNITARIOS EN LA LOCALIDAD. | I100: Inversión | J100: Bogotá Mejor para Todos | K100: 45 | L100: =IF(ISERROR(VLOOKUP(K100,Eje_Pilar_Prop!$C$2:$E$104,2,FALSE))," ",VLOOKUP(K100,Eje_Pilar_Prop!$C$2:$E$104,2,FALSE)) -> Gobernanza e influencia local, regional e internacional | M100: =IF(ISERROR(VLOOKUP(K100,Eje_Pilar_Prop!$C$2:$E$104,3,FALSE))," ",VLOOKUP(K100,Eje_Pilar_Prop!$C$2:$E$104,3,FALSE)) -> Eje Transversal 4 Gobierno Legitimo, Fortalecimiento Local y Eficiencia | N100: 1473 | O100: 1016072576 | P100: MARÍA ALEJANDRA PIÑEROS MONDRAGÓN | Q100: 21000000 | T100: 1 | U100: 4200000 | V100: 25200000 | W100: 18200000 | X100: 2020-07-16 | Y100: 2020-07-21 | Z100: 2021-01-20 | AA100: 150 | AB100: 1 | AC100: 30 | AI100: X | AL100: 0.7222222222
A101: 85 | B101: 2020 | C101: SECOP I | D101: FDLF-CIA-85-2020 | E101: Contratos interadministrativos | F101: Contratación directa | G101: Contratos interadministrativos | H101: PROVEER UNA PLATAFORMA VIRTUAL Y SERVICIOS TECNOLÓGICOS PARA LA REALIZACIÓN DE LA VOTACIÓN DE LOS PRESUPUESTOS PARTICIPATIVOS, DE ACUERDO CON LOS LINEAMIENTOS ESTRATÉGICOS QUE DETERMINEN LOS FDL. | I101: Inversión | J101: Bogotá Mejor para Todos | K101: 45 | L101: =IF(ISERROR(VLOOKUP(K101,Eje_Pilar_Prop!$C$2:$E$104,2,FALSE))," ",VLOOKUP(K101,Eje_Pilar_Prop!$C$2:$E$104,2,FALSE)) -> Gobernanza e influencia local, regional e internacional | M101: =IF(ISERROR(VLOOKUP(K101,Eje_Pilar_Prop!$C$2:$E$104,3,FALSE))," ",VLOOKUP(K101,Eje_Pilar_Prop!$C$2:$E$104,3,FALSE)) -> Eje Transversal 4 Gobierno Legitimo, Fortalecimiento Local y Eficiencia | N101: 1473 | O101: 899.999.115-8 | P101: EMPRESA DE TELECOMUNICACIONES DE BOGOTÁ SA ESP | Q101: 11604880 | T101: 0 | U101: 0 | V101: 11604880 | W101: 0 | X101: 2020-07-09 | Y101: 2020-07-13 | Z101: 2020-07-31 | AA101: 27 | AB101: 0 | AC101: 0 | AJ101: X | AL101: 0
A102: 86 | B102: 2020 | C102: SECOP II | D102: FDLF-CD-86-2020 | E102: Contratos de prestación de servicios | F102: Contratación Directa | G102: Prestación de servicios profesionales y de apoyo a la gestión, o para la ejecución de trabajos artísticos que sólo puedan encomendarse a determinadas personas naturales; | H102: APOYO OPERATIVO PARA LAS ACTIVIDADES RELACIONADAS CON EL MANTENIMIENTO Y REPARACIONES MENORES DE LA SEDE Y DEMÁS DEPENDENCIAS DE LA ALCALDÍA LOCAL DE FONTIBÓN. | I102: Inversión | J102: Bogotá Mejor para Todos | K102: 45 | L102: =IF(ISERROR(VLOOKUP(K102,Eje_Pilar_Prop!$C$2:$E$104,2,FALSE))," ",VLOOKUP(K102,Eje_Pilar_Prop!$C$2:$E$104,2,FALSE)) -> Gobernanza e influencia local, regional e internacional | M102: =IF(ISERROR(VLOOKUP(K102,Eje_Pilar_Prop!$C$2:$E$104,3,FALSE))," ",VLOOKUP(K102,Eje_Pilar_Prop!$C$2:$E$104,3,FALSE)) -> Eje Transversal 4 Gobierno Legitimo, Fortalecimiento Local y Eficiencia | N102: 1474 | O102: 1090424456 | P102: JAMES ANTONY ANGARITA VELASCO | Q102: 7020000 | T102: 1 | U102: 2281500 | V102: 9301500 | W102: 7546500 | X102: 2020-07-16 | Y102: 2020-07-22 | Z102: 2020-12-30 | AA102: 120 | AB102: 1 | AC102: 39 | AJ102: X | AL102: 0.8113207547
A103: 87 | B103: 2020 | C103: SECOP II | D103: FDLF-CD-87-2020 | E103: Contratos de prestación de servicios | F103: Contratación Directa | G103: Prestación de servicios profesionales y de apoyo a la gestión, o para la ejecución de trabajos artísticos que sólo puedan encomendarse a determinadas personas naturales; | H103: PRESTAR SERVICIOS PROFESIONALES PARA APOYAR LOS PROCESOS RELACIONADOS CON LOS CONTRATOS DE INVERSIÓN, VERIFICACIÓN DEL PROCEDIMIENTO DE PAGOS Y REVISIÓN DE CARPETAS ALLEGADAS AL DESPACHO PARA SU RESPECTIVA FIRMA DEL ALCALDE LOCAL. | I103: Inversión | J103: Bogotá Mejor para Todos | K103: 45 | L103: =IF(ISERROR(VLOOKUP(K103,Eje_Pilar_Prop!$C$2:$E$104,2,FALSE))," ",VLOOKUP(K103,Eje_Pilar_Prop!$C$2:$E$104,2,FALSE)) -> Gobernanza e influencia local, regional e internacional | M103: =IF(ISERROR(VLOOKUP(K103,Eje_Pilar_Prop!$C$2:$E$104,3,FALSE))," ",VLOOKUP(K103,Eje_Pilar_Prop!$C$2:$E$104,3,FALSE)) -> Eje Transversal 4 Gobierno Legitimo, Fortalecimiento Local y Eficiencia | N103: 1474 | O103: 51922431 | P103: AMANDA LUCIA BELTRAN MARTINEZ | Q103: 21000000 | T103: 1 | U103: 8400000 | V103: 29400000 | W103: 17920000 | X103: 2020-07-22 | Y103: 2020-07-23 | Z103: 2021-02-22 | AA103: 150 | AB103: 1 | AC103: 60 | AI103: X | AL103: 0.6095238095
A104: 89 | B104: 2020 | C104: SECOP II | D104: FDLF-CD-89-2020 | E104: Contratos de prestación de servicios | F104: Contratación Directa | G104: Prestación de servicios profesionales y de apoyo a la gestión, o para la ejecución de trabajos artísticos que sólo puedan encomendarse a determinadas personas naturales; | H104: SERVICIOS DE APOYO TÉCNICO ADMINISTRATIVO AL ÁREA DE GESTIÓN DEL DESARROLLO LOCAL DE LA ALCALDÍA LOCAL DE FONTIBÓN. | I104: Inversión | J104: Bogotá Mejor para Todos | K104: 45 | L104: =IF(ISERROR(VLOOKUP(K104,Eje_Pilar_Prop!$C$2:$E$104,2,FALSE))," ",VLOOKUP(K104,Eje_Pilar_Prop!$C$2:$E$104,2,FALSE)) -> Gobernanza e influencia local, regional e internacional | M104: =IF(ISERROR(VLOOKUP(K104,Eje_Pilar_Prop!$C$2:$E$104,3,FALSE))," ",VLOOKUP(K104,Eje_Pilar_Prop!$C$2:$E$104,3,FALSE)) -> Eje Transversal 4 Gobierno Legitimo, Fortalecimiento Local y Eficiencia | N104: 1474 | O104: 52358174 | P104: MARIA ISABEL BUITRAGO POLOCHE | Q104: 19000000 | T104: 1 | U104: 3800000 | V104: 22800000 | W104: 16213333 | X104: 2020-07-22 | Y104: 2020-07-23 | Z104: 2021-01-22 | AA104: 150 | AB104: 1 | AC104: 30 | AI104: X | AL104: 0.7111110965
A105: 91 | B105: 2020 | C105: SECOP II | D105: FDLF-CD-91-2020 | E105: Contratos de prestación de servicios | F105: Contratación Directa | G105: Prestación de servicios profesionales y de apoyo a la gestión, o para la ejecución de trabajos artísticos que sólo puedan encomendarse a determinadas personas naturales; | H105: PRESTAR SERVICIOS PROFESIONALES PARA APOYAR JURÍDICAMENTE LA EJECUCIÓN DE LAS ACCIONES REQUERIDAS PARA EL TRÁMITE E IMPULSO PROCESAL DE LAS ACTUACIONES CONTRAVENCIONALES Y/O QUERELLAS QUE CURSEN EN LAS INSPECCIONES DE POLICÍA DE LA LOCALIDAD | I105: Inversión | J105: Bogotá Mejor para Todos | K105: 45 | L105: =IF(ISERROR(VLOOKUP(K105,Eje_Pilar_Prop!$C$2:$E$104,2,FALSE))," ",VLOOKUP(K105,Eje_Pilar_Prop!$C$2:$E$104,2,FALSE)) -> Gobernanza e influencia local, regional e internacional | M105: =IF(ISERROR(VLOOKUP(K105,Eje_Pilar_Prop!$C$2:$E$104,3,FALSE))," ",VLOOKUP(K105,Eje_Pilar_Prop!$C$2:$E$104,3,FALSE)) -> Eje Transversal 4 Gobierno Legitimo, Fortalecimiento Local y Eficiencia | N105: 1474 | O105: 79307654 | P105: ALVARO GOMEZ GOMEZ | Q105: 23915000 | T105: 1 | U105: 4783000 | V105: 28698000 | W105: 20407467 | X105: 2020-07-21 | Y105: 2020-07-23 | Z105: 2021-01-22 | AA105: 150 | AB105: 1 | AC105: 30 | AI105: X | AL105: 0.7111111227
A106: 92 | B106: 2020 | C106: SECOP II | D106: FDLF-CD-92-2020 | E106: Contratos de prestación de servicios | F106: Contratación Directa | G106: Prestación de servicios profesionales y de apoyo a la gestión, o para la ejecución de trabajos artísticos que sólo puedan encomendarse a determinadas personas naturales; | H106: PRESTAR SERVICIOS PROFESIONALES PARA APOYAR JURÍDICAMENTE LA EJECUCIÓN DE LAS ACCIONES REQUERIDAS PARA EL TRÁMITE E IMPULSO PROCESAL DE LAS ACTUACIONES CONTRAVENCIONALES Y/O QUERELLAS QUE CURSEN EN LAS INSPECCIONES DE POLICÍA DE LA LOCALIDAD | I106: Inversión | J106: Bogotá Mejor para Todos | K106: 45 | L106: =IF(ISERROR(VLOOKUP(K106,Eje_Pilar_Prop!$C$2:$E$104,2,FALSE))," ",VLOOKUP(K106,Eje_Pilar_Prop!$C$2:$E$104,2,FALSE)) -> Gobernanza e influencia local, regional e internacional | M106: =IF(ISERROR(VLOOKUP(K106,Eje_Pilar_Prop!$C$2:$E$104,3,FALSE))," ",VLOOKUP(K106,Eje_Pilar_Prop!$C$2:$E$104,3,FALSE)) -> Eje Transversal 4 Gobierno Legitimo, Fortalecimiento Local y Eficiencia | N106: 1474 | O106: 93020228 | P106: HAMIXON LEAL CHILATRA | Q106: 23915000 | T106: 0 | U106: 0 | V106: 23915000 | W106: 20407466 | X106: 2020-07-21 | Y106: 2020-07-23 | Z106: 2020-12-22 | AA106: 150 | AB106: 0 | AC106: 0 | AJ106: X | AL106: 0.8533333055
A107: 93 | B107: 2020 | C107: SECOP II | D107: FDLF-CD-93-2020 | E107: Contratos de prestación de servicios | F107: Contratación Directa | G107: Prestación de servicios profesionales y de apoyo a la gestión, o para la ejecución de trabajos artísticos que sólo puedan encomendarse a determinadas personas naturales; | H107: PRESTAR SERVICIOS PROFESIONALES PARA APOYAR JURÍDICAMENTE LA EJECUCIÓN DE LAS ACCIONES REQUERIDAS PARA EL TRÁMITE E IMPULSO PROCESAL DE LAS ACTUACIONES CONTRAVENCIONALES Y/O QUERELLAS QUE CURSEN EN LAS INSPECCIONES DE POLICÍA DE LA LOCALIDAD | I107: Inversión | J107: Bogotá Mejor para Todos | K107: 45 | L107: =IF(ISERROR(VLOOKUP(K107,Eje_Pilar_Prop!$C$2:$E$104,2,FALSE))," ",VLOOKUP(K107,Eje_Pilar_Prop!$C$2:$E$104,2,FALSE)) -> Gobernanza e influencia local, regional e internacional | M107: =IF(ISERROR(VLOOKUP(K107,Eje_Pilar_Prop!$C$2:$E$104,3,FALSE))," ",VLOOKUP(K107,Eje_Pilar_Prop!$C$2:$E$104,3,FALSE)) -> Eje Transversal 4 Gobierno Legitimo, Fortalecimiento Local y Eficiencia | N107: 1474 | O107: 1031152968 | P107: NATALIA ALEJANDRA SEDANO GARZON | Q107: 23915000 | T107: 1 | U107: 4783000 | V107: 28698000 | W107: 20407466 | X107: 2020-07-21 | Y107: 2020-07-23 | Z107: 2021-01-22 | AA107: 150 | AB107: 1 | AC107: 30 | AI107: X | AL107: 0.7111110879
A108: 94 | B108: 2020 | C108: SECOP II | D108: FDLE-CD-94-2020 | E108: Contratos de prestación de servicios | F108: Contratación Directa | G108: Prestación de servicios profesionales y de apoyo a la gestión, o para la ejecución de trabajos artísticos que sólo puedan encomendarse a determinadas personas naturales; | H108: PRESTAR SERVICIOS PROFESIONALES PARA APOYAR JURÍDICAMENTE LA EJECUCIÓN DE LAS ACCIONES REQUERIDAS PARA EL TRÁMITE E IMPULSO PROCESAL DE LAS ACTUACIONES CONTRAVENCIONALES Y/O QUERELLAS QUE CURSEN EN LAS INSPECCIONES DE POLICÍA DE LA LOCALIDAD | I108: Inversión | J108: Bogotá Mejor para Todos | K108: 45 | L108: =IF(ISERROR(VLOOKUP(K108,Eje_Pilar_Prop!$C$2:$E$104,2,FALSE))," ",VLOOKUP(K108,Eje_Pilar_Prop!$C$2:$E$104,2,FALSE)) -> Gobernanza e influencia local, regional e internacional | M108: =IF(ISERROR(VLOOKUP(K108,Eje_Pilar_Prop!$C$2:$E$104,3,FALSE))," ",VLOOKUP(K108,Eje_Pilar_Prop!$C$2:$E$104,3,FALSE)) -> Eje Transversal 4 Gobierno Legitimo, Fortalecimiento Local y Eficiencia | N108: 1474 | O108: 1136886171 | P108: JUAN FELIPE GAVIRIA VILLEGAS | Q108: 23915000 | T108: 0 | U108: 0 | V108: 23915000 | W108: 20407466 | X108: 2020-07-21 | Y108: 2020-07-23 | Z108: 2020-12-22 | AA108: 150 | AB108: 0 | AC108: 0 | AJ108: X | AL108: 0.8533333055
A109: 95 | B109: 2020 | C109: SECOP II | D109: FDLF-CD-95-2020 | E109: Contratos de prestación de servicios | F109: Contratación Directa | G109: Prestación de servicios profesionales y de apoyo a la gestión, o para la ejecución de trabajos artísticos que sólo puedan encomendarse a determinadas personas naturales; | H109: PRESTAR LOS SERVICIOS PROFESIONALES PARA BRINDAR EL APOYO AL ÁREA DE GESTIÓN DEL DESARROLLO LOCAL COMO ENLACE ANTE LAS ENTIDADES DISTRITALES EN ATENCIÓN DE LA EMERGENCIA SANITARIA POR COVID-19. | I109: Inversión | J109: Bogotá Mejor para Todos | K109: 45 | L109: =IF(ISERROR(VLOOKUP(K109,Eje_Pilar_Prop!$C$2:$E$104,2,FALSE))," ",VLOOKUP(K109,Eje_Pilar_Prop!$C$2:$E$104,2,FALSE)) -> Gobernanza e influencia local, regional e internacional | M109: =IF(ISERROR(VLOOKUP(K109,Eje_Pilar_Prop!$C$2:$E$104,3,FALSE))," ",VLOOKUP(K109,Eje_Pilar_Prop!$C$2:$E$104,3,FALSE)) -> Eje Transversal 4 Gobierno Legitimo, Fortalecimiento Local y Eficiencia | N109: 1474 | O109: 19440420 | P109: LUIS GUSTAVO PIÑEROS CALDERON | Q109: 27500000 | T109: 0 | U109: 0 | V109: 27500000 | W109: 12466667 | X109: 2020-07-22 | Y109: 2020-07-23 | Z109: 2020-12-22 | AA109: 150 | AB109: 0 | AC109: 0 | AJ109: X | AL109: 0.4533333455
A110: 96 | B110: 2020 | C110: SECOP II | D110: FDLF-CD-96-2020 | E110: Contratos de prestación de servicios | F110: Contratación Directa | G110: Prestación de servicios profesionales y de apoyo a la gestión, o para la ejecución de trabajos artísticos que sólo puedan encomendarse a determinadas personas naturales; | H110: PRESTAR SERVICIOS PARA APOYAR ADMINISTRATIVA Y ASISTENCIALMENTE A LAS INSPECCIONES DE POLICÍA DE LA LOCALIDAD. | I110: Inversión | J110: Bogotá Mejor para Todos | K110: 45 | L110: =IF(ISERROR(VLOOKUP(K110,Eje_Pilar_Prop!$C$2:$E$104,2,FALSE))," ",VLOOKUP(K110,Eje_Pilar_Prop!$C$2:$E$104,2,FALSE)) -> Gobernanza e influencia local, regional e internacional | M110: =IF(ISERROR(VLOOKUP(K110,Eje_Pilar_Prop!$C$2:$E$104,3,FALSE))," ",VLOOKUP(K110,Eje_Pilar_Prop!$C$2:$E$104,3,FALSE)) -> Eje Transversal 4 Gobierno Legitimo, Fortalecimiento Local y Eficiencia | N110: 1474 | O110: 1016018384 | P110: DIEGO ALEJANDRO CASTRO MUNZA | Q110: 11815000 | T110: 0 | U110: 0 | V110: 11815000 | W110: 9452000 | X110: 2020-07-24 | Y110: 2020-07-31 | Z110: 2020-12-30 | AA110: 150 | AB110: 0 | AC110: 0 | AJ110: X | AL110: 0.8
A111: 97 | B111: 2020 | C111: SECOP II | D111: FDLF-CD-97-2020 | E111: Contratos de prestación de servicios | F111: Contratación Directa | G111: Prestación de servicios profesionales y de apoyo a la gestión, o para la ejecución de trabajos artísticos que sólo puedan encomendarse a determinadas personas naturales; | H111: PRESTAR SERVICIOS PARA APOYAR ADMINISTRATIVA Y ASISTENCIALMENTE A LAS INSPECCIONES DE POLICÍA DE LA LOCALIDAD | I111: Inversión | J111: Bogotá Mejor para Todos | K111: 45 | L111: =IF(ISERROR(VLOOKUP(K111,Eje_Pilar_Prop!$C$2:$E$104,2,FALSE))," ",VLOOKUP(K111,Eje_Pilar_Prop!$C$2:$E$104,2,FALSE)) -> Gobernanza e influencia local, regional e internacional | M111: =IF(ISERROR(VLOOKUP(K111,Eje_Pilar_Prop!$C$2:$E$104,3,FALSE))," ",VLOOKUP(K111,Eje_Pilar_Prop!$C$2:$E$104,3,FALSE)) -> Eje Transversal 4 Gobierno Legitimo, Fortalecimiento Local y Eficiencia | N111: 1474 | O111: 35221867 | P111: MARIA JOHANA LOPEZ ULCUE | Q111: 11815000 | T111: 1 | U111: 2363000 | V111: 14178000 | W111: 9452000 | X111: 2020-07-27 | Y111: 2020-07-31 | Z111: 2021-01-30 | AA111: 150 | AB111: 1 | AC111: 30 | AI111: X | AL111: 0.6666666667
A112: 98 | B112: 2020 | C112: SECOP II | D112: FDLF-CD-98-2020 | E112: Contratos de prestación de servicios | F112: Contratación Directa | G112: Prestación de servicios profesionales y de apoyo a la gestión, o para la ejecución de trabajos artísticos que sólo puedan encomendarse a determinadas personas naturales; | H112: PRESTAR SERVICIOS PARA APOYAR ADMINISTRATIVA Y ASISTENCIALMENTE A LAS INSPECCIONES DE POLICÍA DE LA LOCALIDAD | I112: Inversión | J112: Bogotá Mejor para Todos | K112: 45 | L112: =IF(ISERROR(VLOOKUP(K112,Eje_Pilar_Prop!$C$2:$E$104,2,FALSE))," ",VLOOKUP(K112,Eje_Pilar_Prop!$C$2:$E$104,2,FALSE)) -> Gobernanza e influencia local, regional e internacional | M112: =IF(ISERROR(VLOOKUP(K112,Eje_Pilar_Prop!$C$2:$E$104,3,FALSE))," ",VLOOKUP(K112,Eje_Pilar_Prop!$C$2:$E$104,3,FALSE)) -> Eje Transversal 4 Gobierno Legitimo, Fortalecimiento Local y Eficiencia | N112: 1474 | O112: 39760197 | P112: SONIA YASMIN BAQUERO PARRADO | Q112: 11815000 | T112: 1 | U112: 2363000 | V112: 14178000 | W112: 9452000 | X112: 2020-07-27 | Y112: 2020-07-31 | Z112: 2021-01-30 | AA112: 150 | AB112: 1 | AC112: 30 | AI112: X | AL112: 0.6666666667
A113: 99 | B113: 2020 | C113: SECOP II | D113: FDLF-CD-99-2020 | E113: Contratos de prestación de servicios | F113: Contratación Directa | G113: Prestación de servicios profesionales y de apoyo a la gestión, o para la ejecución de trabajos artísticos que sólo puedan encomendarse a determinadas personas naturales; | H113: SERVICIOS DE APOYO AL ÁREA DE GESTIÓN DEL DESARROLLO LOCAL DE LA ALCALDÍA LOCAL DE FONTIBÓN. | I113: Inversión | J113: Bogotá Mejor para Todos | K113: 45 | L113: =IF(ISERROR(VLOOKUP(K113,Eje_Pilar_Prop!$C$2:$E$104,2,FALSE))," ",VLOOKUP(K113,Eje_Pilar_Prop!$C$2:$E$104,2,FALSE)) -> Gobernanza e influencia local, regional e internacional | M113: =IF(ISERROR(VLOOKUP(K113,Eje_Pilar_Prop!$C$2:$E$104,3,FALSE))," ",VLOOKUP(K113,Eje_Pilar_Prop!$C$2:$E$104,3,FALSE)) -> Eje Transversal 4 Gobierno Legitimo, Fortalecimiento Local y Eficiencia | N113: 1473 | O113: 1016025481 | P113: DIEGO ARMANDO PÉREZ ROA | Q113: 9452000 | T113: 0 | U113: 0 | V113: 9452000 | W113: 6773933 | X113: 2020-07-29 | Y113: 2020-08-05 | Z113: 2020-12-04 | AA113: 120 | AB113: 0 | AC113: 0 | AJ113: X | AL113: 0.7166666314
A114: 100 | B114: 2020 | C114: SECOP II | D114: FDLF-CD-100-2020 | E114: Contratos de prestación de servicios | F114: Contratación Directa | G114: Prestación de servicios profesionales y de apoyo a la gestión, o para la ejecución de trabajos artísticos que sólo puedan encomendarse a determinadas personas naturales; | H114: SERVICIOS DE APOYO AL ÁREA DE GESTIÓN DEL DESARROLLO LOCAL DE LA ALCALDÍA LOCAL DE FONTIBÓN. | I114: Inversión | J114: Bogotá Mejor para Todos | K114: 45 | L114: =IF(ISERROR(VLOOKUP(K114,Eje_Pilar_Prop!$C$2:$E$104,2,FALSE))," ",VLOOKUP(K114,Eje_Pilar_Prop!$C$2:$E$104,2,FALSE)) -> Gobernanza e influencia local, regional e internacional | M114: =IF(ISERROR(VLOOKUP(K114,Eje_Pilar_Prop!$C$2:$E$104,3,FALSE))," ",VLOOKUP(K114,Eje_Pilar_Prop!$C$2:$E$104,3,FALSE)) -> Eje Transversal 4 Gobierno Legitimo, Fortalecimiento Local y Eficiencia | N114: 1473 | O114: 80165123 | P114: CARLOS ENRIQUE ALFONSO COBALEDA | Q114: 9452000 | T114: 0 | U114: 0 | V114: 9452000 | W114: 6773933 | X114: 2020-07-29 | Y114: 2020-08-05 | Z114: 2020-12-04 | AA114: 120 | AB114: 0 | AC114: 0 | AJ114: X | AL114: 0.7166666314
A115: 101 | B115: 2020 | C115: SECOP II | D115: FDLF-CD-101-2020 | E115: Contratos de prestación de servicios | F115: Contratación Directa | G115: Prestación de servicios profesionales y de apoyo a la gestión, o para la ejecución de trabajos artísticos que sólo puedan encomendarse a determinadas personas naturales; | H115: SERVICIOS DE APOYO AL ÁREA DE GESTIÓN DEL DESARROLLO LOCAL DE LA ALCALDÍA LOCAL DE FONTIBÓN. | I115: Inversión | J115: Bogotá Mejor para Todos | K115: 45 | L115: =IF(ISERROR(VLOOKUP(K115,Eje_Pilar_Prop!$C$2:$E$104,2,FALSE))," ",VLOOKUP(K115,Eje_Pilar_Prop!$C$2:$E$104,2,FALSE)) -> Gobernanza e influencia local, regional e internacional | M115: =IF(ISERROR(VLOOKUP(K115,Eje_Pilar_Prop!$C$2:$E$104,3,FALSE))," ",VLOOKUP(K115,Eje_Pilar_Prop!$C$2:$E$104,3,FALSE)) -> Eje Transversal 4 Gobierno Legitimo, Fortalecimiento Local y Eficiencia | N115: 1473 | O115: 1026585031 | P115: LEONARDO NARVÁEZ PUERTA | Q115: 9452000 | T115: 0 | U115: 0 | V115: 9452000 | W115: 9215700 | X115: 2020-08-03 | Y115: 2020-08-04 | Z115: 2020-12-03 | AA115: 120 | AB115: 0 | AC115: 0 | AJ115: X | AL115: 0.975
A116: 102 | B116: 2020 | C116: SECOP II | D116: FDLF-CD-102-2020 | E116: Contratos de prestación de servicios | F116: Contratación Directa | G116: Prestación de servicios profesionales y de apoyo a la gestión, o para la ejecución de trabajos artísticos que sólo puedan encomendarse a determinadas personas naturales; | H116: PRESTAR SERVICIOS COMO PROFESIONAL QUE DESARROLLE ACTIVIDADES DE FORMULACIÓN Y SEGUIMIENTO A LOS PROYECTOS RELACIONADOS CON INSTANCIAS DE PARTICIPACIÓN, PARA LA ALCALDÍA LOCAL DE FONTIBÓN. | I116: Inversión | J116: Bogotá Mejor para Todos | K116: 45 | L116: =IF(ISERROR(VLOOKUP(K116,Eje_Pilar_Prop!$C$2:$E$104,2,FALSE))," ",VLOOKUP(K116,Eje_Pilar_Prop!$C$2:$E$104,2,FALSE)) -> Gobernanza e influencia local, regional e internacional | M116: =IF(ISERROR(VLOOKUP(K116,Eje_Pilar_Prop!$C$2:$E$104,3,FALSE))," ",VLOOKUP(K116,Eje_Pilar_Prop!$C$2:$E$104,3,FALSE)) -> Eje Transversal 4 Gobierno Legitimo, Fortalecimiento Local y Eficiencia | N116: 1473 | O116: 80492335 | P116: ANDRES FERNANDO MEJIA RINCON | Q116: 16800000 | T116: 0 | U116: 0 | V116: 16800000 | W116: 12740000 | X116: 2020-07-28 | Y116: 2020-07-30 | Z116: 2020-11-29 | AA116: 120 | AB116: 0 | AC116: 0 | AJ116: X | AL116: 0.7583333333
A117: 103 | B117: 2020 | C117: SECOP II | D117: FDLF-CD-103-2020 | E117: Contratos de prestación de servicios | F117: Contratación Directa | G117: Prestación de servicios profesionales y de apoyo a la gestión, o para la ejecución de trabajos artísticos que sólo puedan encomendarse a determinadas personas naturales; | H117: EL CONTRATISTA SE OBLIGA CON EL FONDO DE DESARROLLO LOCAL DE FONTIBÓN A PRESTAR SUS SERVICIOS PROFESIONALES PARA APOYAR LA FORMULACIÓN, EJECUCIÓN, SEGUIMIENTO Y MEJORA CONTINUA DE LAS HERRAMIENTAS QUE CONFORMAN LA GESTIÓN AMBIENTAL INSTITUCIONAL DE LA ALCALDÍA LOCAL DE FONTIBÓN. | I117: Inversión | J117: Bogotá Mejor para Todos | K117: 45 | L117: =IF(ISERROR(VLOOKUP(K117,Eje_Pilar_Prop!$C$2:$E$104,2,FALSE))," ",VLOOKUP(K117,Eje_Pilar_Prop!$C$2:$E$104,2,FALSE)) -> Gobernanza e influencia local, regional e internacional | M117: =IF(ISERROR(VLOOKUP(K117,Eje_Pilar_Prop!$C$2:$E$104,3,FALSE))," ",VLOOKUP(K117,Eje_Pilar_Prop!$C$2:$E$104,3,FALSE)) -> Eje Transversal 4 Gobierno Legitimo, Fortalecimiento Local y Eficiencia | N117: 1474 | O117: 52351073 | P117: SANDRA MILENA CORTÉS PINEDA | Q117: 19132000 | T117: 0 | U117: 0 | V117: 19132000 | W117: 14827299 | X117: 2020-07-23 | Y117: 2020-07-28 | Z117: 2020-11-27 | AA117: 120 | AB117: 0 | AC117: 0 | AJ117: X | AL117: 0.7749999477
A118: 104 | B118: 2020 | C118: SECOP II | D118: FDLF-CD-104-2020 | E118: Contratos de prestación de servicios | F118: Contratación Directa | G118: Prestación de servicios profesionales y de apoyo a la gestión, o para la ejecución de trabajos artísticos que sólo puedan encomendarse a determinadas personas naturales; | H118: SERVICIOS DE APOYO AL ÁREA DE GESTIÓN DEL DESARROLLO LOCAL DE LA ALCALDÍA LOCAL DE FONTIBÓN. | I118: Inversión | J118: Bogotá Mejor para Todos | K118: 45 | L118: =IF(ISERROR(VLOOKUP(K118,Eje_Pilar_Prop!$C$2:$E$104,2,FALSE))," ",VLOOKUP(K118,Eje_Pilar_Prop!$C$2:$E$104,2,FALSE)) -> Gobernanza e influencia local, regional e internacional | M118: =IF(ISERROR(VLOOKUP(K118,Eje_Pilar_Prop!$C$2:$E$104,3,FALSE))," ",VLOOKUP(K118,Eje_Pilar_Prop!$C$2:$E$104,3,FALSE)) -> Eje Transversal 4 Gobierno Legitimo, Fortalecimiento Local y Eficiencia | N118: 1473 | O118: 1010230934 | P118: DAYRA ALEJANDRA SANCHEZ TOBAR | Q118: 9452000 | T118: 0 | U118: 0 | V118: 9452000 | W118: 6773933 | X118: 2020-08-03 | Y118: 2020-08-05 | Z118: 2020-12-04 | AA118: 120 | AB118: 0 | AC118: 0 | AJ118: X | AL118: 0.7166666314
A119: 105 | B119: 2020 | C119: SECOP II | D119: FDLF-CD-105-2020 | E119: Contratos de prestación de servicios | F119: Contratación Directa | G119: Prestación de servicios profesionales y de apoyo a la gestión, o para la ejecución de trabajos artísticos que sólo puedan encomendarse a determinadas personas naturales; | H119: PRESTAR SERVICIOS PARA APOYAR ADMINISTRATIVA Y ASISTENCIALMENTE A LAS INSPECCIONES DE POLICÍA DE LA LOCALIDAD. | I119: Inversión | J119: Bogotá Mejor para Todos | K119: 45 | L119: =IF(ISERROR(VLOOKUP(K119,Eje_Pilar_Prop!$C$2:$E$104,2,FALSE))," ",VLOOKUP(K119,Eje_Pilar_Prop!$C$2:$E$104,2,FALSE)) -> Gobernanza e influencia local, regional e internacional | M119: =IF(ISERROR(VLOOKUP(K119,Eje_Pilar_Prop!$C$2:$E$104,3,FALSE))," ",VLOOKUP(K119,Eje_Pilar_Prop!$C$2:$E$104,3,FALSE)) -> Eje Transversal 4 Gobierno Legitimo, Fortalecimiento Local y Eficiencia | N119: 1474 | O119: 88220745 | P119: JULIO CESAR CALDERON SUAREZ | Q119: 11815000 | T119: 0 | U119: 0 | V119: 11815000 | W119: 9452000 | X119: 2020-07-27 | Y119: 2020-07-31 | Z119: 2020-12-30 | AA119: 150 | AB119: 0 | AC119: 0 | AJ119: X | AL119: 0.8
A120: 106 | B120: 2020 | C120: SECOP II | D120: FDLF-CD-106-2020 | E120: Contratos de prestación de servicios | F120: Contratación Directa | G120: Prestación de servicios profesionales y de apoyo a la gestión, o para la ejecución de trabajos artísticos que sólo puedan encomendarse a determinadas personas naturales; | H120: PRESTAR LOS SERVICIOS COMO PROFESIONAL ESPECIALIZADO AL ÁREA DE GESTIÓN DE DESARROLLO LOCAL. | I120: Inversión | J120: Bogotá Mejor para Todos | K120: 45 | L120: =IF(ISERROR(VLOOKUP(K120,Eje_Pilar_Prop!$C$2:$E$104,2,FALSE))," ",VLOOKUP(K120,Eje_Pilar_Prop!$C$2:$E$104,2,FALSE)) -> Gobernanza e influencia local, regional e internacional | M120: =IF(ISERROR(VLOOKUP(K120,Eje_Pilar_Prop!$C$2:$E$104,3,FALSE))," ",VLOOKUP(K120,Eje_Pilar_Prop!$C$2:$E$104,3,FALSE)) -> Eje Transversal 4 Gobierno Legitimo, Fortalecimiento Local y Eficiencia | N120: 1474 | O120: 52055580 | P120: NARDA CONSUELO PERILLA ALONSO | Q120: 32925000 | T120: 1 | U120: 6585000 | V120: 39510000 | W120: 26340000 | X120: 2020-07-30 | Y120: 2020-07-31 | Z120: 2021-01-30 | AA120: 150 | AB120: 1 | AC120: 30 | AI120: X | AL120: 0.6666666667
A121: 108 | B121: 2020 | C121: SECOP II | D121: FDLF-CD-108-2020 | E121: Contratos de prestación de servicios | F121: Contratación Directa | G121: Prestación de servicios profesionales y de apoyo a la gestión, o para la ejecución de trabajos artísticos que sólo puedan encomendarse a determinadas personas naturales; | H121: PRESTAR SERVICIOS PROFESIONALES PARA LA OPERACIÓN DEL PROYECTO PUNTO VIVE DIGITAL DE LA LOCALIDAD DE FONTIBÓN. | I121: Inversión | J121: Bogotá Mejor para Todos | K121: 45 | L121: =IF(ISERROR(VLOOKUP(K121,Eje_Pilar_Prop!$C$2:$E$104,2,FALSE))," ",VLOOKUP(K121,Eje_Pilar_Prop!$C$2:$E$104,2,FALSE)) -> Gobernanza e influencia local, regional e internacional | M121: =IF(ISERROR(VLOOKUP(K121,Eje_Pilar_Prop!$C$2:$E$104,3,FALSE))," ",VLOOKUP(K121,Eje_Pilar_Prop!$C$2:$E$104,3,FALSE)) -> Eje Transversal 4 Gobierno Legitimo, Fortalecimiento Local y Eficiencia | N121: 1474 | O121: 80801120 | P121: STEVE LEONARDO CHAMUCERO BARBOSA | Q121: 28265000 | T121: 1 | U121: 11306000 | V121: 39571000 | W121: 22235133 | X121: 2020-07-30 | Y121: 2020-08-03 | Z121: 2021-02-28 | AA121: 150 | AB121: 1 | AC121: 60 | AI121: X | AL121: 0.5619047535
A122: 109 | B122: 2020 | C122: SECOP II | D122: FDLF-CD-109-2020 | E122: Contratos de prestación de servicios | F122: Contratación Directa | G122: Prestación de servicios profesionales y de apoyo a la gestión, o para la ejecución de trabajos artísticos que sólo puedan encomendarse a determinadas personas naturales; | H122: PRESTACIÓN DE SERVICIOS PROFESIONALES PARA APOYAR A LA ALCALDÍA LOCAL DE FONTIBÓN EN TEMAS ORIENTADOS A SALUD Y LA POBLACIÓN ADULTO MAYOR DE LA LOCALIDAD. | I122: Inversión | J122: Bogotá Mejor para Todos | K122: 3 | L122: =IF(ISERROR(VLOOKUP(K122,Eje_Pilar_Prop!$C$2:$E$104,2,FALSE))," ",VLOOKUP(K122,Eje_Pilar_Prop!$C$2:$E$104,2,FALSE)) -> Igualdad y autonomía para una Bogotá incluyente | M122: =IF(ISERROR(VLOOKUP(K122,Eje_Pilar_Prop!$C$2:$E$104,3,FALSE))," ",VLOOKUP(K122,Eje_Pilar_Prop!$C$2:$E$104,3,FALSE)) -> Pilar 1 Igualdad de Calidad de Vida | N122: 1453 | O122: 51938884 | P122: MARTHA PATRICIA NIÑO TORO | Q122: 19132000 | T122: 0 | U122: 0 | V122: 19132000 | W122: 18494267 | X122: 2020-08-04 | Y122: 2020-08-05 | Z122: 2020-12-04 | AA122: 120 | AB122: 0 | AC122: 0 | AJ122: X | AL122: 0.9666666841
A123: 110 | B123: 2020 | C123: SECOP II | D123: FDLF-CD-110-2020 | E123: Contratos de prestación de servicios | F123: Contratación Directa | G123: Prestación de servicios profesionales y de apoyo a la gestión, o para la ejecución de trabajos artísticos que sólo puedan encomendarse a determinadas personas naturales; | H123: SERVICIOS PROFESIONALES PARA LA OPERACIÓN, PRESTACIÓN, SEGUIMIENTO Y CUMPLIMIENTO DE LOS PROCEDIMIENTOS ADMINISTRATIVOS, OPERATIVOS Y PROGRAMÁTICOS DEL SERVICIO APOYO ECONÓMICO TIPO C, QUE CONTRIBUYAN A LA GARANTÍA DE LOS DERECHOS DE LA POBLACIÓN MAYOR EN EL MARCO DE LA POLÍTICA PÚBLICA SOCIAL PARA EL ENVEJECIMIENTO Y LA VEJEZ EN EL DISTRITO CAPITAL A CARGO DE LA ALCALDÍA LOCAL | I123: Inversión | J123: Bogotá Mejor para Todos | K123: 3 | L123: =IF(ISERROR(VLOOKUP(K123,Eje_Pilar_Prop!$C$2:$E$104,2,FALSE))," ",VLOOKUP(K123,Eje_Pilar_Prop!$C$2:$E$104,2,FALSE)) -> Igualdad y autonomía para una Bogotá incluyente | M123: =IF(ISERROR(VLOOKUP(K123,Eje_Pilar_Prop!$C$2:$E$104,3,FALSE))," ",VLOOKUP(K123,Eje_Pilar_Prop!$C$2:$E$104,3,FALSE)) -> Pilar 1 Igualdad de Calidad de Vida | N123: 1453 | O123: 41795474 | P123: FLOR MERY CONEJO RODDRIGUEZ | Q123: 23277267 | T123: 0 | U123: 0 | V123: 23277267 | W123: 18494267 | X123: 2020-08-04 | Y123: 2020-08-05 | Z123: 2020-12-30 | AA123: 146 | AB123: 0 | AC123: 0 | AJ123: X | AL123: 0.7945205509
A124: 111 | B124: 2020 | C124: SECOP II | D124: FDLF-CD-111-2020 | E124: Contratos de prestación de servicios | F124: Contratación Directa | G124: Prestación de servicios profesionales y de apoyo a la gestión, o para la ejecución de trabajos artísticos que sólo puedan encomendarse a determinadas personas naturales; | H124: APOYAR AL EQUIPO DE PRENSA Y COMUNICACIONES DE LA ALCALDÍA LOCAL EN LA REALIZACIÓN Y PUBLICACIÓN DE CONTENIDOS DE REDES SOCIALES Y CANALES DE DIVULGACIÓN DIGITAL (SITIO WEB) DE LA ALCALDÍA LOCAL. | I124: Inversión | J124: Bogotá Mejor para Todos | K124: 45 | L124: =IF(ISERROR(VLOOKUP(K124,Eje_Pilar_Prop!$C$2:$E$104,2,FALSE))," ",VLOOKUP(K124,Eje_Pilar_Prop!$C$2:$E$104,2,FALSE)) -> Gobernanza e influencia local, regional e internacional | M124: =IF(ISERROR(VLOOKUP(K124,Eje_Pilar_Prop!$C$2:$E$104,3,FALSE))," ",VLOOKUP(K124,Eje_Pilar_Prop!$C$2:$E$104,3,FALSE)) -> Eje Transversal 4 Gobierno Legitimo, Fortalecimiento Local y Eficiencia | N124: 1474 | O124: 80801473 | P124: JOHN ALEXANDER GARZÓN MORENO | Q124: 22480100 | T124: 0 | U124: 0 | V124: 22480100 | W124: 17537666 | X124: 2020-08-10 | Y124: 2020-08-11 | Z124: 2020-12-30 | AA124: 141 | AB124: 0 | AC124: 0 | AJ124: X | AL124: 0.7801418143
A125: 112 | B125: 2020 | C125: SECOP II | D125: FDLF-CD-112-2020 | E125: Contratos de prestación de servicios | F125: Contratación Directa | G125: Prestación de servicios profesionales y de apoyo a la gestión, o para la ejecución de trabajos artísticos que sólo puedan encomendarse a determinadas personas naturales; | H125: APOYAR AL ALCALDE LOCAL EN LA GESTIÓN DE LOS ASUNTOS RELACIONADOS CON SEGURIDAD CIUDADANA, CONVIVENCIA Y PREVENCIÓN DE CONFLICTIVIDADES, VIOLENCIAS Y DELITOS EN LA LOCALIDAD, DE CONFORMIDAD CON EL MARCO NORMATIVO APLICABLE EN LA MATERIA. | I125: Inversión | J125: Bogotá Mejor para Todos | K125: 19 | L125: =IF(ISERROR(VLOOKUP(K125,Eje_Pilar_Prop!$C$2:$E$104,2,FALSE))," ",VLOOKUP(K125,Eje_Pilar_Prop!$C$2:$E$104,2,FALSE)) -> Seguridad y convivencia para todos | M125: =IF(ISERROR(VLOOKUP(K125,Eje_Pilar_Prop!$C$2:$E$104,3,FALSE))," ",VLOOKUP(K125,Eje_Pilar_Prop!$C$2:$E$104,3,FALSE)) -> Pilar 3 Construcción de Comunidad y Cultura Ciudadana | N125: 1467 | O125: 1019045244 | P125: JULIETH JOHANA GARCIA LÓPEZ | Q125: 23277267 | T125: 0 | U125: 0 | V125: 23277267 | W125: 0 | X125: 2020-08-05 | Y125: 2020-08-05 | Z125: 2020-12-30 | AA125: 146 | AB125: 0 | AC125: 0 | AJ125: X | AL125: 0
A126: 113 | B126: 2020 | C126: SECOP II | D126: FDLF-CD-113-2020 | E126: Contratos de prestación de servicios | F126: Contratación Directa | G126: Prestación de servicios profesionales y de apoyo a la gestión, o para la ejecución de trabajos artísticos que sólo puedan encomendarse a determinadas personas naturales; | H126: COORDINAR, LIDERAR Y ASESORAR LOS PLANES Y ESTRATEGIAS DE COMUNICACIÓN INTERNA Y EXTERNA PARA LA DIVULGACIÓN DE LOS PROGRAMAS, PROYECTOS Y ACTIVIDADES DE ALCALDÍA LOCAL DE FONTIBÓN. | I126: Inversión | J126: Bogotá Mejor para Todos | K126: 45 | L126: =IF(ISERROR(VLOOKUP(K126,Eje_Pilar_Prop!$C$2:$E$104,2,FALSE))," ",VLOOKUP(K126,Eje_Pilar_Prop!$C$2:$E$104,2,FALSE)) -> Gobernanza e influencia local, regional e internacional | M126: =IF(ISERROR(VLOOKUP(K126,Eje_Pilar_Prop!$C$2:$E$104,3,FALSE))," ",VLOOKUP(K126,Eje_Pilar_Prop!$C$2:$E$104,3,FALSE)) -> Eje Transversal 4 Gobierno Legitimo, Fortalecimiento Local y Eficiencia | N126: 1474 | O126: 79654994 | P126: JORGE ENRIQUE CAÑON UBAQUE | Q126: 30550000 | T126: 1 | U126: 13000000 | V126: 43550000 | W126: 23833333 | X126: 2020-08-10 | Y126: 2020-08-11 | Z126: 2020-02-28 | AA126: 141 | AB126: 1 | AC126: 60 | AI126: X | AL126: 0.5472636739
A127: 114 | B127: 2020 | C127: SECOP II | D127: FDLF-CD-114-2020 | E127: Contratos de prestación de servicios | F127: Contratación Directa | G127: Prestación de servicios profesionales y de apoyo a la gestión, o para la ejecución de trabajos artísticos que sólo puedan encomendarse a determinadas personas naturales; | H127: PRESTAR SERVICIOS PROFESIONALES PARA EL DESARROLLO DE ACTIVIDADES ORIENTADAS A LA IMPLEMENTACIÓN DEL PROYECTO ESTRATÉGICO DEL SECTOR DE SEGURIDAD Y CONVIVENCIA DE LA ALCALDÍA LOCAL DE FONTIBÓN. | I127: Inversión | J127: Bogotá Mejor para Todos | K127: 19 | L127: =IF(ISERROR(VLOOKUP(K127,Eje_Pilar_Prop!$C$2:$E$104,2,FALSE))," ",VLOOKUP(K127,Eje_Pilar_Prop!$C$2:$E$104,2,FALSE)) -> Seguridad y convivencia para todos | M127: =IF(ISERROR(VLOOKUP(K127,Eje_Pilar_Prop!$C$2:$E$104,3,FALSE))," ",VLOOKUP(K127,Eje_Pilar_Prop!$C$2:$E$104,3,FALSE)) -> Pilar 3 Construcción de Comunidad y Cultura Ciudadana | N127: 1467 | O127: 73161809 | P127: FARID PUELLO PEREZ | Q127: 20440000 | T127: 1 | U127: 4200000 | V127: 24640000 | W127: 16240000 | X127: 2020-08-04 | Y127: 2020-08-05 | Z127: 2021-01-30 | AA127: 146 | AB127: 1 | AC127: 30 | AI127: X | AL127: 0.6590909091
A128: 115 | B128: 2020 | C128: SECOP II | D128: FDLF-CD-115-2020 | E128: Contratos de prestación de servicios | F128: Contratación Directa | G128: Prestación de servicios profesionales y de apoyo a la gestión, o para la ejecución de trabajos artísticos que sólo puedan encomendarse a determinadas personas naturales; | H128: PRESTAR SERVICIOS PROFESIONALES PARA APOYAR TÉCNICAMENTE LAS DISTINTAS ETAPAS DE LOS PROCESOS DE COMPETENCIA DE LAS INSPECCIONES DE POLICÍA DE LA LOCALIDAD, SEGÚN REPARTO. | I128: Inversión | J128: Bogotá Mejor para Todos | K128: 45 | L128: =IF(ISERROR(VLOOKUP(K128,Eje_Pilar_Prop!$C$2:$E$104,2,FALSE))," ",VLOOKUP(K128,Eje_Pilar_Prop!$C$2:$E$104,2,FALSE)) -> Gobernanza e influencia local, regional e internacional | M128: =IF(ISERROR(VLOOKUP(K128,Eje_Pilar_Prop!$C$2:$E$104,3,FALSE))," ",VLOOKUP(K128,Eje_Pilar_Prop!$C$2:$E$104,3,FALSE)) -> Eje Transversal 4 Gobierno Legitimo, Fortalecimiento Local y Eficiencia | N128: 1474 | O128: 1123085092 | P128: JUAN DAVID PEÑA GARAVITO | Q128: 28265000 | T128: 0 | U128: 0 | V128: 28265000 | W128: 19408633 | X128: 2020-08-13 | Y128: 2020-08-18 | Z128: 2020-12-30 | AA128: 134 | AB128: 0 | AC128: 0 | AJ128: X | AL128: 0.6866666549
A129: 116 | B129: 2020 | C129: SECOP II | D129: FDLF-CD-116-2020 | E129: Contratos de prestación de servicios | F129: Contratación Directa | G129: Prestación de servicios profesionales y de apoyo a la gestión, o para la ejecución de trabajos artísticos que sólo puedan encomendarse a determinadas personas naturales; | H129: PRESTAR SERVICIOS PROFESIONALES PARA APOYAR TÉCNICAMENTE LAS DISTINTAS ETAPAS DE LOS PROCESOS DE COMPETENCIA DE LAS INSPECCIONES DE POLICÍA DE LA LOCALIDAD, SEGÚN REPARTO. | I129: Inversión | J129: Bogotá Mejor para Todos | K129: 45 | L129: =IF(ISERROR(VLOOKUP(K129,Eje_Pilar_Prop!$C$2:$E$104,2,FALSE))," ",VLOOKUP(K129,Eje_Pilar_Prop!$C$2:$E$104,2,FALSE)) -> Gobernanza e influencia local, regional e internacional | M129: =IF(ISERROR(VLOOKUP(K129,Eje_Pilar_Prop!$C$2:$E$104,3,FALSE))," ",VLOOKUP(K129,Eje_Pilar_Prop!$C$2:$E$104,3,FALSE)) -> Eje Transversal 4 Gobierno Legitimo, Fortalecimiento Local y Eficiencia | N129: 1474 | O129: 1010176279 | P129: HECTOR JAVIER VARGAS NAVARRO | Q129: 28265000 | T129: 0 | U129: 0 | V129: 28265000 | W129: 2449633 | X129: 2020-08-12 | Y129: 2020-08-18 | Z129: 2020-12-30 | AA129: 134 | AB129: 0 | AC129: 0 | AD129: 39536092 | AE129: ANA YANET LEGUIZAMON FANDIÑO | AF129: 2020-11-11 | AG129: 17147434 | AJ129: X | AL129: 0.08666665487
A130: 117 | B130: 2020 | C130: SECOP II | D130: FDLF-IPMC-5-2020 | E130: Suministro | F130: Contratación mínima cuantia | G130: No aplica | H130: SUMINISTRO, DE ELEMENTOS DE PROTECCIÓN Y BIOSEGURIDAD, PARA LOS FUNCIONARIOS DE LA ALCALDÍA LOCAL DE FONTIBÓN, INSPECCIONES DE POLICÍA Y JUNTA ADMINISTRADORA LOCAL, CON RAZÓN A LA EMERGENCIA SANITARIA CAUSADA EN EL PAÍS, POR LA ENFERMEDAD COVID-19 ESTABLECIDA EN EL DECRETO NACIONAL 457 DE 2020, DECRETO DISTRITAL 092 DE 2020 Y DEMÁS NORMAS QUE LAS MODIFIQUEN | I130: Inversión | J130: Bogotá Mejor para Todos | K130: 45 | L130: =IF(ISERROR(VLOOKUP(K130,Eje_Pilar_Prop!$C$2:$E$104,2,FALSE))," ",VLOOKUP(K130,Eje_Pilar_Prop!$C$2:$E$104,2,FALSE)) -> Gobernanza e influencia local, regional e internacional | M130: =IF(ISERROR(VLOOKUP(K130,Eje_Pilar_Prop!$C$2:$E$104,3,FALSE))," ",VLOOKUP(K130,Eje_Pilar_Prop!$C$2:$E$104,3,FALSE)) -> Eje Transversal 4 Gobierno Legitimo, Fortalecimiento Local y Eficiencia | N130: 1474 | O130: 800.209.890-1 | P130: COMERCIALIZADORA VINARTA SAS | Q130: 12519667 | T130: 0 | U130: 0 | V130: 12519667 | W130: 0 | X130: 2020-08-06 | Y130: 2020-08-11 | Z130: 2020-11-25 | AA130: 75 | AB130: 0 | AC130: 0 | AJ130: X | AL130: 0
A131: 118 | B131: 2020 | C131: SECOP II | D131: FDLF-CD-118-2020 | E131: Contratos de prestación de servicios | F131: Contratación Directa | G131: Prestación de servicios profesionales y de apoyo a la gestión, o para la ejecución de trabajos artísticos que sólo puedan encomendarse a determinadas personas naturales; | H131: PRESTAR SERVICIOS PROFESIONALES PARA BRINDAR APOYO AL ALMACÉN EN LA PROYECCIÓN, SEGUIMIENTO Y APOYO A LA SUPERVISIÓN DE COMODATOS. | I131: Inversión | J131: Bogotá Mejor para Todos | K131: 45 | L131: =IF(ISERROR(VLOOKUP(K131,Eje_Pilar_Prop!$C$2:$E$104,2,FALSE))," ",VLOOKUP(K131,Eje_Pilar_Prop!$C$2:$E$104,2,FALSE)) -> Gobernanza e influencia local, regional e internacional | M131: =IF(ISERROR(VLOOKUP(K131,Eje_Pilar_Prop!$C$2:$E$104,3,FALSE))," ",VLOOKUP(K131,Eje_Pilar_Prop!$C$2:$E$104,3,FALSE)) -> Eje Transversal 4 Gobierno Legitimo, Fortalecimiento Local y Eficiencia | N131: 1474 | O131: 39750866 | P131: EDITH LUCIA QUECANO CÁRDENAS | Q131: 16800000 | T131: 1 | U131: 8400000 | V131: 25200000 | W131: 15540000 | X131: 2020-08-06 | Y131: 2020-08-10 | Z131: 2021-02-09 | AA131: 120 | AB131: 1 | AC131: 60 | AI131: X | AL131: 0.6166666667
A132: 119 | B132: 2020 | C132: SECOP II | D132: FDLF-CD-119-2020 | E132: Contratos de prestación de servicios | F132: Contratación Directa | G132: Prestación de servicios profesionales y de apoyo a la gestión, o para la ejecución de trabajos artísticos que sólo puedan encomendarse a determinadas personas naturales; | H132: PRESTAR SERVICIOS PARA APOYAR LAS LABORES DE NOTIFICACIÓN DE CORRESPONDENCIA DE LA ALCALDÍA LOCAL DE FONTIBÓN. | I132: Inversión | J132: Bogotá Mejor para Todos | K132: 45 | L132: =IF(ISERROR(VLOOKUP(K132,Eje_Pilar_Prop!$C$2:$E$104,2,FALSE))," ",VLOOKUP(K132,Eje_Pilar_Prop!$C$2:$E$104,2,FALSE)) -> Gobernanza e influencia local, regional e internacional | M132: =IF(ISERROR(VLOOKUP(K132,Eje_Pilar_Prop!$C$2:$E$104,3,FALSE))," ",VLOOKUP(K132,Eje_Pilar_Prop!$C$2:$E$104,3,FALSE)) -> Eje Transversal 4 Gobierno Legitimo, Fortalecimiento Local y Eficiencia | N132: 1474 | O132: 86004084 | P132: JOSE OCTAVIO CRUZ NINCOR | Q132: 11106100 | T132: 1 | U132: 2363000 | V132: 13469100 | W132: 8585566 | X132: 2020-08-06 | Y132: 2020-08-12 | Z132: 2021-01-30 | AA132: 141 | AB132: 1 | AC132: 30 | AI132: X | AL132: 0.6374268511
A133: 120 | B133: 2020 | C133: SECOP II | D133: FDLF-CD-120-2020 | E133: Contratos de prestación de servicios | F133: Contratación Directa | G133: Prestación de servicios profesionales y de apoyo a la gestión, o para la ejecución de trabajos artísticos que sólo puedan encomendarse a determinadas personas naturales; | H133: PRESTAR SERVICIOS PARA APOYAR LAS LABORES DE NOTIFICACIÓN DE CORRESPONDENCIA DE LA ALCALDÍA LOCAL DE FONTIBÓN. | I133: Inversión | J133: Bogotá Mejor para Todos | K133: 45 | L133: =IF(ISERROR(VLOOKUP(K133,Eje_Pilar_Prop!$C$2:$E$104,2,FALSE))," ",VLOOKUP(K133,Eje_Pilar_Prop!$C$2:$E$104,2,FALSE)) -> Gobernanza e influencia local, regional e internacional | M133: =IF(ISERROR(VLOOKUP(K133,Eje_Pilar_Prop!$C$2:$E$104,3,FALSE))," ",VLOOKUP(K133,Eje_Pilar_Prop!$C$2:$E$104,3,FALSE)) -> Eje Transversal 4 Gobierno Legitimo, Fortalecimiento Local y Eficiencia | N133: 1474 | O133: 79538248 | P133: SABAS CRUZ ORTIZ | Q133: 11106100 | T133: 1 | U133: 2363000 | V133: 13469100 | W133: 8743100 | X133: 2020-08-06 | Y133: 2020-08-10 | Z133: 2021-01-31 | AA133: 141 | AB133: 1 | AC133: 30 | AI133: X | AL133: 0.649122807
A134: 121 | B134: 2020 | C134: SECOP II | D134: FDLF-CD-121-2020 | E134: Contratos de prestación de servicios | F134: Contratación Directa | G134: Prestación de servicios profesionales y de apoyo a la gestión, o para la ejecución de trabajos artísticos que sólo puedan encomendarse a determinadas personas naturales; | H134: PRESTAR SERVICIOS PARA APOYAR LAS ACTIVIDADES OPERATIVAS Y ADMINISTRATIVAS DE LA JUNTA ADMINISTRADORA LOCAL. | I134: Inversión | J134: Bogotá Mejor para Todos | K134: 45 | L134: =IF(ISERROR(VLOOKUP(K134,Eje_Pilar_Prop!$C$2:$E$104,2,FALSE))," ",VLOOKUP(K134,Eje_Pilar_Prop!$C$2:$E$104,2,FALSE)) -> Gobernanza e influencia local, regional e internacional | M134: =IF(ISERROR(VLOOKUP(K134,Eje_Pilar_Prop!$C$2:$E$104,3,FALSE))," ",VLOOKUP(K134,Eje_Pilar_Prop!$C$2:$E$104,3,FALSE)) -> Eje Transversal 4 Gobierno Legitimo, Fortalecimiento Local y Eficiencia | N134: 1474 | O134: 52974047 | P134: ANGELICA MARIA SALAZAR BAYONA | Q134: 11106100 | T134: 0 | U134: 0 | V134: 11106100 | W134: 6222567 | X134: 2020-08-06 | Y134: 2020-08-12 | Z134: 2020-12-30 | AA134: 139 | AB134: 0 | AC134: 0 | AD134: 80802214 | AE134: GUILLERMO SANMIGUEL SALAMANCA | AF134: 2020-09-24 | AG134: 7561585 | AJ134: X | AL134: 0.560283718
A135: 122 | B135: 2020 | C135: SECOP II | D135: FDLF-CD-122-2020 | E135: Contratos de prestación de servicios | F135: Contratación Directa | G135: Prestación de servicios profesionales y de apoyo a la gestión, o para la ejecución de trabajos artísticos que sólo puedan encomendarse a determinadas personas naturales; | H135: PRESTAR SERVICIOS DE APOYO A LA ÁREA DE GESTIÓN DEL DESARROLLO LOCAL DE LA ALCALDÍA LOCAL DE FONTIBÓN. | I135: Inversión | J135: Bogotá Mejor para Todos | K135: 45 | L135: =IF(ISERROR(VLOOKUP(K135,Eje_Pilar_Prop!$C$2:$E$104,2,FALSE))," ",VLOOKUP(K135,Eje_Pilar_Prop!$C$2:$E$104,2,FALSE)) -> Gobernanza e influencia local, regional e internacional | M135: =IF(ISERROR(VLOOKUP(K135,Eje_Pilar_Prop!$C$2:$E$104,3,FALSE))," ",VLOOKUP(K135,Eje_Pilar_Prop!$C$2:$E$104,3,FALSE)) -> Eje Transversal 4 Gobierno Legitimo, Fortalecimiento Local y Eficiencia | N135: 1474 | O135: 80147386 | P135: JOHN FREDY HERRERA RINCON | Q135: 11106100 | T135: 1 | U135: 2363000 | V135: 13469100 | W135: 8743100 | X135: 2020-08-06 | Y135: 2020-08-10 | Z135: 30//01/2021 | AA135: 141 | AB135: 1 | AC135: 30 | AI135: X | AL135: 0.649122807
A136: 123 | B136: 2020 | C136: SECOP II | D136: FDLF-CD-123-2020 | E136: Contratos de prestación de servicios | F136: Contratación Directa | G136: Prestación de servicios profesionales y de apoyo a la gestión, o para la ejecución de trabajos artísticos que sólo puedan encomendarse a determinadas personas naturales; | H136: SERVICIOS DE APOYO A LA GESTIÓN DE LA ALCALDÍA LOCAL DE FONTIBÓN EN LA RECEPCIÓN DE CORRESPONDENCIA INTERNA Y EXTERNA, ASÍ COMO LA ASIGNACIÓN INTERNA DE LAS SOLICITUDES Y/O CORRESPONDENCIA RECIBIDA. | I136: Inversión | J136: Bogotá Mejor para Todos | K136: 45 | L136: =IF(ISERROR(VLOOKUP(K136,Eje_Pilar_Prop!$C$2:$E$104,2,FALSE))," ",VLOOKUP(K136,Eje_Pilar_Prop!$C$2:$E$104,2,FALSE)) -> Gobernanza e influencia local, regional e internacional | M136: =IF(ISERROR(VLOOKUP(K136,Eje_Pilar_Prop!$C$2:$E$104,3,FALSE))," ",VLOOKUP(K136,Eje_Pilar_Prop!$C$2:$E$104,3,FALSE)) -> Eje Transversal 4 Gobierno Legitimo, Fortalecimiento Local y Eficiencia | N136: 1474 | O136: 53925244 | P136: XIMENA ANDREA PARRAGA GOMEZ | Q136: 10948567 | T136: 1 | U136: 4726000 | V136: 15674567 | W136: 0 | X136: 2020-08-11 | Y136: 2020-08-12 | Z136: 2021-02-28 | AA136: 139 | AB136: 1 | AC136: 60 | AI136: X | AL136: 0
A137: 124 | B137: 2020 | C137: SECOP II | D137: FDLF-CD-124-2020 | E137: Contratos de prestación de servicios | F137: Contratación Directa | G137: Prestación de servicios profesionales y de apoyo a la gestión, o para la ejecución de trabajos artísticos que sólo puedan encomendarse a determinadas personas naturales; | H137: SERVICIOS DE APOYO A LA GESTIÓN DE LA ALCALDÍA LOCAL DE FONTIBÓN EN LA RECEPCIÓN DE CORRESPONDENCIA INTERNA Y EXTERNA, ASÍ COMO LA ASIGNACIÓN INTERNA DE LAS SOLICITUDES Y/O CORRESPONDENCIA RECIBIDA. | I137: Inversión | J137: Bogotá Mejor para Todos | K137: 45 | L137: =IF(ISERROR(VLOOKUP(K137,Eje_Pilar_Prop!$C$2:$E$104,2,FALSE))," ",VLOOKUP(K137,Eje_Pilar_Prop!$C$2:$E$104,2,FALSE)) -> Gobernanza e influencia local, regional e internacional | M137: =IF(ISERROR(VLOOKUP(K137,Eje_Pilar_Prop!$C$2:$E$104,3,FALSE))," ",VLOOKUP(K137,Eje_Pilar_Prop!$C$2:$E$104,3,FALSE)) -> Eje Transversal 4 Gobierno Legitimo, Fortalecimiento Local y Eficiencia | N137: 1474 | O137: 51876290 | P137: JACQUELIN SALAS SANCHEZ | Q137: 10791033 | T137: 1 | U137: 2363000 | V137: 13154033 | W137: 945200 | X137: 2020-08-13 | Y137: 2020-08-14 | Z137: 2021-01-30 | AA137: 137 | AB137: 1 | AC137: 30 | AD137: 10179441 | AE137: OSCAR EMILIO CORTES RODRIGUEZ | AF137: 2020-11-19 | AG137: 3308199 | AI137: X | AL137: 0.07185628925
A138: 125 | B138: 2020 | C138: SECOP II | D138: FDLF-CD-125-2020 | E138: Contratos de prestación de servicios | F138: Contratación Directa | G138: Prestación de servicios profesionales y de apoyo a la gestión, o para la ejecución de trabajos artísticos que sólo puedan encomendarse a determinadas personas naturales; | H138: PRESTAR SERVICIOS PROFESIONALES DE APOYO EN LOS PROCESOS DE COBRO PERSUASIVO DE LAS OBLIGACIONES CLARAS, EXPRESAS Y ACTUALMENTE EXIGIBLES, POR CONCEPTO DE MULTAS IMPUESTAS POR EL ÁREA DE GESTIÓN POLICIVA. | I138: Inversión | J138: Bogotá Mejor para Todos | K138: 45 | L138: =IF(ISERROR(VLOOKUP(K138,Eje_Pilar_Prop!$C$2:$E$104,2,FALSE))," ",VLOOKUP(K138,Eje_Pilar_Prop!$C$2:$E$104,2,FALSE)) -> Gobernanza e influencia local, regional e internacional | M138: =IF(ISERROR(VLOOKUP(K138,Eje_Pilar_Prop!$C$2:$E$104,3,FALSE))," ",VLOOKUP(K138,Eje_Pilar_Prop!$C$2:$E$104,3,FALSE)) -> Eje Transversal 4 Gobierno Legitimo, Fortalecimiento Local y Eficiencia | N138: 1474 | O138: 36302596 | P138: CLARA ISABEL RAMIREZ CORDOBA | Q138: 22001800 | T138: 0 | U138: 0 | V138: 22001800 | W138: 12276366 | X138: 2020-08-12 | Y138: 2020-08-14 | Z138: 2021-01-01 | AA138: 138 | AB138: 0 | AC138: 0 | AI138: X | AL138: 0.5579709842
A139: 126 | B139: 2020 | C139: SECOP II | D139: FDLF-CD-126-2020 | E139: Contratos de prestación de servicios | F139: Contratación Directa | G139: Prestación de servicios profesionales y de apoyo a la gestión, o para la ejecución de trabajos artísticos que sólo puedan encomendarse a determinadas personas naturales; | H139: PRESTAR LOS SERVICIOS COMO PROFESIONAL ESPECIALIZADO PARA BRINDAR EL APOYO AL ÁREA DE GESTIÓN DEL DESARROLLO LOCAL EN LOS TEMAS SOCIALES DESARROLLADOS EN LA LOCALIDAD DE FONTIBÓN. | I139: Inversión | J139: Bogotá Mejor para Todos | K139: 45 | L139: =IF(ISERROR(VLOOKUP(K139,Eje_Pilar_Prop!$C$2:$E$104,2,FALSE))," ",VLOOKUP(K139,Eje_Pilar_Prop!$C$2:$E$104,2,FALSE)) -> Gobernanza e influencia local, regional e internacional | M139: =IF(ISERROR(VLOOKUP(K139,Eje_Pilar_Prop!$C$2:$E$104,3,FALSE))," ",VLOOKUP(K139,Eje_Pilar_Prop!$C$2:$E$104,3,FALSE)) -> Eje Transversal 4 Gobierno Legitimo, Fortalecimiento Local y Eficiencia | N139: 1474 | O139: 53031238 | P139: JENNY PAOLA MALAGON BARAHONA | Q139: 30281800 | T139: 1 | U139: 6583000 | V139: 36864800 | W139: 23479367 | X139: 2020-08-12 | Y139: 2020-08-14 | Z139: 2021-02-01 | AA139: 138 | AB139: 1 | AC139: 30 | AI139: X | AL139: 0.6369047709
A140: 127 | B140: 2020 | C140: SECOP II | D140: FDLF-CD-127-2020 | E140: Contratos de prestación de servicios | F140: Contratación Directa | G140: Prestación de servicios profesionales y de apoyo a la gestión, o para la ejecución de trabajos artísticos que sólo puedan encomendarse a determinadas personas naturales; | H140: PRESTAR SERVICIOS PARA APOYAR ADMINISTRATIVA Y ASISTENCIALMENTE AL ÁREA DE GESTIÓN POLICIVA DE LA LOCALIDAD. | I140: Inversión | J140: Bogotá Mejor para Todos | K140: 45 | L140: =IF(ISERROR(VLOOKUP(K140,Eje_Pilar_Prop!$C$2:$E$104,2,FALSE))," ",VLOOKUP(K140,Eje_Pilar_Prop!$C$2:$E$104,2,FALSE)) -> Gobernanza e influencia local, regional e internacional | M140: =IF(ISERROR(VLOOKUP(K140,Eje_Pilar_Prop!$C$2:$E$104,3,FALSE))," ",VLOOKUP(K140,Eje_Pilar_Prop!$C$2:$E$104,3,FALSE)) -> Eje Transversal 4 Gobierno Legitimo, Fortalecimiento Local y Eficiencia | N140: 1474 | O140: 1016064829 | P140: CARLOS EDUARDO FLORES TORRES | Q140: 9452000 | T140: 1 | U140: 2363000 | V140: 11815000 | W140: 7955433 | X140: 2020-08-13 | Y140: 2020-08-20 | Z140: 2021-01-19 | AA140: 120 | AB140: 1 | AC140: 30 | AI140: X | AL140: 0.6733333051
A141: 128 | B141: 2020 | C141: SECOP II | D141: FDLF-CD-128-2020 | E141: Contratos de prestación de servicios | F141: Contratación Directa | G141: Prestación de servicios profesionales y de apoyo a la gestión, o para la ejecución de trabajos artísticos que sólo puedan encomendarse a determinadas personas naturales; | H141: SERVICIOS PROFESIONALES, PARA APOYAR LAS ACTIVIDADES PROPIAS DEL ÁREA DE GESTIÓN POLICIVA EN RELACIÓN CON LOS PROCESOS DE OBRAS, ESPACIOS PÚBLICOS Y ESTABLECIMIENTOS DE COMERCIO, DE LA ALCALDÍA LOCAL DE FONTIBÓN. | I141: Inversión | J141: Bogotá Mejor para Todos | K141: 45 | L141: =IF(ISERROR(VLOOKUP(K141,Eje_Pilar_Prop!$C$2:$E$104,2,FALSE))," ",VLOOKUP(K141,Eje_Pilar_Prop!$C$2:$E$104,2,FALSE)) -> Gobernanza e influencia local, regional e internacional | M141: =IF(ISERROR(VLOOKUP(K141,Eje_Pilar_Prop!$C$2:$E$104,3,FALSE))," ",VLOOKUP(K141,Eje_Pilar_Prop!$C$2:$E$104,3,FALSE)) -> Eje Transversal 4 Gobierno Legitimo, Fortalecimiento Local y Eficiencia | N141: 1474 | O141: 79108533 | P141: JOSE JULIAN CARDENAS ZUÑIGA | Q141: 25815367 | T141: 1 | U141: 5653000 | V141: =+Q141+S141+U141 -> 31468367 | W141: 14509367 | X141: 2020-08-13 | Y141: 2020-08-14 | Z141: 2021-01-30 | AA141: 137 | AB141: 1 | AC141: 30 | AI141: X | AL141: 0.46107785
A142: 129 | B142: 2020 | C142: SECOP II | D142: FDLF-CD-129-2020 | E142: Contratos de prestación de servicios | F142: Contratación Directa | G142: Prestación de servicios profesionales y de apoyo a la gestión, o para la ejecución de trabajos artísticos que sólo puedan encomendarse a determinadas personas naturales; | H142: PRESTAR SERVICIOS PROFESIONALES PARA APOYAR TÉCNICAMENTE LAS DISTINTAS ETAPAS DE LOS PROCESOS DE COMPETENCIA DE LAS INSPECCIONES DE POLICÍA DE LA LOCALIDAD, SEGÚN REPARTO. | I142: Inversión | J142: Bogotá Mejor para Todos | K142: 45 | L142: =IF(ISERROR(VLOOKUP(K142,Eje_Pilar_Prop!$C$2:$E$104,2,FALSE))," ",VLOOKUP(K142,Eje_Pilar_Prop!$C$2:$E$104,2,FALSE)) -> Gobernanza e influencia local, regional e internacional | M142: =IF(ISERROR(VLOOKUP(K142,Eje_Pilar_Prop!$C$2:$E$104,3,FALSE))," ",VLOOKUP(K142,Eje_Pilar_Prop!$C$2:$E$104,3,FALSE)) -> Eje Transversal 4 Gobierno Legitimo, Fortalecimiento Local y Eficiencia | N142: 1474 | O142: 52283995 | P142: EMMA CECILIA BAUTISTA IBARRA | Q142: 25815367 | T142: 0 | U142: 0 | V142: 25815367 | W142: 19408633 | X142: 2020-08-13 | Y142: 2020-08-18 | Z142: 2021-01-04 | AA142: 137 | AB142: 0 | AC142: 0 | AI142: X | AL142: 0.7518247949
A143: 130 | B143: 2020 | C143: SECOP II | D143: FDLF-CD-130-2020 | E143: Contratos de prestación de servicios | F143: Contratación Directa | G143: Prestación de servicios profesionales y de apoyo a la gestión, o para la ejecución de trabajos artísticos que sólo puedan encomendarse a determinadas personas naturales; | H143: PRESTAR SERVICIOS PROFESIONALES PARA APOYAR TÉCNICAMENTE LAS DISTINTAS ETAPAS DE LOS PROCESOS DE COMPETENCIA DE LAS INSPECCIONES DE POLICÍA DE LA LOCALIDAD, SEGÚN REPARTO. | I143: Inversión | J143: Bogotá Mejor para Todos | K143: 45 | L143: =IF(ISERROR(VLOOKUP(K143,Eje_Pilar_Prop!$C$2:$E$104,2,FALSE))," ",VLOOKUP(K143,Eje_Pilar_Prop!$C$2:$E$104,2,FALSE)) -> Gobernanza e influencia local, regional e internacional | M143: =IF(ISERROR(VLOOKUP(K143,Eje_Pilar_Prop!$C$2:$E$104,3,FALSE))," ",VLOOKUP(K143,Eje_Pilar_Prop!$C$2:$E$104,3,FALSE)) -> Eje Transversal 4 Gobierno Legitimo, Fortalecimiento Local y Eficiencia | N143: 1474 | O143: 1013601563 | P143: JENNY ANGELICA MALAGON CORTES | Q143: 25815367 | T143: 0 | U143: 0 | V143: 25815367 | W143: 19220200 | X143: 2020-08-13 | Y143: 2020-08-19 | Z143: 2021-01-05 | AA143: 137 | AB143: 0 | AC143: 0 | AI143: X | AL143: 0.7445255378
A144: 131 | B144: 2020 | C144: SECOP II | D144: FDLF-CD-131-2020 | E144: Contratos de prestación de servicios | F144: Contratación Directa | G144: Prestación de servicios profesionales y de apoyo a la gestión, o para la ejecución de trabajos artísticos que sólo puedan encomendarse a determinadas personas naturales; | H144: PRESTAR SERVICIOS PARA APOYAR ADMINISTRATIVA Y ASISTENCIALMENTE AL ÁREA DE GESTIÓN POLICIVA DE LA LOCALIDAD. | I144: Inversión | J144: Bogotá Mejor para Todos | K144: 45 | L144: =IF(ISERROR(VLOOKUP(K144,Eje_Pilar_Prop!$C$2:$E$104,2,FALSE))," ",VLOOKUP(K144,Eje_Pilar_Prop!$C$2:$E$104,2,FALSE)) -> Gobernanza e influencia local, regional e internacional | M144: =IF(ISERROR(VLOOKUP(K144,Eje_Pilar_Prop!$C$2:$E$104,3,FALSE))," ",VLOOKUP(K144,Eje_Pilar_Prop!$C$2:$E$104,3,FALSE)) -> Eje Transversal 4 Gobierno Legitimo, Fortalecimiento Local y Eficiencia | N144: 1474 | O144: 79331823 | P144: ERNESTO MUNEVAR GONZALEZ | Q144: 9452000 | T144: 0 | U144: 0 | V144: 9452000 | W144: 5986266 | X144: 2020-08-13 | Y144: 2020-08-14 | Z144: 2020-12-13 | AA144: 120 | AB144: 0 | AC144: 0 | AD144: 1023885413 | AE144: LEIDI YOHANA GOMEZ CRISTIANO | AF144: 2020-09-14 | AG144: 7010233 | AJ144: X | AL144: 0.6333332628
A145: 132 | B145: 2020 | C145: SECOP II | D145: FDLF-CD-132-2020 | E145: Contratos de prestación de servicios | F145: Contratación Directa | G145: Prestación de servicios profesionales y de apoyo a la gestión, o para la ejecución de trabajos artísticos que sólo puedan encomendarse a determinadas personas naturales; | H145: PRESTAR SERVICIOS DE APOYO AL ÁREA DE GESTIÓN DEL DESARROLLO LOCAL DE LA ALCALDÍA LOCAL DE FONTIBÓN. | I145: Inversión | J145: Bogotá Mejor para Todos | K145: 45 | L145: =IF(ISERROR(VLOOKUP(K145,Eje_Pilar_Prop!$C$2:$E$104,2,FALSE))," ",VLOOKUP(K145,Eje_Pilar_Prop!$C$2:$E$104,2,FALSE)) -> Gobernanza e influencia local, regional e internacional | M145: =IF(ISERROR(VLOOKUP(K145,Eje_Pilar_Prop!$C$2:$E$104,3,FALSE))," ",VLOOKUP(K145,Eje_Pilar_Prop!$C$2:$E$104,3,FALSE)) -> Eje Transversal 4 Gobierno Legitimo, Fortalecimiento Local y Eficiencia | N145: 1474 | O145: 1016006281 | P145: JOHN FREDDY AMAYA MORENO | Q145: 11815000 | T145: 0 | U145: 0 | V145: 11815000 | W145: 8034200 | X145: 2020-08-14 | Y145: 2020-08-19 | Z145: 2020-12-30 | AA145: 133 | AB145: 0 | AC145: 0 | AJ145: X | AL145: 0.68
A146: 133 | B146: 2020 | C146: SECOP II | D146: FDLF-CD-133-2020 | E146: Contratos de prestación de servicios | F146: Contratación Directa | G146: Prestación de servicios profesionales y de apoyo a la gestión, o para la ejecución de trabajos artísticos que sólo puedan encomendarse a determinadas personas naturales; | H146: SERVICIOS DE APOYO TÉCNICO ADMINISTRATIVO PARA PROCESOS DE COBRO PERSUASIVO DE LAS OBLIGACIONES CLARAS, EXPRESAS Y ACTUALMENTE EXIGIBLES, POR CONCEPTO DE MULTAS IMPUESTAS POR EL ÁREA DE GESTIÓN POLICIVA. | I146: Inversión | J146: Bogotá Mejor para Todos | K146: 45 | L146: =IF(ISERROR(VLOOKUP(K146,Eje_Pilar_Prop!$C$2:$E$104,2,FALSE))," ",VLOOKUP(K146,Eje_Pilar_Prop!$C$2:$E$104,2,FALSE)) -> Gobernanza e influencia local, regional e internacional | M146: =IF(ISERROR(VLOOKUP(K146,Eje_Pilar_Prop!$C$2:$E$104,3,FALSE))," ",VLOOKUP(K146,Eje_Pilar_Prop!$C$2:$E$104,3,FALSE)) -> Eje Transversal 4 Gobierno Legitimo, Fortalecimiento Local y Eficiencia | N146: 1474 | O146: 52848705 | P146: CAROLINA HERNANDEZ HERRERA | Q146: 16720000 | T146: 1 | U146: 3800000 | V146: 20520000 | W146: 12793333 | X146: 2020-08-14 | Y146: 2020-08-19 | Z146: 2021-01-30 | AA146: 132 | AB146: 1 | AC146: 30 | AI146: X | AL146: 0.6234567739
A147: 134 | B147: 2020 | C147: SECOP II | D147: FDLF-CD-134-2020 | E147: Contratos de prestación de servicios | F147: Contratación Directa | G147: Prestación de servicios profesionales y de apoyo a la gestión, o para la ejecución de trabajos artísticos que sólo puedan encomendarse a determinadas personas naturales; | H147: SERVICIOS APOYO A LAS ACTIVIDADES CORRESPONDIENTES A TEMAS DE MALLA VIAL, OBRAS, ESPACIO PÚBLICO E INFRAESTRUCTURA PARA LA ALCALDÍA LOCAL DE FONTIBÓN | I147: Inversión | J147: Bogotá Mejor para Todos | K147: 18 | L147: =IF(ISERROR(VLOOKUP(K147,Eje_Pilar_Prop!$C$2:$E$104,2,FALSE))," ",VLOOKUP(K147,Eje_Pilar_Prop!$C$2:$E$104,2,FALSE)) -> Mejor movilidad para todos | M147: =IF(ISERROR(VLOOKUP(K147,Eje_Pilar_Prop!$C$2:$E$104,3,FALSE))," ",VLOOKUP(K147,Eje_Pilar_Prop!$C$2:$E$104,3,FALSE)) -> Pilar 2 Democracía Urbana | N147: 1464 | O147: 19497903 | P147: EDGAR AUGUSTO GRANADOS MEJIA | Q147: 15200000 | T147: 1 | U147: 7600000 | V147: 22800000 | W147: 12793333 | X147: 2020-08-19 | Y147: 2020-08-20 | Z147: 2021-02-19 | AA147: 120 | AB147: 1 | AC147: 60 | AI147: X | AL147: 0.5611110965
A148: 135 | B148: 2020 | C148: SECOP II | D148: FDLF-CD-135-2020 | E148: Contratos de prestación de servicios | F148: Contratación Directa | G148: Prestación de servicios profesionales y de apoyo a la gestión, o para la ejecución de trabajos artísticos que sólo puedan encomendarse a determinadas personas naturales; | H148: PRESTAR SERVICIOS PARA APOYAR JURÍDICAMENTE LA EJECUCIÓN DE LAS ACCIONES REQUERIDAS PARA EL TRÁMITE E IMPULSO PROCESAL DE LAS ACTUACIONES CONTRAVENCIONALES Y/O QUERELLAS QUE CURSEN EN LAS INSPECCIONES DE POLICÍA DE LA LOCALIDAD. | I148: Inversión | J148: Bogotá Mejor para Todos | K148: 45 | L148: =IF(ISERROR(VLOOKUP(K148,Eje_Pilar_Prop!$C$2:$E$104,2,FALSE))," ",VLOOKUP(K148,Eje_Pilar_Prop!$C$2:$E$104,2,FALSE)) -> Gobernanza e influencia local, regional e internacional | M148: =IF(ISERROR(VLOOKUP(K148,Eje_Pilar_Prop!$C$2:$E$104,3,FALSE))," ",VLOOKUP(K148,Eje_Pilar_Prop!$C$2:$E$104,3,FALSE)) -> Eje Transversal 4 Gobierno Legitimo, Fortalecimiento Local y Eficiencia | N148: 1474 | O148: 5831620 | P148: RICAURTE TARQUINO BECERRA | Q148: 19132000 | T148: 1 | U148: 4783000 | V148: 23915000 | W148: 15305600 | X148: 2020-08-20 | Y148: 2020-08-25 | Z148: 2021-01-24 | AA148: 120 | AB148: 1 | AC148: 30 | AI148: X | AL148: 0.64
A149: 136 | B149: 2020 | C149: SECOP II | D149: FDLF-CD-136-2020 | E149: Contratos de prestación de servicios | F149: Contratación Directa | G149: Prestación de servicios profesionales y de apoyo a la gestión, o para la ejecución de trabajos artísticos que sólo puedan encomendarse a determinadas personas naturales; | H149: PRESTAR SERVICIOS COMO PROFESIONAL ESPECIALIZADO PARA REALIZAR EL PROCESO DE LIQUIDACIONES DE LOS CONTRATOS SUSCRITOS POR EL FONDO DE DESARROLLO LOCAL DE FONTIBÓN. | I149: Inversión | J149: Bogotá Mejor para Todos | K149: 45 | L149: =IF(ISERROR(VLOOKUP(K149,Eje_Pilar_Prop!$C$2:$E$104,2,FALSE))," ",VLOOKUP(K149,Eje_Pilar_Prop!$C$2:$E$104,2,FALSE)) -> Gobernanza e influencia local, regional e internacional | M149: =IF(ISERROR(VLOOKUP(K149,Eje_Pilar_Prop!$C$2:$E$104,3,FALSE))," ",VLOOKUP(K149,Eje_Pilar_Prop!$C$2:$E$104,3,FALSE)) -> Eje Transversal 4 Gobierno Legitimo, Fortalecimiento Local y Eficiencia | N149: 1474 | O149: 79582465 | P149: FRANCISCO JIMENEZ BEDOYA | Q149: 28000000 | T149: 1 | U149: 8633333 | V149: 36633333 | W149: 22633333 | X149: 2020-08-20 | Y149: 2020-08-24 | Z149: 2021-01-30 | AA149: 120 | AB149: 1 | AC149: 37 | AI149: X | AL149: =IF(ISERROR(W149/V149),"-",(W149/V149)) -> 0.6178343914
A150: 137 | B150: 2020 | C150: SECOP II | D150: FDLF-CD-137-2020 | E150: Contratos de prestación de servicios | F150: Contratación Directa | G150: Prestación de servicios profesionales y de apoyo a la gestión, o para la ejecución de trabajos artísticos que sólo puedan encomendarse a determinadas personas naturales; | H150: PRESTAR SERVICIOS PARA APOYAR LA FORMULACIÓN, GESTIÓN Y SEGUIMIENTO DE ACTIVIDADES ENFOCADAS A LA GESTIÓN AMBIENTAL EXTERNA, ENCAMINADAS A LA MITIGACIÓN DE LOS DIFERENTES IMPACTOS AMBIENTALES Y LA CONSERVACIÓN DE LOS RECURSOS NATURALES DE LA LOCALIDAD. | I150: Inversión | J150: Bogotá Mejor para Todos | K150: 38 | L150: =IF(ISERROR(VLOOKUP(K150,Eje_Pilar_Prop!$C$2:$E$104,2,FALSE))," ",VLOOKUP(K150,Eje_Pilar_Prop!$C$2:$E$104,2,FALSE)) -> Recuperación y manejo de la Estructura Ecológica Principal | M150: =IF(ISERROR(VLOOKUP(K150,Eje_Pilar_Prop!$C$2:$E$104,3,FALSE))," ",VLOOKUP(K150,Eje_Pilar_Prop!$C$2:$E$104,3,FALSE)) -> Eje Transversal 3 Sostenibilidad Ambiental basada en la eficiencia energética | N150: 1471 | O150: 1015437921 | P150: CRISTIAN STIVEN TAMBO LOPEZ | Q150: 20000000 | T150: 0 | U150: 0 | V150: 20000000 | W150: 0 | X150: 2020-08-21 | Y150: 2020-08-27 | Z150: 2020-12-26 | AA150: 120 | AB150: 0 | AC150: 0 | AJ150: X | AL150: 0
A151: 138 | B151: 2020 | C151: SECOP II | D151: FDLF-CD-138-2020 | E151: Contratos de prestación de servicios | F151: Contratación Directa | G151: Prestación de servicios profesionales y de apoyo a la gestión, o para la ejecución de trabajos artísticos que sólo puedan encomendarse a determinadas personas naturales; | H151: APOYAR AL EQUIPO DE PRENSA Y COMUNICACIONES DE LA ALCALDÍA LOCAL EN LA CREACIÓN, REALIZACIÓN, PRODUCCIÓN Y EDICIÓN DE VÍDEOS, ASÍ COMO EL REGISTRO, EDICIÓN Y LA PRESENTACIÓN DE FOTOGRAFÍAS DE LOS ACONTECIMIENTOS, HECHOS Y EVENTOS EXTERNOS E INTERNOS DE LA ALCALDÍA LOCAL, PARA SER UTILIZADOS COMO INSUMOS DE COMUNICACIÓN EN LOS MEDIOS, ESPECIALMENTE ESCRITOS, DIGITALES Y AUDIOVISUALES. | I151: Inversión | J151: Bogotá Mejor para Todos | K151: 45 | L151: =IF(ISERROR(VLOOKUP(K151,Eje_Pilar_Prop!$C$2:$E$104,2,FALSE))," ",VLOOKUP(K151,Eje_Pilar_Prop!$C$2:$E$104,2,FALSE)) -> Gobernanza e influencia local, regional e internacional | M151: =IF(ISERROR(VLOOKUP(K151,Eje_Pilar_Prop!$C$2:$E$104,3,FALSE))," ",VLOOKUP(K151,Eje_Pilar_Prop!$C$2:$E$104,3,FALSE)) -> Eje Transversal 4 Gobierno Legitimo, Fortalecimiento Local y Eficiencia | N151: 1474 | O151: 1098775570 | P151: JENNY KATHERINE SILVA PICO | Q151: 16800000 | T151: 1 | U151: 4200000 | V151: 21000000 | W151: 13580000 | X151: 2020-08-20 | Y151: 2020-08-24 | Z151: 2021-01-23 | AA151: 120 | AB151: 1 | AC151: 30 | AI151: X | AL151: 0.6466666667
A152: 139 | B152: 2020 | C152: SECOP II | D152: FDLF-CD-139-2020 | E152: Contratos de prestación de servicios | F152: Contratación Directa | G152: Prestación de servicios profesionales y de apoyo a la gestión, o para la ejecución de trabajos artísticos que sólo puedan encomendarse a determinadas personas naturales; | H152: PRESTAR SERVICIOS PROFESIONALES PARA REALIZAR EL CONTROL, SEGUIMIENTO, ACTUALIZACIÓN Y ANÁLISIS DEL BANCO DE PROGRAMAS Y PROYECTOS, ASÍ COMO TAMBIÉN A LOS INSTRUMENTOS DE PLANEACIÓN Y GESTIÓN DEL FONDO DE DESARROLLO LOCAL DE FONTIBÓN DE CONFORMIDAD CON EL ESTUDIO DE PREVIO. | I152: Inversión | J152: Bogotá Mejor para Todos | K152: 45 | L152: =IF(ISERROR(VLOOKUP(K152,Eje_Pilar_Prop!$C$2:$E$104,2,FALSE))," ",VLOOKUP(K152,Eje_Pilar_Prop!$C$2:$E$104,2,FALSE)) -> Gobernanza e influencia local, regional e internacional | M152: =IF(ISERROR(VLOOKUP(K152,Eje_Pilar_Prop!$C$2:$E$104,3,FALSE))," ",VLOOKUP(K152,Eje_Pilar_Prop!$C$2:$E$104,3,FALSE)) -> Eje Transversal 4 Gobierno Legitimo, Fortalecimiento Local y Eficiencia | N152: 1474 | O152: 1030553619 | P152: LUIS FERNANDO MOSCOSO GAVIRIA | Q152: 23200000 | T152: 1 | U152: 11600000 | V152: 34800000 | W152: 18753333 | X152: 2020-08-20 | Y152: 2020-08-24 | Z152: 2021-02-23 | AA152: 120 | AB152: 1 | AC152: 60 | AI152: X | AL152: 0.5388888793
A153: 140 | B153: 2020 | C153: SECOP II | D153: FDLF-CD-140-2020 | E153: Contratos de prestación de servicios | F153: Contratación Directa | G153: Prestación de servicios profesionales y de apoyo a la gestión, o para la ejecución de trabajos artísticos que sólo puedan encomendarse a determinadas personas naturales; | H153: PRESTAR SERVICIOS PROFESIONALES PARA REALIZAR EL CONTROL, SEGUIMIENTO, ACTUALIZACIÓN Y ANÁLISIS DEL BANCO DE PROGRAMAS Y PROYECTOS, ASÍ COMO TAMBIÉN A LOS INSTRUMENTOS DE PLANEACIÓN Y GESTIÓN DEL FONDO DE DESARROLLO LOCAL DE FONTIBÓN DE CONFORMIDAD CON EL ESTUDIO DE PREVIO. | I153: Inversión | J153: Bogotá Mejor para Todos | K153: 45 | L153: =IF(ISERROR(VLOOKUP(K153,Eje_Pilar_Prop!$C$2:$E$104,2,FALSE))," ",VLOOKUP(K153,Eje_Pilar_Prop!$C$2:$E$104,2,FALSE)) -> Gobernanza e influencia local, regional e internacional | M153: =IF(ISERROR(VLOOKUP(K153,Eje_Pilar_Prop!$C$2:$E$104,3,FALSE))," ",VLOOKUP(K153,Eje_Pilar_Prop!$C$2:$E$104,3,FALSE)) -> Eje Transversal 4 Gobierno Legitimo, Fortalecimiento Local y Eficiencia | N153: 1474 | O153: 52515689 | P153: BIBIANA BAUTISTA ZABALETA | Q153: 22000000 | T153: 1 | U153: 5500000 | V153: 27500000 | W153: 17783333 | X153: 2020-08-20 | Y153: 2020-08-24 | Z153: 2021-01-23 | AA153: 120 | AB153: 1 | AC153: 30 | AI153: X | AL153: 0.6466666545
A154: 142 | B154: 2020 | C154: SECOP II | D154: FDLF-CD-142-2020 | E154: Contratos de prestación de servicios | F154: Contratación directa | G154: Prestación de servicios profesionales y de apoyo a la gestión, o para la ejecución de trabajos artísticos que sólo puedan encomendarse a determinadas personas naturales; | H154: PRESTAR SERVICIOS PARA APOYAR JURÍDICAMENTE LA EJECUCIÓN DE LAS ACCIONES REQUERIDAS PARA EL TRÁMITE E IMPULSO PROCESAL DE LAS ACTUACIONES CONTRAVENCIONALES Y/O QUERELLAS QUE CURSEN EN LAS INSPECCIONES DE POLICÍA DE LA LOCALIDAD. | I154: Inversión | J154: Bogotá Mejor para Todos | K154: 45 | L154: =IF(ISERROR(VLOOKUP(K154,Eje_Pilar_Prop!$C$2:$E$104,2,FALSE))," ",VLOOKUP(K154,Eje_Pilar_Prop!$C$2:$E$104,2,FALSE)) -> Gobernanza e influencia local, regional e internacional | M154: =IF(ISERROR(VLOOKUP(K154,Eje_Pilar_Prop!$C$2:$E$104,3,FALSE))," ",VLOOKUP(K154,Eje_Pilar_Prop!$C$2:$E$104,3,FALSE)) -> Eje Transversal 4 Gobierno Legitimo, Fortalecimiento Local y Eficiencia | N154: 1474 | O154: 1016074802 | P154: NATALIA ANDREA SERRATO CRUZ | Q154: 19132000 | T154: 0 | U154: 0 | V154: 19132000 | W154: 0 | X154: 2020-08-20 | Y154: 2020-08-24 | Z154: 2020-12-23 | AA154: 120 | AB154: 0 | AC154: 0 | AJ154: X | AL154: 0
A155: 143 | B155: 2020 | C155: SECOP II | D155: FDLF-CD-143-2020 | E155: Contratos de prestación de servicios | F155: Contratación Directa | G155: Prestación de servicios profesionales y de apoyo a la gestión, o para la ejecución de trabajos artísticos que sólo puedan encomendarse a determinadas personas naturales; | H155: PRESTAR SERVICIOS PARA APOYAR JURÍDICAMENTE LA EJECUCIÓN DE LAS ACCIONES REQUERIDAS PARA EL TRÁMITE E IMPULSO PROCESAL DE LAS ACTUACIONES CONTRAVENCIONALES Y/O QUERELLAS QUE CURSEN EN LAS INSPECCIONES DE POLICÍA DE LA LOCALIDAD. | I155: Inversión | J155: Bogotá Mejor para Todos | K155: 45 | L155: =IF(ISERROR(VLOOKUP(K155,Eje_Pilar_Prop!$C$2:$E$104,2,FALSE))," ",VLOOKUP(K155,Eje_Pilar_Prop!$C$2:$E$104,2,FALSE)) -> Gobernanza e influencia local, regional e internacional | M155: =IF(ISERROR(VLOOKUP(K155,Eje_Pilar_Prop!$C$2:$E$104,3,FALSE))," ",VLOOKUP(K155,Eje_Pilar_Prop!$C$2:$E$104,3,FALSE)) -> Eje Transversal 4 Gobierno Legitimo, Fortalecimiento Local y Eficiencia | N155: 1474 | O155: 33307650 | P155: LUZ MERY PATERNINA MEDINA | Q155: 19132000 | T155: 0 | U155: 0 | V155: 19132000 | W155: 15465033 | X155: 2020-08-20 | Y155: 2020-08-24 | Z155: 2020-12-23 | AA155: 120 | AB155: 0 | AC155: 0 | AJ155: X | AL155: 0.8083333159
A156: 144 | B156: 2020 | C156: SECOP II | D156: FDLF-CD-144-2020 | E156: Contratos de prestación de servicios | F156: Contratación Directa | G156: Prestación de servicios profesionales y de apoyo a la gestión, o para la ejecución de trabajos artísticos que sólo puedan encomendarse a determinadas personas naturales; | H156: SERVICIOS DE APOYO TÉCNICO ADMINISTRATIVO AL ÁREA DE GESTIÓN DEL DESARROLLO LOCAL DE LA ALCALDÍA LOCAL DE FONTIBÓN. | I156: Inversión | J156: Bogotá Mejor para Todos | K156: 45 | L156: =IF(ISERROR(VLOOKUP(K156,Eje_Pilar_Prop!$C$2:$E$104,2,FALSE))," ",VLOOKUP(K156,Eje_Pilar_Prop!$C$2:$E$104,2,FALSE)) -> Gobernanza e influencia local, regional e internacional | M156: =IF(ISERROR(VLOOKUP(K156,Eje_Pilar_Prop!$C$2:$E$104,3,FALSE))," ",VLOOKUP(K156,Eje_Pilar_Prop!$C$2:$E$104,3,FALSE)) -> Eje Transversal 4 Gobierno Legitimo, Fortalecimiento Local y Eficiencia | N156: 1474 | O156: 79611853 | P156: DIEGO FERNANDO MONCADA MORENO | Q156: 15200000 | T156: 1 | U156: 3800000 | V156: 19000000 | W156: 12286667 | X156: 2020-08-20 | Y156: 2020-08-24 | Z156: 2021-01-23 | AA156: 120 | AB156: 1 | AC156: 30 | AI156: X | AL156: 0.6466666842
A157: 145 | B157: 2020 | C157: SECOP II | D157: FDLF-CD-145-2020 | E157: Contratos de prestación de servicios | F157: Contratación Directa | G157: Prestación de servicios profesionales y de apoyo a la gestión, o para la ejecución de trabajos artísticos que sólo puedan encomendarse a determinadas personas naturales; | H157: PRESTAR SERVICIOS PROFESIONALES PARA APOYAR EL ÁREA DE GESTIÓN DE DESARROLLO LOCAL EN LA EJECUCIÓN DEL PROYECTO FONTIBÓN, MEJOR MOVILIDAD PARA TODOS. | I157: Inversión | J157: Bogotá Mejor para Todos | K157: 18 | L157: =IF(ISERROR(VLOOKUP(K157,Eje_Pilar_Prop!$C$2:$E$104,2,FALSE))," ",VLOOKUP(K157,Eje_Pilar_Prop!$C$2:$E$104,2,FALSE)) -> Mejor movilidad para todos | M157: =IF(ISERROR(VLOOKUP(K157,Eje_Pilar_Prop!$C$2:$E$104,3,FALSE))," ",VLOOKUP(K157,Eje_Pilar_Prop!$C$2:$E$104,3,FALSE)) -> Pilar 2 Democracía Urbana | N157: 1464 | O157: 38248578 | P157: LUZ EDELMIRA RODRIGUEZ SILVA | Q157: 26000000 | T157: 1 | U157: 6500000 | V157: 32500000 | W157: 5416667 | X157: 2020-08-20 | Y157: 2020-08-24 | Z157: 2021-01-23 | AA157: 120 | AB157: 1 | AC157: 30 | AD157: 7304329 | AE157: PEDRO ALFONSO VARGAS | AF157: 2020-11-06 | AG157: 10400000 | AI157: X | AL157: 0.1666666769
A158: 146 | B158: 2020 | C158: SECOP II | D158: FDLF-CD-146-2020 | E158: Contratos de prestación de servicios | F158: Contratación Directa | G158: Prestación de servicios profesionales y de apoyo a la gestión, o para la ejecución de trabajos artísticos que sólo puedan encomendarse a determinadas personas naturales; | H158: SERVICIOS PROFESIONALES ESPECIALIZADOS PARA ORIENTAR EL GRUPO JURÍDICO DE CONTRATACIÓN DE LA ALCALDÍA LOCAL DE FONTIBÓN. | I158: Inversión | J158: Bogotá Mejor para Todos | K158: 45 | L158: =IF(ISERROR(VLOOKUP(K158,Eje_Pilar_Prop!$C$2:$E$104,2,FALSE))," ",VLOOKUP(K158,Eje_Pilar_Prop!$C$2:$E$104,2,FALSE)) -> Gobernanza e influencia local, regional e internacional | M158: =IF(ISERROR(VLOOKUP(K158,Eje_Pilar_Prop!$C$2:$E$104,3,FALSE))," ",VLOOKUP(K158,Eje_Pilar_Prop!$C$2:$E$104,3,FALSE)) -> Eje Transversal 4 Gobierno Legitimo, Fortalecimiento Local y Eficiencia | N158: 1474 | O158: 40390477 | P158: BLANCA OLIVIA CORDOBA MARTINEZ | Q158: 38566667 | T158: 1 | U158: 17800000 | V158: 56366667 | W158: 28776667 | X158: 2020-08-21 | Y158: 2020-08-24 | Z158: 2021-02-28 | AA158: 130 | AB158: 1 | AC158: 60 | AI158: X | AL158: 0.5105263187
A159: 147 | B159: 2020 | C159: SECOP II | D159: FDLF-CD-147-2020 | E159: Contratos de prestación de servicios | F159: Contratación Directa | G159: Prestación de servicios profesionales y de apoyo a la gestión, o para la ejecución de trabajos artísticos que sólo puedan encomendarse a determinadas personas naturales; | H159: PRESTAR SERVICIOS PROFESIONALES PARA APOYAR AL DESPACHO EN LA REALIZACIÓN DE ACTIVIDADES DEFINIDAS POR EL ÁREA DE GESTIÓN PARA EL DESARROLLO LOCAL DE FONTIBÓN, EN RELACIÓN A LA GESTIÓN INTRAINSTITUCIONAL CON LA JUNTA ADMINISTRADORA LOCAL Y LA LOGÍSTICA REFERIDA AL SECTOR EMPRESARIAL DE LA LOCALIDAD DE FONTIBÓN. | I159: Inversión | J159: Bogotá Mejor para Todos | K159: 45 | L159: =IF(ISERROR(VLOOKUP(K159,Eje_Pilar_Prop!$C$2:$E$104,2,FALSE))," ",VLOOKUP(K159,Eje_Pilar_Prop!$C$2:$E$104,2,FALSE)) -> Gobernanza e influencia local, regional e internacional | M159: =IF(ISERROR(VLOOKUP(K159,Eje_Pilar_Prop!$C$2:$E$104,3,FALSE))," ",VLOOKUP(K159,Eje_Pilar_Prop!$C$2:$E$104,3,FALSE)) -> Eje Transversal 4 Gobierno Legitimo, Fortalecimiento Local y Eficiencia | N159: 1474 | O159: 1015402473 | P159: CARLOS ANDRES DUQUE NIÑO | Q159: 16800000 | T159: 0 | U159: 0 | V159: 16800000 | W159: 0 | X159: 2020-08-21 | Y159: 2020-08-24 | Z159: 2020-12-23 | AA159: 120 | AB159: 0 | AC159: 0 | AJ159: X | AL159: 0
A160: 148 | B160: 2020 | C160: SECOP II | D160: FDLF-CD-148-2020 | E160: Contratos de prestación de servicios | F160: Contratación Directa | G160: Prestación de servicios profesionales y de apoyo a la gestión, o para la ejecución de trabajos artísticos que sólo puedan encomendarse a determinadas personas naturales; | H160: PRESTAR SERVICIOS PROFESIONALES PARA APOYAR AL ALCALDE LOCAL EN LA FORMULACIÓN, SEGUIMIENTO E IMPLEMENTACIÓN DE LA ESTRATEGIA LOCAL PARA LA TERMINACIÓN JURÍDICA O INACTIVACIÓN DE LAS ACTUACIONES ADMINISTRATIVAS QUE CURSAN EN LA ALCALDÍA LOCAL. | I160: Inversión | J160: Bogotá Mejor para Todos | K160: 45 | L160: =IF(ISERROR(VLOOKUP(K160,Eje_Pilar_Prop!$C$2:$E$104,2,FALSE))," ",VLOOKUP(K160,Eje_Pilar_Prop!$C$2:$E$104,2,FALSE)) -> Gobernanza e influencia local, regional e internacional | M160: =IF(ISERROR(VLOOKUP(K160,Eje_Pilar_Prop!$C$2:$E$104,3,FALSE))," ",VLOOKUP(K160,Eje_Pilar_Prop!$C$2:$E$104,3,FALSE)) -> Eje Transversal 4 Gobierno Legitimo, Fortalecimiento Local y Eficiencia | N160: 1474 | O160: 80203157 | P160: HAROLD RAUL MOLANO CERQUERA | Q160: 28000000 | T160: 1 | U160: 14000000 | V160: 42000000 | W160: 22633333 | X160: 2020-08-21 | Y160: 2020-08-24 | Z160: 2021-02-23 | AA160: 120 | AB160: 1 | AC160: 60 | AI160: X | AL160: 0.538888881
A161: 149 | B161: 2020 | C161: SECOP II | D161: FDLF-CD-149-2020 | E161: Contratos de prestación de servicios | F161: Contratación Directa | G161: Prestación de servicios profesionales y de apoyo a la gestión, o para la ejecución de trabajos artísticos que sólo puedan encomendarse a determinadas personas naturales; | H161: APOYO PROFESIONAL PARA LOS TEMAS DE GESTIÓN DE RIESGO Y GESTIÓN AMBIENTAL DEL ÁREA DE GESTIÓN DE DESARROLLO LOCAL. | I161: Inversión | J161: Bogotá Mejor para Todos | K161: 45 | L161: =IF(ISERROR(VLOOKUP(K161,Eje_Pilar_Prop!$C$2:$E$104,2,FALSE))," ",VLOOKUP(K161,Eje_Pilar_Prop!$C$2:$E$104,2,FALSE)) -> Gobernanza e influencia local, regional e internacional | M161: =IF(ISERROR(VLOOKUP(K161,Eje_Pilar_Prop!$C$2:$E$104,3,FALSE))," ",VLOOKUP(K161,Eje_Pilar_Prop!$C$2:$E$104,3,FALSE)) -> Eje Transversal 4 Gobierno Legitimo, Fortalecimiento Local y Eficiencia | N161: 1474 | O161: 1024563513 | P161: NAYIB SELENIA CALIFA GARZON | Q161: 16800000 | T161: 1 | U161: 4200000 | V161: 21000000 | W161: 13580000 | X161: 2020-08-21 | Y161: 2020-08-24 | Z161: 2021-01-23 | AA161: 120 | AB161: 1 | AC161: 30 | AI161: X | AL161: 0.6466666667
A162: 150 | B162: 2020 | C162: SECOP II | D162: FDLF-CD-150-2020 | E162: Contratos de prestación de servicios | F162: Contratación Directa | G162: Prestación de servicios profesionales y de apoyo a la gestión, o para la ejecución de trabajos artísticos que sólo puedan encomendarse a determinadas personas naturales; | H162: PRESTAR SERVICIOS PARA APOYAR JURÍDICAMENTE LA EJECUCIÓN DE LAS ACCIONES REQUERIDAS PARA LA DEPURACIÓN DE LAS ACTUACIONES ADMINISTRATIVAS QUE CURSAN EN LA ALCALDÍA LOCAL DE FONTIBÓN. | I162: Inversión | J162: Bogotá Mejor para Todos | K162: 45 | L162: =IF(ISERROR(VLOOKUP(K162,Eje_Pilar_Prop!$C$2:$E$104,2,FALSE))," ",VLOOKUP(K162,Eje_Pilar_Prop!$C$2:$E$104,2,FALSE)) -> Gobernanza e influencia local, regional e internacional | M162: =IF(ISERROR(VLOOKUP(K162,Eje_Pilar_Prop!$C$2:$E$104,3,FALSE))," ",VLOOKUP(K162,Eje_Pilar_Prop!$C$2:$E$104,3,FALSE)) -> Eje Transversal 4 Gobierno Legitimo, Fortalecimiento Local y Eficiencia | N162: 1474 | O162: 1032454002 | P162: DANIEL RICARDO GONZALEZ RODRIGUEZ | Q162: 19132000 | T162: 1 | U162: 4783000 | V162: 23915000 | W162: 15305600 | X162: 2020-08-21 | Y162: 2020-08-25 | Z162: 2021-01-24 | AA162: 120 | AB162: 1 | AC162: 30 | AI162: X | AL162: 0.64
A163: 151 | B163: 2020 | C163: SECOP II | D163: FDLF-CD-151-2020 | E163: Contratos de prestación de servicios | F163: Contratación Directa | G163: Prestación de servicios profesionales y de apoyo a la gestión, o para la ejecución de trabajos artísticos que sólo puedan encomendarse a determinadas personas naturales; | H163: PRESTAR SERVICIOS PARA APOYAR JURÍDICAMENTE LA EJECUCIÓN DE LAS ACCIONES REQUERIDAS PARA LA DEPURACIÓN DE LAS ACTUACIONES ADMINISTRATIVAS QUE CURSAN EN LA ALCALDÍA LOCAL DE FONTIBÓN. | I163: Inversión | J163: Bogotá Mejor para Todos | K163: 45 | L163: =IF(ISERROR(VLOOKUP(K163,Eje_Pilar_Prop!$C$2:$E$104,2,FALSE))," ",VLOOKUP(K163,Eje_Pilar_Prop!$C$2:$E$104,2,FALSE)) -> Gobernanza e influencia local, regional e internacional | M163: =IF(ISERROR(VLOOKUP(K163,Eje_Pilar_Prop!$C$2:$E$104,3,FALSE))," ",VLOOKUP(K163,Eje_Pilar_Prop!$C$2:$E$104,3,FALSE)) -> Eje Transversal 4 Gobierno Legitimo, Fortalecimiento Local y Eficiencia | N163: 1474 | O163: 39636097 | P163: MARIA ELINA PLAZAS LOPEZ | Q163: 19132000 | T163: 1 | U163: 4783000 | V163: 23915000 | W163: 15305600 | X163: 2020-08-21 | Y163: 2020-08-25 | Z163: 2021-01-24 | AA163: 120 | AB163: 1 | AC163: 30 | AI163: X | AL163: 0.64
A164: 152 | B164: 2020 | C164: SECOP II | D164: FDLF-CD-152-2020 | E164: Contratos de prestación de servicios | F164: Contratación Directa | G164: Prestación de servicios profesionales y de apoyo a la gestión, o para la ejecución de trabajos artísticos que sólo puedan encomendarse a determinadas personas naturales; | H164: PRESTAR SERVICIOS PARA APOYAR JURÍDICAMENTE LA EJECUCIÓN DE LAS ACCIONES REQUERIDAS PARA LA DEPURACIÓN DE LAS ACTUACIONES ADMINISTRATIVAS QUE CURSAN EN LA ALCALDÍA LOCAL DE FONTIBÓN. | I164: Inversión | J164: Bogotá Mejor para Todos | K164: 45 | L164: =IF(ISERROR(VLOOKUP(K164,Eje_Pilar_Prop!$C$2:$E$104,2,FALSE))," ",VLOOKUP(K164,Eje_Pilar_Prop!$C$2:$E$104,2,FALSE)) -> Gobernanza e influencia local, regional e internacional | M164: =IF(ISERROR(VLOOKUP(K164,Eje_Pilar_Prop!$C$2:$E$104,3,FALSE))," ",VLOOKUP(K164,Eje_Pilar_Prop!$C$2:$E$104,3,FALSE)) -> Eje Transversal 4 Gobierno Legitimo, Fortalecimiento Local y Eficiencia | N164: 1474 | O164: 79572785 | P164: JORGE ARMANDO SUAREZ MEDINA | Q164: 19132000 | T164: 1 | U164: 9566000 | V164: 28698000 | W164: 15146167 | X164: 2020-08-21 | Y164: 2020-08-26 | Z164: 2021-02-25 | AA164: 120 | AB164: 1 | AC164: 60 | AI164: X | AL164: 0.5277777894
A165: 153 | B165: 2020 | C165: SECOP II | D165: FDLF-CD-153-2020 | E165: Contratos de prestación de servicios | F165: Contratación Directa | G165: Prestación de servicios profesionales y de apoyo a la gestión, o para la ejecución de trabajos artísticos que sólo puedan encomendarse a determinadas personas naturales; | H165: PRESTAR SERVICIOS PARA APOYAR Y DAR SOPORTE TÉCNICO AL ADMINISTRADOR Y USUARIO FINAL DE LA RED DE SISTEMAS Y TECNOLOGÍA E INFORMACIÓN DE LA ALCALDÍA LOCAL. | I165: Inversión | J165: Bogotá Mejor para Todos | K165: 45 | L165: =IF(ISERROR(VLOOKUP(K165,Eje_Pilar_Prop!$C$2:$E$104,2,FALSE))," ",VLOOKUP(K165,Eje_Pilar_Prop!$C$2:$E$104,2,FALSE)) -> Gobernanza e influencia local, regional e internacional | M165: =IF(ISERROR(VLOOKUP(K165,Eje_Pilar_Prop!$C$2:$E$104,3,FALSE))," ",VLOOKUP(K165,Eje_Pilar_Prop!$C$2:$E$104,3,FALSE)) -> Eje Transversal 4 Gobierno Legitimo, Fortalecimiento Local y Eficiencia | N165: 1474 | O165: 1015410053 | P165: JUAN DAVID RAMIREZ FARIAS | Q165: 15400000 | T165: 1 | U165: 7700000 | V165: 23100000 | W165: 12320000 | X165: 2020-08-24 | Y165: 2020-08-25 | Z165: 2021-02-24 | AA165: 120 | AB165: 1 | AC165: 60 | AI165: X | AL165: 0.5333333333
A166: 154 | B166: 2020 | C166: SECOP II | D166: FDLF-CD-154-2020 | E166: Contratos de prestación de servicios | F166: Contratación Directa | G166: Prestación de servicios profesionales y de apoyo a la gestión, o para la ejecución de trabajos artísticos que sólo puedan encomendarse a determinadas personas naturales; | H166: PRESTAR SERVICIOS PROFESIONALES PARA APOYAR AL ÁREA DE GESTIÓN DE DESARROLLO LOCAL EN LA PROMOCIÓN, ACOMPAÑAMIENTO Y ATENCIÓN DE LAS INSTANCIAS DE PARTICIPACIÓN LOCALES, ASÍ COMO EN LA FORMULACIÓN Y SEGUIMIENTO DE LOS PROYECTOS DE INVERSIÓN RELACIONADOS. | I166: Inversión | J166: Bogotá Mejor para Todos | K166: 45 | L166: =IF(ISERROR(VLOOKUP(K166,Eje_Pilar_Prop!$C$2:$E$104,2,FALSE))," ",VLOOKUP(K166,Eje_Pilar_Prop!$C$2:$E$104,2,FALSE)) -> Gobernanza e influencia local, regional e internacional | M166: =IF(ISERROR(VLOOKUP(K166,Eje_Pilar_Prop!$C$2:$E$104,3,FALSE))," ",VLOOKUP(K166,Eje_Pilar_Prop!$C$2:$E$104,3,FALSE)) -> Eje Transversal 4 Gobierno Legitimo, Fortalecimiento Local y Eficiencia | N166: 1473 | O166: 1016023490 | P166: GERARDO MARTINEZ VASQUEZ | Q166: 16800000 | T166: 0 | U166: 0 | V166: 16800000 | W166: 9240000 | X166: 2020-08-24 | Y166: 2020-08-25 | Z166: 2021-01-24 | AA166: 120 | AB166: 1 | AC166: 30 | AI166: X | AL166: 0.55
A167: 156 | B167: 2020 | C167: SECOP I | D167: FDLF-CD-156-2020 | E167: Contratos interadministrativos | F167: Contratación directa | G167: Contratos interadministrativos | H167: IMPLEMENTAR Y EJECUTAR EL PROGRAMA “CUMPLIMENTO DE PROTOCOLOS DE BIOSEGURIDAD PARA LA ADAPTACIÓN Y REACTIVACIÓN ECONÓMICA EN LAS LOCALIDADES DE BOSA, FONTIBÓN Y PUENTE ARANDA." | I167: Inversión | J167: Bogotá Mejor para Todos | K167: 19 | L167: =IF(ISERROR(VLOOKUP(K167,Eje_Pilar_Prop!$C$2:$E$104,2,FALSE))," ",VLOOKUP(K167,Eje_Pilar_Prop!$C$2:$E$104,2,FALSE)) -> Seguridad y convivencia para todos | M167: =IF(ISERROR(VLOOKUP(K167,Eje_Pilar_Prop!$C$2:$E$104,3,FALSE))," ",VLOOKUP(K167,Eje_Pilar_Prop!$C$2:$E$104,3,FALSE)) -> Pilar 3 Construcción de Comunidad y Cultura Ciudadana | N167: 1467 | O167: 900.959.048-4 | P167: SUBRED INTEGRADA DE SERVICIOS DE SALUD SUROCCIDENTE ESE | Q167: 338654690 | T167: 0 | U167: 0 | V167: 338654690 | W167: 0 | X167: 2020-08-26 | Y167: 2020-08-26 | Z167: 2021-02-28 | AA167: 183 | AB167: 0 | AC167: 0 | AI167: X | AL167: 0
A168: 157 | B168: 2020 | C168: SECOP I | D168: FDLF-CD-157-2020 | E168: Contratos de prestación de servicios | F168: Contratación directa | G168: Urgencia manifiesta | H168: COMPENSAR SE OBLIGA A PRESTAR LOS SERVICIOS REQUERIDOS PARA OPERAR EL PROGRAMA DE INCENTIVOS PARA EL EMPLEO CON EL CUAL SE BUSCA APOYAR AL TEJIDO PRODUCTIVO DE LAS LOCALIDADES DE BOGOTÁ D.C, CON ESPECIAL ÉNFASIS EN LOS EMPRESARIOS, E INCLUIR Y/O MANTENER LABORALMENTE A TRABAJADORES MAYORES DE 50 AÑOS, MUJERES Y JÓVENES (18-28 AÑOS) PRINCIPALMENTE, A TRAVÉS DE LA TRANSFERENCIA DE INCENTIVOS A LA NÓMINA, EN EL MARCO DE LA CONTENCIÓN Y MITIGACIÓN DE LOS EFECTOS DEL COVID-19, LA DECLARATORIA DE EMERGENCIA SANITARIA EN TODO EL TERRITORIO NACIONAL Y LA CALAMIDAD PÚBLICA DECLARADA EN LA CIUDAD DE BOGOTÁ. | I168: Inversión | J168: Bogotá Mejor para Todos | K168: 45 | L168: =IF(ISERROR(VLOOKUP(K168,Eje_Pilar_Prop!$C$2:$E$104,2,FALSE))," ",VLOOKUP(K168,Eje_Pilar_Prop!$C$2:$E$104,2,FALSE)) -> Gobernanza e influencia local, regional e internacional | M168: =IF(ISERROR(VLOOKUP(K168,Eje_Pilar_Prop!$C$2:$E$104,3,FALSE))," ",VLOOKUP(K168,Eje_Pilar_Prop!$C$2:$E$104,3,FALSE)) -> Eje Transversal 4 Gobierno Legitimo, Fortalecimiento Local y Eficiencia | N168: 1473 | O168: 860.066942-7 | P168: CAJA DE COMPENSACIÓN FAMILIAR COMPENSAR | Q168: 9238016519 | R168: 1 | S168: -781980229 | T168: 0 | U168: 0 | V168: 8456036290 | W168: 2536810887 | X168: 2020-08-26 | Y168: 2020-09-14 | Z168: 2020-07-13 | AA168: 300 | AB168: 0 | AC168: 0 | AJ168: X | AL168: 0.3
A169: 158 | B169: 2020 | C169: SECOP II | D169: FDLF-CD-158-2020 | E169: Contratos de prestación de servicios | F169: Contratación directa | G169: Prestación de servicios profesionales y de apoyo a la gestión, o para la ejecución de trabajos artísticos que sólo puedan encomendarse a determinadas personas naturales; | H169: PRSETAR SERVICIOS PROFESIONALES ESPECIALIZADOS AL DESPACHO DEL ALCALDE DE LA LOCALIDAD DE FONTIBON | I169: Inversión | J169: Bogotá Mejor para Todos | K169: 45 | L169: =IF(ISERROR(VLOOKUP(K169,Eje_Pilar_Prop!$C$2:$E$104,2,FALSE))," ",VLOOKUP(K169,Eje_Pilar_Prop!$C$2:$E$104,2,FALSE)) -> Gobernanza e influencia local, regional e internacional | M169: =IF(ISERROR(VLOOKUP(K169,Eje_Pilar_Prop!$C$2:$E$104,3,FALSE))," ",VLOOKUP(K169,Eje_Pilar_Prop!$C$2:$E$104,3,FALSE)) -> Eje Transversal 4 Gobierno Legitimo, Fortalecimiento Local y Eficiencia | N169: 1474 | O169: 79399547 | P169: FRANCISCO JAVIER BECERRA CORREDOR | Q169: 21950000 | T169: 0 | U169: 0 | V169: 21950000 | W169: 0 | X169: 2020-09-21 | Y169: 2020-09-21 | Z169: 2020-12-30 | AA169: 100 | AB169: 0 | AC169: 0 | AJ169: X | AL169: 0
A170: 161 | B170: 2020 | C170: SECOP II | D170: FDLF-CD-161-2020 | E170: Contratos de prestación de servicios | G170: Prestación de servicios profesionales y de apoyo a la gestión, o para la ejecución de trabajos artísticos que sólo puedan encomendarse a determinadas personas naturales; | H170: PRESTAR SERVICIOS PROFESIONALES PARA APOYAR EL ÁREA DE GESTIÓN DEL DESARROLLO LOCAL ORIENTADA A LOS TEMAS DE RECREACIÓN Y DEPORTE ENFOCADAS EN LA CREACIÓN E IMPLEMENTACIÓN DE ESCUELAS DE FORMACIÓN DEPORTIVA | I170: Inversión | J170: Bogotá Mejor para Todos | K170: 11 | L170: =IF(ISERROR(VLOOKUP(K170,Eje_Pilar_Prop!$C$2:$E$104,2,FALSE))," ",VLOOKUP(K170,Eje_Pilar_Prop!$C$2:$E$104,2,FALSE)) -> Mejores oportunidades para el desarrollo a través de la cultura, la recreación y el deporte | M170: =IF(ISERROR(VLOOKUP(K170,Eje_Pilar_Prop!$C$2:$E$104,3,FALSE))," ",VLOOKUP(K170,Eje_Pilar_Prop!$C$2:$E$104,3,FALSE)) -> Pilar 1 Igualdad de Calidad de Vida | N170: 1458 | O170: 1014185339 | P170: LUISA FERNANDA LEON LUQUE | Q170: 15624467 | T170: 0 | U170: 0 | V170: 15624467 | W170: 10522600 | X170: 2020-09-25 | Y170: 2020-09-25 | Z170: 2020-12-31 | AA170: 98 | AB170: 0 | AC170: 0 | AJ170: X | AL170: 0.6734693734
A171: =A170+1 -> 162 | B171: 2020 | C171: SECOP II | D171: FDLF-CD-162-2020 | E171: Contratos de prestación de servicios | F171: Contratación Directa | G171: Prestación de servicios profesionales y de apoyo a la gestión, o para la ejecución de trabajos artísticos que sólo puedan encomendarse a determinadas personas naturales; | H171: PRESTAR SERVICIOS PROFESIONALES DE APOYO CONTABLE EN LOS PROCESOS DE CAUSACIÓN, SISTEMATIZACIÓN Y REGISTROS DE INFORMACIÓN CONTABLE Y A LA GESTIÓN PRESUPUESTAL DEL FONDO DE DESARROLLO LOCAL. | I171: Inversión | J171: Bogotá Mejor para Todos | K171: 45 | L171: =IF(ISERROR(VLOOKUP(K171,Eje_Pilar_Prop!$C$2:$E$104,2,FALSE))," ",VLOOKUP(K171,Eje_Pilar_Prop!$C$2:$E$104,2,FALSE)) -> Gobernanza e influencia local, regional e internacional | M171: =IF(ISERROR(VLOOKUP(K171,Eje_Pilar_Prop!$C$2:$E$104,3,FALSE))," ",VLOOKUP(K171,Eje_Pilar_Prop!$C$2:$E$104,3,FALSE)) -> Eje Transversal 4 Gobierno Legitimo, Fortalecimiento Local y Eficiencia | N171: 1474 | O171: 79938920 | P171: JHON FREDY ROA PINTO | Q171: 14349000 | T171: 1 | U171: 7174500 | V171: 21523500 | W171: 10044300 | X171: 2020-09-28 | Y171: 2020-09-28 | Z171: 2021-02-12 | AA171: 90 | AB171: 1 | AC171: 45 | AI171: X | AL171: 0.4666666667
A172: 163 | B172: 2020 | C172: SECOP II | D172: FDLF-CD-163-2020 | E172: Contratos de prestación de servicios | F172: Contratación Directa | G172: Prestación de servicios profesionales y de apoyo a la gestión, o para la ejecución de trabajos artísticos que sólo puedan encomendarse a determinadas personas naturales; | H172: PRESTAR LOS SERVICIOS TÉCNICOS PARA APOYAR LOS PROCESOS DE GESTIÓN ADMINISTRATIVA Y CONTRACTUAL AL FONDO DE DESARROLLO LOCAL DE FONTIBON. | I172: Inversión | J172: Bogotá Mejor para Todos | K172: 45 | L172: =IF(ISERROR(VLOOKUP(K172,Eje_Pilar_Prop!$C$2:$E$104,2,FALSE))," ",VLOOKUP(K172,Eje_Pilar_Prop!$C$2:$E$104,2,FALSE)) -> Gobernanza e influencia local, regional e internacional | M172: =IF(ISERROR(VLOOKUP(K172,Eje_Pilar_Prop!$C$2:$E$104,3,FALSE))," ",VLOOKUP(K172,Eje_Pilar_Prop!$C$2:$E$104,3,FALSE)) -> Eje Transversal 4 Gobierno Legitimo, Fortalecimiento Local y Eficiencia | N172: 1474 | O172: 1016039271 | P172: JUAN DAVID RAMIREZ MONTOYA | Q172: 10200000 | T172: 1 | U172: 4080000 | V172: 14280000 | W172: 7480000 | X172: 2020-09-25 | Y172: 2020-09-25 | Z172: 2021-01-30 | AA172: 90 | AB172: 1 | AC172: 36 | AI172: X | AL172: 0.5238095238
A173: 164 | B173: 2020 | C173: SECOP II | D173: FDLF-CD-164-2020 | E173: Contratos de prestación de servicios | F173: Contratación Directa | G173: Prestación de servicios profesionales y de apoyo a la gestión, o para la ejecución de trabajos artísticos que sólo puedan encomendarse a determinadas personas naturales; | H173: PRESTAR SERVICIOS PROFESIONALES COOMO ABOGADO PARA BRINDAR APOYO JURÍDICO EN EL TRÁMITE Y DESARROLLO DE LOS DESPACHOS COMISORIOS QUE POR COMPETENCIA CORRESPONDEN A LA ALCALDÍA LOCAL DE FONTIBON | I173: Inversión | J173: Bogotá Mejor para Todos | K173: 45 | L173: =IF(ISERROR(VLOOKUP(K173,Eje_Pilar_Prop!$C$2:$E$104,2,FALSE))," ",VLOOKUP(K173,Eje_Pilar_Prop!$C$2:$E$104,2,FALSE)) -> Gobernanza e influencia local, regional e internacional | M173: =IF(ISERROR(VLOOKUP(K173,Eje_Pilar_Prop!$C$2:$E$104,3,FALSE))," ",VLOOKUP(K173,Eje_Pilar_Prop!$C$2:$E$104,3,FALSE)) -> Eje Transversal 4 Gobierno Legitimo, Fortalecimiento Local y Eficiencia | N173: 1474 | O173: 80228231 | P173: CRHISTIAN ANDRES PINTO GONZALEZ | Q173: 16959000 | T173: 1 | U173: 5653000 | V173: 22612000 | W173: 11871299 | X173: 2020-09-28 | Y173: 2020-09-28 | Z173: 2021-01-27 | AA173: 90 | AB173: 1 | AC173: 30 | AI173: X | AL173: 0.5249999558
A174: 165 | B174: 2020 | C174: SECOP II | D174: FDLF-CD-165-2020 | E174: Contratos de prestación de servicios | F174: Contratación Directa | G174: Prestación de servicios profesionales y de apoyo a la gestión, o para la ejecución de trabajos artísticos que sólo puedan encomendarse a determinadas personas naturales; | H174: PRESTAR SERVICIOS TÉCNICOS PARA EL APOYO ADMINISTRATIVO Y LOGISTICO DEL DESPACHO DE LA ALCALDÍA LOCAL DE FONTIBON | I174: Inversión | J174: Bogotá Mejor para Todos | K174: 45 | L174: =IF(ISERROR(VLOOKUP(K174,Eje_Pilar_Prop!$C$2:$E$104,2,FALSE))," ",VLOOKUP(K174,Eje_Pilar_Prop!$C$2:$E$104,2,FALSE)) -> Gobernanza e influencia local, regional e internacional | M174: =IF(ISERROR(VLOOKUP(K174,Eje_Pilar_Prop!$C$2:$E$104,3,FALSE))," ",VLOOKUP(K174,Eje_Pilar_Prop!$C$2:$E$104,3,FALSE)) -> Eje Transversal 4 Gobierno Legitimo, Fortalecimiento Local y Eficiencia | N174: 1474 | O174: 52974047 | P174: ANGELICA MARIA SALAZAR BAYONA | Q174: 10500000 | T174: 1 | U174: 3850000 | V174: 14350000 | W174: 7350000 | X174: 2020-09-28 | Y174: 2020-09-28 | Z174: 2021-01-30 | AA174: 90 | AB174: 1 | AC174: 33 | AI174: X | AL174: 0.512195122
A175: 166 | B175: 2020 | C175: SECOP II | D175: FDLF-CD-166-2020 | E175: Contratos de prestación de servicios | F175: Contratación Directa | G175: Prestación de servicios profesionales y de apoyo a la gestión, o para la ejecución de trabajos artísticos que sólo puedan encomendarse a determinadas personas naturales; | H175: PRESTAR SERVICIOS PROFESIONALES EN DERECHO PARA APOYAR LAS ACTIVIDADES JURÍDICAS Y ADMINISTRATIVAS PROPIAS DE LA CASA DEL CONSUMIDOR, EN EL MARCO DEL CONVENIO SUSCRITO ENTRE LA SUPERINTENDENCIA DE INDUSTRIA Y COMERCIO Y LA ALCALDÍA LOCAL DE FONTIBON | I175: Inversión | J175: Bogotá Mejor para Todos | K175: 45 | L175: =IF(ISERROR(VLOOKUP(K175,Eje_Pilar_Prop!$C$2:$E$104,2,FALSE))," ",VLOOKUP(K175,Eje_Pilar_Prop!$C$2:$E$104,2,FALSE)) -> Gobernanza e influencia local, regional e internacional | M175: =IF(ISERROR(VLOOKUP(K175,Eje_Pilar_Prop!$C$2:$E$104,3,FALSE))," ",VLOOKUP(K175,Eje_Pilar_Prop!$C$2:$E$104,3,FALSE)) -> Eje Transversal 4 Gobierno Legitimo, Fortalecimiento Local y Eficiencia | N175: 1474 | O175: 28946846 | P175: YOLANDA CALDERON | Q175: 14349000 | T175: 1 | U175: 4783000 | V175: 19132000 | W175: 10044300 | X175: 2020-09-28 | Y175: 2020-09-28 | Z175: 2021-01-27 | AA175: 90 | AB175: 1 | AC175: 30 | AI175: X | AL175: 0.525
A176: 167 | B176: 2020 | C176: SECOP II | D176: FDLF-CD-167-2020 | E176: Contratos de prestación de servicios | F176: Contratación Directa | G176: Prestación de servicios profesionales y de apoyo a la gestión, o para la ejecución de trabajos artísticos que sólo puedan encomendarse a determinadas personas naturales; | H176: SERVICIOS PROFESIONALES DE APOYO CONTABLE EN LOS PROCESOS DE CAUSACIÓN,SISTEMATIZACION Y REGISTROS DE INFORMACIÓN CONTABLE | I176: Inversión | J176: Bogotá Mejor para Todos | K176: 45 | L176: =IF(ISERROR(VLOOKUP(K176,Eje_Pilar_Prop!$C$2:$E$104,2,FALSE))," ",VLOOKUP(K176,Eje_Pilar_Prop!$C$2:$E$104,2,FALSE)) -> Gobernanza e influencia local, regional e internacional | M176: =IF(ISERROR(VLOOKUP(K176,Eje_Pilar_Prop!$C$2:$E$104,3,FALSE))," ",VLOOKUP(K176,Eje_Pilar_Prop!$C$2:$E$104,3,FALSE)) -> Eje Transversal 4 Gobierno Legitimo, Fortalecimiento Local y Eficiencia | N176: 1474 | O176: 79378493 | P176: ELMAN CIFUENTES CASTAÑEDA | Q176: 15000000 | T176: 1 | U176: 5000000 | V176: 20000000 | W176: 11000000 | X176: 2020-09-25 | Y176: 2020-09-25 | Z176: 2021-01-24 | AA176: 90 | AB176: 1 | AC176: 30 | AI176: X | AL176: 0.55
A177: 168 | B177: 2020 | C177: SECOP II | D177: FDLF-CD-168-2020 | E177: Contratos de prestación de servicios | F177: Contratación Directa | G177: Prestación de servicios profesionales y de apoyo a la gestión, o para la ejecución de trabajos artísticos que sólo puedan encomendarse a determinadas personas naturales; | H177: PRESTAR LOS SERVICIOS PROFESIONALES DE ABOGADO COMO APOYO AL ÁREA DE GESTIÓN POLICIVA JURIDICA DE LA ALCALDIA LOCAL DE FONTIBÓN | I177: Inversión | J177: Bogotá Mejor para Todos | K177: 45 | L177: =IF(ISERROR(VLOOKUP(K177,Eje_Pilar_Prop!$C$2:$E$104,2,FALSE))," ",VLOOKUP(K177,Eje_Pilar_Prop!$C$2:$E$104,2,FALSE)) -> Gobernanza e influencia local, regional e internacional | M177: =IF(ISERROR(VLOOKUP(K177,Eje_Pilar_Prop!$C$2:$E$104,3,FALSE))," ",VLOOKUP(K177,Eje_Pilar_Prop!$C$2:$E$104,3,FALSE)) -> Eje Transversal 4 Gobierno Legitimo, Fortalecimiento Local y Eficiencia | N177: 1474 | O177: 1026585989 | P177: MARIA ALEJANDRA QUINTERO MARTINEZ | Q177: 12600000 | T177: 1 | U177: 4200000 | V177: 16800000 | W177: 8820000 | X177: 2020-09-28 | Y177: 2020-09-28 | Z177: 2021-01-27 | AA177: 90 | AB177: 1 | AC177: 30 | AI177: X | AL177: 0.525
A178: 172 | B178: 2020 | C178: SECOP II | D178: FDLF-CD-172-2020 | E178: Contratos de prestación de servicios | F178: Contratación directa | G178: Prestación de servicios profesionales y de apoyo a la gestión, o para la ejecución de trabajos artísticos que sólo puedan encomendarse a determinadas personas naturales; | H178: PRESTAR SERVICIOS PARA APOYAR JURIDICAMENTE LA EJECUCCIÓN DE LAS ACCIONES REQUERIDAS PARA LA DEPURACION DE LAS ACTUACIONES ADMINISTRATIVAS QUE CURSAN EN LA ALCALDIA LOCAL DE FONTIBON | I178: Inversión | J178: Bogotá Mejor para Todos | K178: 45 | L178: =IF(ISERROR(VLOOKUP(K178,Eje_Pilar_Prop!$C$2:$E$104,2,FALSE))," ",VLOOKUP(K178,Eje_Pilar_Prop!$C$2:$E$104,2,FALSE)) -> Gobernanza e influencia local, regional e internacional | M178: =IF(ISERROR(VLOOKUP(K178,Eje_Pilar_Prop!$C$2:$E$104,3,FALSE))," ",VLOOKUP(K178,Eje_Pilar_Prop!$C$2:$E$104,3,FALSE)) -> Eje Transversal 4 Gobierno Legitimo, Fortalecimiento Local y Eficiencia | N178: 1474 | O178: 1016053840 | P178: EVELYN LORENA GOMEZ ORTIZ | Q178: 14349000 | T178: 1 | U178: 4783000 | V178: 19132000 | W178: 5261300 | X178: 2020-09-28 | Y178: 2020-09-28 | Z178: 2021-01-27 | AA178: 90 | AB178: 1 | AC178: 30 | AI178: X | AL178: 0.275
A179: 170 | B179: 2020 | C179: SECOP II | D179: FDLF-CD-170-2020 | E179: Contratos de prestación de servicios | F179: Contratación Directa | G179: Prestación de servicios profesionales y de apoyo a la gestión, o para la ejecución de trabajos artísticos que sólo puedan encomendarse a determinadas personas naturales; | H179: PRESTAR LOS SERVICIOS PROFESIONALES DE ABOGADO COMO APOYO AL ÁREA DE GESTIÓN POLICIVA JURIDICA DE LA ALCALDIA LOCAL DE FONTIBÓN | I179: Inversión | J179: Bogotá Mejor para Todos | K179: 45 | L179: =IF(ISERROR(VLOOKUP(K179,Eje_Pilar_Prop!$C$2:$E$104,2,FALSE))," ",VLOOKUP(K179,Eje_Pilar_Prop!$C$2:$E$104,2,FALSE)) -> Gobernanza e influencia local, regional e internacional | M179: =IF(ISERROR(VLOOKUP(K179,Eje_Pilar_Prop!$C$2:$E$104,3,FALSE))," ",VLOOKUP(K179,Eje_Pilar_Prop!$C$2:$E$104,3,FALSE)) -> Eje Transversal 4 Gobierno Legitimo, Fortalecimiento Local y Eficiencia | N179: 1474 | O179: 1147687727 | P179: KAREN DAYANA ANGARITA RINCÓN | Q179: 12600000 | T179: 0 | U179: 0 | V179: 12600000 | W179: 8820000 | X179: 2020-09-28 | Y179: 2020-09-28 | Z179: 2020-12-27 | AA179: 90 | AB179: 0 | AC179: 0 | AJ179: X | AL179: 0.7
A180: 173 | B180: 2020 | C180: SECOP II | D180: FDLF-CD-173-2020 | E180: Contratos de prestación de servicios | F180: Contratación Directa | G180: Prestación de servicios profesionales y de apoyo a la gestión, o para la ejecución de trabajos artísticos que sólo puedan encomendarse a determinadas personas naturales; | H180: PRESTAR SERVICIOS PARA APOYAR JURIDICAMENTE LA EJECUCCIÓN DE LAS ACCIONES REQUERIDAS PARA LA DEPURACION DE LAS ACTUACIONES ADMINISTRATIVAS QUE CURSAN EN LA ALCALDIA LOCAL DE FONTIBON | I180: Inversión | J180: Bogotá Mejor para Todos | K180: 45 | L180: =IF(ISERROR(VLOOKUP(K180,Eje_Pilar_Prop!$C$2:$E$104,2,FALSE))," ",VLOOKUP(K180,Eje_Pilar_Prop!$C$2:$E$104,2,FALSE)) -> Gobernanza e influencia local, regional e internacional | M180: =IF(ISERROR(VLOOKUP(K180,Eje_Pilar_Prop!$C$2:$E$104,3,FALSE))," ",VLOOKUP(K180,Eje_Pilar_Prop!$C$2:$E$104,3,FALSE)) -> Eje Transversal 4 Gobierno Legitimo, Fortalecimiento Local y Eficiencia | N180: 1474 | O180: 1022941624 | P180: ANDY FABIAN HERRERA PINTO | Q180: 14349000 | T180: 1 | U180: 4783000 | V180: 19132000 | W180: 10044300 | X180: 2020-09-28 | Y180: 2020-09-25 | Z180: 2021-01-27 | AA180: 90 | AB180: 1 | AC180: 30 | AI180: X | AL180: 0.525
A181: 171 | B181: 2020 | C181: SECOP I | D181: FDLF-CD-171-2020 | E181: Contratos de prestación de servicios | F181: Contratación directa | G181: Urgencia manifiesta | H181: COMPENSAR SE OBLIGA A PRESTAR LOS SERVICIOS REQUERIDOS PARA OPERAR EL PROGRAMA EMPLEOS DE EMERGENCIA QUE BUSCA GENERAR EMPLEO LOCAL TEMPORAL A TRABAJADORES DE BAJA CUALIFICACIÓN DE LAS LOCALIDADES QUE SUSCRIBEN ESTE CONTRATO, EN EL MARCO DE LA CONTENCIÓN Y MITIGACIÓN DEL COVID-19, LA DECLARATORIA DE EMERGENCIA SANITARIA EN TODO EL TERRITORIO NACIONAL Y LA CALAMIDAD PÚBLICA DECLARADA EN LA CIUDAD DE BOGOTÁ D.C. PARA PROMOVER LA REACTIVACIÓN ECONÓMICA | I181: Inversión | J181: Bogotá Mejor para Todos | K181: 19 | L181: =IF(ISERROR(VLOOKUP(K181,Eje_Pilar_Prop!$C$2:$E$104,2,FALSE))," ",VLOOKUP(K181,Eje_Pilar_Prop!$C$2:$E$104,2,FALSE)) -> Seguridad y convivencia para todos | M181: =IF(ISERROR(VLOOKUP(K181,Eje_Pilar_Prop!$C$2:$E$104,3,FALSE))," ",VLOOKUP(K181,Eje_Pilar_Prop!$C$2:$E$104,3,FALSE)) -> Pilar 3 Construcción de Comunidad y Cultura Ciudadana | N181: 1467 | O181: 860066942-7 | P181: CAJA DE COMPENSACIÓN FAMILIAR COMPENSAR | Q181: 525913623 | T181: 0 | U181: 0 | V181: 525913623 | W181: 105182724 | X181: 2020-09-24 | Y181: 2020-10-05 | Z181: 2021-04-05 | AA181: 180 | AB181: 0 | AC181: 0 | AI181: X | AL181: 0.1999999989
A182: 171 | B182: 2020 | C182: SECOP I | D182: FDLF-CD-171-2020 | E182: Contratos de prestación de servicios | F182: Contratación directa | G182: Urgencia manifiesta | H182: COMPENSAR SE OBLIGA A PRESTAR LOS SERVICIOS REQUERIDOS PARA OPERAR EL PROGRAMA EMPLEOS DE EMERGENCIA QUE BUSCA GENERAR EMPLEO LOCAL TEMPORAL A TRABAJADORES DE BAJA CUALIFICACIÓN DE LAS LOCALIDADES QUE SUSCRIBEN ESTE CONTRATO, EN EL MARCO DE LA CONTENCIÓN Y MITIGACIÓN DEL COVID-19, LA DECLARATORIA DE EMERGENCIA SANITARIA EN TODO EL TERRITORIO NACIONAL Y LA CALAMIDAD PÚBLICA DECLARADA EN LA CIUDAD DE BOGOTÁ D.C. PARA PROMOVER LA REACTIVACIÓN ECONÓMICA | I182: Inversión | J182: Bogotá Mejor para Todos | K182: 38 | L182: =IF(ISERROR(VLOOKUP(K182,Eje_Pilar_Prop!$C$2:$E$104,2,FALSE))," ",VLOOKUP(K182,Eje_Pilar_Prop!$C$2:$E$104,2,FALSE)) -> Recuperación y manejo de la Estructura Ecológica Principal | M182: =IF(ISERROR(VLOOKUP(K182,Eje_Pilar_Prop!$C$2:$E$104,3,FALSE))," ",VLOOKUP(K182,Eje_Pilar_Prop!$C$2:$E$104,3,FALSE)) -> Eje Transversal 3 Sostenibilidad Ambiental basada en la eficiencia energética | N182: 1471 | O182: 860066942-7 | P182: CAJA DE COMPENSACIÓN FAMILIAR COMPENSAR | Q182: 493586658 | T182: 0 | U182: 0 | V182: 493586658 | W182: 98717332 | X182: 2020-09-24 | Y182: 2020-10-05 | Z182: 2021-04-05 | AA182: 180 | AB182: 0 | AC182: 0 | AI182: X | AL182: 0.2000000008
A183: =A182+1 -> 172 | B183: 2020 | C183: SECOP II | D183: FDLF-CD-174-2020 | E183: Contratos de prestación de servicios | F183: Contratación Directa | G183: Prestación de servicios profesionales y de apoyo a la gestión, o para la ejecución de trabajos artísticos que sólo puedan encomendarse a determinadas personas naturales; | H183: PRESTAR SERVICIOS PARA APOYAR JURIDICAMENTE LA EJECUCCIÓN DE LAS ACCIONES REQUERIDAS PARA EL TRAMITE E IMPULSO PROCESAL DE LAS ACTUACIONES CONTRAVENCIONALES Y/O QUERELLAS QUE CURSEN EN LAS INSPECCIONES DE POLICIA DE LA LOCALIDAD | I183: Inversión | J183: Bogotá Mejor para Todos | K183: 45 | L183: =IF(ISERROR(VLOOKUP(K183,Eje_Pilar_Prop!$C$2:$E$104,2,FALSE))," ",VLOOKUP(K183,Eje_Pilar_Prop!$C$2:$E$104,2,FALSE)) -> Gobernanza e influencia local, regional e internacional | M183: =IF(ISERROR(VLOOKUP(K183,Eje_Pilar_Prop!$C$2:$E$104,3,FALSE))," ",VLOOKUP(K183,Eje_Pilar_Prop!$C$2:$E$104,3,FALSE)) -> Eje Transversal 4 Gobierno Legitimo, Fortalecimiento Local y Eficiencia | N183: 1474 | O183: 79131970 | P183: WILFORD LIBERMAN RODRIGUEZ FONSECA | Q183: 14349000 | T183: 1 | U183: 4783000 | V183: 19132000 | W183: 9884867 | X183: 2020-09-29 | Y183: 2020-09-29 | Z183: 2021-01-28 | AA183: 90 | AB183: 1 | AC183: 30 | AI183: X | AL183: 0.5166666841
A184: 175 | B184: 2020 | C184: SECOP I | D184: FDLF-CD- 175-2020 | E184: Convenios de cooperacion | F184: Contratación Directa | G184: Contratos interadministrativos | H184: AUNAR ESFUERZOS TÉCNICOS, ADMINISTRATIVOS Y FINANCIEROS PARA IMPULSAR LA REACTIVACIÓN ECONÓMICA DE LOS AGENTES DE LA INDUSTRIA CULTURAL Y CREATIVA, DEL SECTOR CULTURA, RECREACIÓN Y DEPORTE, EN LA LOCALIDAD FONTIBÓN DE BOGOTÁ QUE SE PRIORICE EN EL EJE ADAPTACIÓN Y TRANSFORMACIÓN PRODUCTIVA DE LA ESTRATEGIA DE REACTIVACIÓN ECONÓMICA LOCAL- EMRE LOCAL, PROGRAMA APOYO Y FORTALECIMIENTO DE LAS INDUSTRIAS CREATIVAS Y CULTURALES PARA LA ADAPTACIÓN Y TRANSFORMACIÓN PRODUCTIVA, EN EL MARCO DE UN PROCESO DE FOMENTO. | I184: Inversión | J184: Bogotá Mejor para Todos | K184: 45 | L184: =IF(ISERROR(VLOOKUP(K184,Eje_Pilar_Prop!$C$2:$E$104,2,FALSE))," ",VLOOKUP(K184,Eje_Pilar_Prop!$C$2:$E$104,2,FALSE)) -> Gobernanza e influencia local, regional e internacional | M184: =IF(ISERROR(VLOOKUP(K184,Eje_Pilar_Prop!$C$2:$E$104,3,FALSE))," ",VLOOKUP(K184,Eje_Pilar_Prop!$C$2:$E$104,3,FALSE)) -> Eje Transversal 4 Gobierno Legitimo, Fortalecimiento Local y Eficiencia | N184: 1473 | O184: 900413030-9 | P184: INSTITUTO DISTRITAL DE LAS ARTES- IDARTES | Q184: 2200000000 | T184: 0 | U184: 0 | V184: 2200000000 | W184: 2100640000 | X184: 2020-10-08 | Y184: 2020-10-08 | Z184: 2020-11-30 | AA184: 418 | AB184: 0 | AC184: 0 | AJ184: X | AL184: 0.9548363636
A185: =A184+1 -> 176 | B185: 2020 | C185: SECOP II | D185: FDLF-CD-176-2020 | E185: Contratos de prestación de servicios | F185: Contratación Directa | G185: Prestación de servicios profesionales y de apoyo a la gestión, o para la ejecución de trabajos artísticos que sólo puedan encomendarse a determinadas personas naturales; | H185: Apoyar las labores de entrega y recibo de las comunicaciones emitidas o recibidas por las Inspecciones de Policía de la Localidad. | I185: Inversión | J185: Bogotá Mejor para Todos | K185: 45 | L185: =IF(ISERROR(VLOOKUP(K185,Eje_Pilar_Prop!$C$2:$E$104,2,FALSE))," ",VLOOKUP(K185,Eje_Pilar_Prop!$C$2:$E$104,2,FALSE)) -> Gobernanza e influencia local, regional e internacional | M185: =IF(ISERROR(VLOOKUP(K185,Eje_Pilar_Prop!$C$2:$E$104,3,FALSE))," ",VLOOKUP(K185,Eje_Pilar_Prop!$C$2:$E$104,3,FALSE)) -> Eje Transversal 4 Gobierno Legitimo, Fortalecimiento Local y Eficiencia | N185: 1474 | O185: 1016034743 | P185: JUAN ANTONIO ESPITIA ACERO | Q185: 4095866 | T185: 1 | U185: 2047933 | V185: 6143799 | W185: 1732866 | X185: 2020-11-06 | Y185: 2020-11-09 | Z185: 2021-01-26 | AA185: 52 | AB185: 1 | AC185: 27 | AI185: X | AL185: 0.2820512194
A186: 179 | B186: 2020 | C186: SECOP II | D186: FDLF-CD-179-2020 | E186: Contratos de prestación de servicios | F186: Contratación Directa | G186: Prestación de servicios profesionales y de apoyo a la gestión, o para la ejecución de trabajos artísticos que sólo puedan encomendarse a determinadas personas naturales; | H186: PRESTAR SERVICIOS PROFESIONALES DE APOYO A PRESUPUESTO EN EL FONDO DE DESARROLLO LOCAL DE FONTIBÓN EN EL REGISTRO, ANÁLISIS Y GESTIÓN DE OBLIGACIONES POR PAGAR Y OTROS ASUNTOS QUE EN MATERIA DE PRESUPUESTO LOCAL LE SEAN ASIGNADOS. | I186: Inversión | J186: Bogotá Mejor para Todos | K186: 45 | L186: =IF(ISERROR(VLOOKUP(K186,Eje_Pilar_Prop!$C$2:$E$104,2,FALSE))," ",VLOOKUP(K186,Eje_Pilar_Prop!$C$2:$E$104,2,FALSE)) -> Gobernanza e influencia local, regional e internacional | M186: =IF(ISERROR(VLOOKUP(K186,Eje_Pilar_Prop!$C$2:$E$104,3,FALSE))," ",VLOOKUP(K186,Eje_Pilar_Prop!$C$2:$E$104,3,FALSE)) -> Eje Transversal 4 Gobierno Legitimo, Fortalecimiento Local y Eficiencia | N186: 1474 | O186: 1014177647 | P186: NAIRA CAROLINA PARRA BELTRAN | Q186: 11000900 | T186: 1 | U186: 4783000 | V186: 15783900 | W186: 6058467 | X186: 2020-10-21 | Y186: 2020-10-23 | Z186: 2021-01-30 | AA186: 69 | AB186: 1 | AC186: 30 | AI186: X | AL186: 0.383838405
A187: 180 | B187: 2020 | C187: SECOP II | D187: FDLF-CD-180-2020 | E187: Contratos de prestación de servicios | F187: Contratación Directa | G187: Prestación de servicios profesionales y de apoyo a la gestión, o para la ejecución de trabajos artísticos que sólo puedan encomendarse a determinadas personas naturales; | H187: Prestar los servicios profesionales especializados como enlace entre la Alcaldía Local de Fontibón, las entidades del distrito y los diferentes actores políticos locales y comunitarios en los temas de reactivación económica. | I187: Inversión | J187: Bogotá Mejor para Todos | K187: 45 | L187: =IF(ISERROR(VLOOKUP(K187,Eje_Pilar_Prop!$C$2:$E$104,2,FALSE))," ",VLOOKUP(K187,Eje_Pilar_Prop!$C$2:$E$104,2,FALSE)) -> Gobernanza e influencia local, regional e internacional | M187: =IF(ISERROR(VLOOKUP(K187,Eje_Pilar_Prop!$C$2:$E$104,3,FALSE))," ",VLOOKUP(K187,Eje_Pilar_Prop!$C$2:$E$104,3,FALSE)) -> Eje Transversal 4 Gobierno Legitimo, Fortalecimiento Local y Eficiencia | N187: 1474 | O187: 79398471 | P187: CARLOS JULIO PIEDRA ZAMORA | Q187: 17566667 | T187: 1 | U187: 8500000 | V187: 26066667 | W187: 9066666 | X187: 2020-10-28 | Y187: 2020-10-29 | Z187: 2021-01-30 | AA187: 62 | AB187: 1 | AC187: 30 | AI187: X | AL187: 0.3478260569
A188: 181 | B188: 2020 | C188: SECOP II | D188: FDLF-CD-181-2020 | E188: Contratos de prestación de servicios | F188: Contratación Directa | G188: Prestación de servicios profesionales y de apoyo a la gestión, o para la ejecución de trabajos artísticos que sólo puedan encomendarse a determinadas personas naturales; | H188: Servicios para el apoyo en la conducción de vehículos al servicio de la Alcaldía Local de Fontibón. | I188: Inversión | J188: Bogotá Mejor para Todos | K188: 45 | L188: =IF(ISERROR(VLOOKUP(K188,Eje_Pilar_Prop!$C$2:$E$104,2,FALSE))," ",VLOOKUP(K188,Eje_Pilar_Prop!$C$2:$E$104,2,FALSE)) -> Gobernanza e influencia local, regional e internacional | M188: =IF(ISERROR(VLOOKUP(K188,Eje_Pilar_Prop!$C$2:$E$104,3,FALSE))," ",VLOOKUP(K188,Eje_Pilar_Prop!$C$2:$E$104,3,FALSE)) -> Eje Transversal 4 Gobierno Legitimo, Fortalecimiento Local y Eficiencia | N188: 1474 | O188: 80066595 | P188: JHON FREDY ORDUZ ORTIZ | Q188: 4804767 | T188: 1 | U188: 2363000 | V188: 7167767 | W188: 2363000 | X188: 2020-10-29 | Y188: 2020-10-30 | Z188: 2021-02-01 | AA188: 61 | AB188: 1 | AC188: 30 | AI188: X | AL188: 0.3296703143
A189: 182 | B189: 2020 | C189: SECOP II | D189: FDLF-CD-182-2020 | E189: Contratos de prestación de servicios | F189: Contratación Directa | G189: Prestación de servicios profesionales y de apoyo a la gestión, o para la ejecución de trabajos artísticos que sólo puedan encomendarse a determinadas personas naturales; | H189: Servicios para el apoyo en la conducción de vehículos al servicio de la Alcaldía Local de Fontibón. | I189: Inversión | J189: Bogotá Mejor para Todos | K189: 45 | L189: =IF(ISERROR(VLOOKUP(K189,Eje_Pilar_Prop!$C$2:$E$104,2,FALSE))," ",VLOOKUP(K189,Eje_Pilar_Prop!$C$2:$E$104,2,FALSE)) -> Gobernanza e influencia local, regional e internacional | M189: =IF(ISERROR(VLOOKUP(K189,Eje_Pilar_Prop!$C$2:$E$104,3,FALSE))," ",VLOOKUP(K189,Eje_Pilar_Prop!$C$2:$E$104,3,FALSE)) -> Eje Transversal 4 Gobierno Legitimo, Fortalecimiento Local y Eficiencia | N189: 1474 | O189: 11385997 | P189: JULIO ARMANDO GARZON MONTAÑEZ | Q189: 4804767 | T189: 1 | U189: 2363000 | V189: 7167767 | W189: 2363001 | X189: 2020-10-29 | Y189: 2020-10-30 | Z189: 2021-01-30 | AA189: 61 | AB189: 1 | AC189: 30 | AI189: X | AL189: 0.3296704539
A190: 183 | B190: 2020 | C190: SECOP II | D190: FDLF-CD-183-2020 | E190: Contratos de prestación de servicios | F190: Contratación Directa | G190: Prestación de servicios profesionales y de apoyo a la gestión, o para la ejecución de trabajos artísticos que sólo puedan encomendarse a determinadas personas naturales; | H190: LA PRESTACIÓN DE SERVICIOS PROFESIONALES DE APOYO AL ÁREA DE GESTIÓN DE DESARROLLO LOCAL, EN PRESUPUESTO, EN LAS ACTIVIDADES QUE ALLÍ SE GENEREN Y LE SEAN DESIGNADAS, DE CONFORMIDAD CON LOS ESTUDIOS PREVIOS | I190: Inversión | J190: Bogotá Mejor para Todos | K190: 45 | L190: =IF(ISERROR(VLOOKUP(K190,Eje_Pilar_Prop!$C$2:$E$104,2,FALSE))," ",VLOOKUP(K190,Eje_Pilar_Prop!$C$2:$E$104,2,FALSE)) -> Gobernanza e influencia local, regional e internacional | M190: =IF(ISERROR(VLOOKUP(K190,Eje_Pilar_Prop!$C$2:$E$104,3,FALSE))," ",VLOOKUP(K190,Eje_Pilar_Prop!$C$2:$E$104,3,FALSE)) -> Eje Transversal 4 Gobierno Legitimo, Fortalecimiento Local y Eficiencia | N190: 1474 | O190: 51688411 | P190: NELLY STELLA LOPEZ SILVA | Q190: 9566000 | T190: 1 | U190: 4783000 | V190: 14349000 | W190: 4942433 | X190: 2020-10-29 | Y190: 2020-10-30 | Z190: 2021-01-29 | AA190: 60 | AB190: 1 | AC190: 30 | AI190: X | AL190: 0.3444444212
A191: 185 | B191: 2020 | C191: SECOP II | D191: FDLF-CD-185-2020 | E191: Contratos de prestación de servicios | F191: Contratación directa | G191: Prestación de servicios profesionales y de apoyo a la gestión, o para la ejecución de trabajos artísticos que sólo puedan encomendarse a determinadas personas naturales; | H191: Prestar los servicios profesionales de abogado como apoyo al Área de Gestión Policiva Jurídica de la Alcaldía Local de Fontibón. | I191: Inversión | J191: Bogotá Mejor para Todos | K191: 45 | L191: =IF(ISERROR(VLOOKUP(K191,Eje_Pilar_Prop!$C$2:$E$104,2,FALSE))," ",VLOOKUP(K191,Eje_Pilar_Prop!$C$2:$E$104,2,FALSE)) -> Gobernanza e influencia local, regional e internacional | M191: =IF(ISERROR(VLOOKUP(K191,Eje_Pilar_Prop!$C$2:$E$104,3,FALSE))," ",VLOOKUP(K191,Eje_Pilar_Prop!$C$2:$E$104,3,FALSE)) -> Eje Transversal 4 Gobierno Legitimo, Fortalecimiento Local y Eficiencia | N191: 1474 | O191: 39701795 | P191: GLORIA CECILIA MOLINA VILLAMARIN | Q191: 8120000 | T191: 0 | U191: 0 | V191: 8120000 | W191: 3500000 | X191: 2020-10-29 | Y191: 2020-11-06 | Z191: 2021-01-02 | AA191: 58 | AB191: 0 | AC191: 0 | AI191: X | AL191: 0.4310344828
A192: 186 | B192: 2020 | C192: SECOP II | D192: FDLF-SASI-8-2020 | E192: Suministro | F192: Selección abreviada | G192: Subasta inversa | H192: CONTRATAR EL SUMINISTRO DE PRODUCTOS LÁCTEOS PARA NIÑOS Y NIÑAS ADSCRITOS A LAS DIFERENTES MODALIDADES DE ATENCIÓN Y CUIDADO DEL ICBF EN LA LOCALIDAD DE FONTIBÓN | I192: Inversión | J192: Bogotá Mejor para Todos | K192: 2 | L192: =IF(ISERROR(VLOOKUP(K192,Eje_Pilar_Prop!$C$2:$E$104,2,FALSE))," ",VLOOKUP(K192,Eje_Pilar_Prop!$C$2:$E$104,2,FALSE)) -> Desarrollo integral desde la gestación hasta la adolescencia | M192: =IF(ISERROR(VLOOKUP(K192,Eje_Pilar_Prop!$C$2:$E$104,3,FALSE))," ",VLOOKUP(K192,Eje_Pilar_Prop!$C$2:$E$104,3,FALSE)) -> Pilar 1 Igualdad de Calidad de Vida | N192: 1452 | O192: 830042212-6 | P192: PROALIMENTOS LIBER S.A.S. EN REORGANIZACIÓN | Q192: 166374552 | T192: 0 | U192: 0 | V192: 166374552 | W192: 0 | X192: 2020-10-29 | Y192: 2020-11-09 | Z192: 2021-05-08 | AA192: 180 | AB192: 0 | AC192: 0 | AI192: X | AL192: 0
A193: 187 | B193: 2020 | C193: SECOP II | D193: FDLF-CD-187-2020 | E193: Contratos de prestación de servicios | F193: Contratación Directa | G193: Prestación de servicios profesionales y de apoyo a la gestión, o para la ejecución de trabajos artísticos que sólo puedan encomendarse a determinadas personas naturales; | H193: PRESTAR LOS SERVICIOS PROFESIONALES PARA APOYAR LAS ACTIVIDADES ESTRATEGICAS DESARROLLADAS POR EL DESPACHO DE LA ALCALDIA LOCAL DE FONTIBÓN. | I193: Inversión | J193: Bogotá Mejor para Todos | K193: 45 | L193: =IF(ISERROR(VLOOKUP(K193,Eje_Pilar_Prop!$C$2:$E$104,2,FALSE))," ",VLOOKUP(K193,Eje_Pilar_Prop!$C$2:$E$104,2,FALSE)) -> Gobernanza e influencia local, regional e internacional | M193: =IF(ISERROR(VLOOKUP(K193,Eje_Pilar_Prop!$C$2:$E$104,3,FALSE))," ",VLOOKUP(K193,Eje_Pilar_Prop!$C$2:$E$104,3,FALSE)) -> Eje Transversal 4 Gobierno Legitimo, Fortalecimiento Local y Eficiencia | N193: 1474 | O193: 1019064411 | P193: ADRIANA PAOLA ROJAS VASQUEZ | Q193: 8120000 | T193: 0 | U193: 0 | V193: 8120000 | W193: 3500000 | X193: 2020-10-29 | Y193: 2020-11-06 | Z193: 2021-01-02 | AA193: 58 | AB193: 0 | AC193: 0 | AI193: X | AL193: 0.4310344828
A194: 189 | B194: 2020 | C194: SECOP II | D194: FDLF-CD-189-2020 | E194: Contratos de prestación de servicios | F194: Contratación Directa | G194: Prestación de servicios profesionales y de apoyo a la gestión, o para la ejecución de trabajos artísticos que sólo puedan encomendarse a determinadas personas naturales; | H194: PRESTAR SERVICIOS DE APOYO EN LAS ACTIVIDADES DE SEGURIDAD Y CONVIVENCIA CIUDADANA, DE ACUERDO CON LAS NECESIDADES Y ESTRATEGIAS EMANADAS POR EL ÁREA DE SEGURIDAD Y CONVIVENCIA DE LA ALCALDIA LOCAL DE FONTIBON | I194: Inversión | J194: Bogotá Mejor para Todos | K194: 19 | L194: =IF(ISERROR(VLOOKUP(K194,Eje_Pilar_Prop!$C$2:$E$104,2,FALSE))," ",VLOOKUP(K194,Eje_Pilar_Prop!$C$2:$E$104,2,FALSE)) -> Seguridad y convivencia para todos | M194: =IF(ISERROR(VLOOKUP(K194,Eje_Pilar_Prop!$C$2:$E$104,3,FALSE))," ",VLOOKUP(K194,Eje_Pilar_Prop!$C$2:$E$104,3,FALSE)) -> Pilar 3 Construcción de Comunidad y Cultura Ciudadana | N194: 1467 | O194: 1010087690 | P194: LEIDY VANESSA AGUILERA SANTAFE | Q194: 2867489 | T194: 0 | U194: 0 | V194: 2867489 | W194: 0 | X194: 2020-11-10 | Y194: 2020-11-13 | Z194: 2020-12-30 | AA194: 49 | AB194: 0 | AC194: 0 | AJ194: X | AL194: 0
A195: 190 | B195: 2020 | C195: SECOP II | D195: FDLF-CD-190-2020 | E195: Contratos de prestación de servicios | F195: Contratación Directa | G195: Prestación de servicios profesionales y de apoyo a la gestión, o para la ejecución de trabajos artísticos que sólo puedan encomendarse a determinadas personas naturales; | H195: Prestar servicios de apoyo en las actividades de seguridad y convivencia ciudadana, de acuerdo con las necesidades y estrategias emanadas por el área de seguridad y convivencia de la Alcaldía Local de Fontibón. | I195: Inversión | J195: Bogotá Mejor para Todos | K195: 19 | L195: =IF(ISERROR(VLOOKUP(K195,Eje_Pilar_Prop!$C$2:$E$104,2,FALSE))," ",VLOOKUP(K195,Eje_Pilar_Prop!$C$2:$E$104,2,FALSE)) -> Seguridad y convivencia para todos | M195: =IF(ISERROR(VLOOKUP(K195,Eje_Pilar_Prop!$C$2:$E$104,3,FALSE))," ",VLOOKUP(K195,Eje_Pilar_Prop!$C$2:$E$104,3,FALSE)) -> Pilar 3 Construcción de Comunidad y Cultura Ciudadana | N195: 1467 | O195: 1016052722 | P195: JESSICA MILENA MARTINEZ RIVERA | Q195: 2926010 | T195: 0 | U195: 0 | V195: 2926010 | W195: 1170404 | X195: 2020-11-10 | Y195: 2020-11-11 | Z195: 2020-12-31 | AA195: 50 | AB195: 0 | AC195: 0 | AJ195: X | AL195: 0.4
A196: 191 | B196: 2020 | C196: SECOP II | D196: FDLF-CD-191-2020 | E196: Contratos de prestación de servicios | F196: Contratación Directa | G196: Prestación de servicios profesionales y de apoyo a la gestión, o para la ejecución de trabajos artísticos que sólo puedan encomendarse a determinadas personas naturales; | H196: Prestar servicios de apoyo en las actividades de seguridad y convivencia ciudadana, de acuerdo con las necesidades y estrategias emanadas por el área de seguridad y convivencia de la Alcaldía Local de Fontibón. | I196: Inversión | J196: Bogotá Mejor para Todos | K196: 19 | L196: =IF(ISERROR(VLOOKUP(K196,Eje_Pilar_Prop!$C$2:$E$104,2,FALSE))," ",VLOOKUP(K196,Eje_Pilar_Prop!$C$2:$E$104,2,FALSE)) -> Seguridad y convivencia para todos | M196: =IF(ISERROR(VLOOKUP(K196,Eje_Pilar_Prop!$C$2:$E$104,3,FALSE))," ",VLOOKUP(K196,Eje_Pilar_Prop!$C$2:$E$104,3,FALSE)) -> Pilar 3 Construcción de Comunidad y Cultura Ciudadana | N196: 1467 | O196: 79127237 | P196: JHON EVEL CARRION GUZMAN | Q196: 2867489 | T196: 0 | U196: 0 | V196: 2867489 | W196: 1111883 | X196: 2020-11-10 | Y196: 2020-11-12 | Z196: 2020-12-31 | AA196: 49 | AB196: 0 | AC196: 0 | AJ196: X | AL196: 0.3877549312
A197: 192 | B197: 2020 | C197: SECOP II | D197: FDLF-CD-192-2020 | E197: Contratos de prestación de servicios | F197: Contratación Directa | G197: Prestación de servicios profesionales y de apoyo a la gestión, o para la ejecución de trabajos artísticos que sólo puedan encomendarse a determinadas personas naturales; | H197: PRESTAR SERVICIOS DE APOYO EN LAS ACTIVIDADES DE SEGURIDAD Y CONVIVENCIA CIUDADANA, DE ACUERDO CON LAS NECESIDADES Y ESTRATEGIAS EMANADAS POR EL ÁREA DE SEGURIDAD Y CONVIVENCIA DE LA ALCALDÍA LOCAL DE FONTIBÓN. | I197: Inversión | J197: Bogotá Mejor para Todos | K197: 19 | L197: =IF(ISERROR(VLOOKUP(K197,Eje_Pilar_Prop!$C$2:$E$104,2,FALSE))," ",VLOOKUP(K197,Eje_Pilar_Prop!$C$2:$E$104,2,FALSE)) -> Seguridad y convivencia para todos | M197: =IF(ISERROR(VLOOKUP(K197,Eje_Pilar_Prop!$C$2:$E$104,3,FALSE))," ",VLOOKUP(K197,Eje_Pilar_Prop!$C$2:$E$104,3,FALSE)) -> Pilar 3 Construcción de Comunidad y Cultura Ciudadana | N197: 1467 | O197: 1015450642 | P197: ELVER SEBASTIAN DURAN FORERO | Q197: 2808969 | T197: 0 | U197: 0 | V197: 2808969 | W197: 1053363 | X197: 2020-11-10 | Y197: 2020-11-13 | Z197: 2020-12-31 | AA197: 48 | AB197: 0 | AC197: 0 | AJ197: X | AL197: 0.3749998665
A198: 193 | B198: 2020 | C198: SECOP II | D198: FDLF-CD-193-2020 | E198: Contratos de prestación de servicios | F198: Contratación Directa | G198: Prestación de servicios profesionales y de apoyo a la gestión, o para la ejecución de trabajos artísticos que sólo puedan encomendarse a determinadas personas naturales; | H198: PRESTAR SERVICIOS DE APOYO EN LAS ACTIVIDADES DE SEGURIDAD Y CONVIVENCIA CIUDADANA, DE ACUERDO CON LAS NECESIDADES Y ESTRATEGIAS EMANADAS POR EL ÁREA DE SEGURIDAD Y CONVIVENCIA DE LA ALCALDÍA LOCAL DE FONTIBÓN. | I198: Inversión | J198: Bogotá Mejor para Todos | K198: 19 | L198: =IF(ISERROR(VLOOKUP(K198,Eje_Pilar_Prop!$C$2:$E$104,2,FALSE))," ",VLOOKUP(K198,Eje_Pilar_Prop!$C$2:$E$104,2,FALSE)) -> Seguridad y convivencia para todos | M198: =IF(ISERROR(VLOOKUP(K198,Eje_Pilar_Prop!$C$2:$E$104,3,FALSE))," ",VLOOKUP(K198,Eje_Pilar_Prop!$C$2:$E$104,3,FALSE)) -> Pilar 3 Construcción de Comunidad y Cultura Ciudadana | N198: 1467 | O198: 11430819 | P198: ESAU ARNULFO AMORTEGUI PINEDA | Q198: 2867489 | T198: 0 | U198: 0 | V198: 2867489 | W198: 0 | X198: 2020-11-11 | Y198: 2020-11-12 | Z198: 2020-12-31 | AA198: 49 | AB198: 0 | AC198: 0 | AJ198: X | AL198: 0
A199: 194 | B199: 2020 | C199: SECOP II | D199: FDLF-CD-194-2020 | E199: Contratos de prestación de servicios | F199: Contratación Directa | G199: Prestación de servicios profesionales y de apoyo a la gestión, o para la ejecución de trabajos artísticos que sólo puedan encomendarse a determinadas personas naturales; | H199: PRESTAR SERVICIOS DE APOYO EN LAS ACTIVIDADES DE SEGURIDAD Y CONVIVENCIA CIUDADANA, DE ACUERDO CON LAS NECESIDADES Y ESTRATEGIAS EMANADAS POR EL ÁREA DE SEGURIDAD Y CONVIVENCIA DE LA ALCALDÍA LOCAL DE FONTIBÓN | I199: Inversión | J199: Bogotá Mejor para Todos | K199: 19 | L199: =IF(ISERROR(VLOOKUP(K199,Eje_Pilar_Prop!$C$2:$E$104,2,FALSE))," ",VLOOKUP(K199,Eje_Pilar_Prop!$C$2:$E$104,2,FALSE)) -> Seguridad y convivencia para todos | M199: =IF(ISERROR(VLOOKUP(K199,Eje_Pilar_Prop!$C$2:$E$104,3,FALSE))," ",VLOOKUP(K199,Eje_Pilar_Prop!$C$2:$E$104,3,FALSE)) -> Pilar 3 Construcción de Comunidad y Cultura Ciudadana | N199: 1467 | O199: 1016040374 | P199: PAOLA ANDREA QUIROGA ARIAS | Q199: 2926010 | T199: 0 | U199: 0 | V199: 2926010 | W199: 1111883 | X199: 2020-11-10 | Y199: 2020-11-12 | Z199: 2020-12-31 | AA199: 50 | AB199: 0 | AC199: 0 | AJ199: X | AL199: 0.3799997266
A200: 195 | B200: 2020 | C200: SECOP II | D200: FDLF-CD-195-2020 | E200: Contratos de prestación de servicios | F200: Contratación Directa | G200: Prestación de servicios profesionales y de apoyo a la gestión, o para la ejecución de trabajos artísticos que sólo puedan encomendarse a determinadas personas naturales; | H200: Prestar servicios de apoyo en las actividades de seguridad y convivencia ciudadana, de acuerdo con las necesidades y estrategias emanadas por el área de seguridad y convivencia de la Alcaldía Local de Fontibón | I200: Inversión | J200: Bogotá Mejor para Todos | K200: 19 | L200: =IF(ISERROR(VLOOKUP(K200,Eje_Pilar_Prop!$C$2:$E$104,2,FALSE))," ",VLOOKUP(K200,Eje_Pilar_Prop!$C$2:$E$104,2,FALSE)) -> Seguridad y convivencia para todos | M200: =IF(ISERROR(VLOOKUP(K200,Eje_Pilar_Prop!$C$2:$E$104,3,FALSE))," ",VLOOKUP(K200,Eje_Pilar_Prop!$C$2:$E$104,3,FALSE)) -> Pilar 3 Construcción de Comunidad y Cultura Ciudadana | N200: 1467 | O200: 79127015 | P200: WILLIAM MORENO RICON | Q200: 2867489 | T200: 0 | U200: 0 | V200: =+Q200+S200+U200 -> 2867489 | W200: 0 | X200: 2020-11-01 | Y200: 2020-11-12 | Z200: 2020-12-31 | AA200: 49 | AB200: 0 | AC200: 0 | AJ200: X | AL200: 0
A201: 196 | B201: 2020 | C201: SECOP II | D201: FDLF-CD-196-2020 | E201: Contratos de prestación de servicios | F201: Contratación Directa | G201: Prestación de servicios profesionales y de apoyo a la gestión, o para la ejecución de trabajos artísticos que sólo puedan encomendarse a determinadas personas naturales; | H201: Prestar servicios de apoyo en las actividades de seguridad y convivencia ciudadana, de acuerdo con las necesidades y estrategias emanadas por el área de seguridad y convivencia de la Alcaldía Local de Fontibón. | I201: Inversión | J201: Bogotá Mejor para Todos | K201: 19 | L201: =IF(ISERROR(VLOOKUP(K201,Eje_Pilar_Prop!$C$2:$E$104,2,FALSE))," ",VLOOKUP(K201,Eje_Pilar_Prop!$C$2:$E$104,2,FALSE)) -> Seguridad y convivencia para todos | M201: =IF(ISERROR(VLOOKUP(K201,Eje_Pilar_Prop!$C$2:$E$104,3,FALSE))," ",VLOOKUP(K201,Eje_Pilar_Prop!$C$2:$E$104,3,FALSE)) -> Pilar 3 Construcción de Comunidad y Cultura Ciudadana | N201: 1467 | O201: 1016028460 | P201: sergio fernando florez barrera | Q201: 2867489 | T201: 0 | U201: 0 | V201: 2867489 | W201: 1111883 | X201: 2020-11-11 | Y201: 2020-11-12 | Z201: 2020-12-31 | AA201: 49 | AB201: 0 | AC201: 0 | AJ201: X | AL201: 0.3877549312
A202: 197 | B202: 2020 | C202: SECOP II | D202: FDLF-CD-197-2020 | E202: Contratos de prestación de servicios | F202: Contratación Directa | G202: Prestación de servicios profesionales y de apoyo a la gestión, o para la ejecución de trabajos artísticos que sólo puedan encomendarse a determinadas personas naturales; | H202: Prestar servicios de apoyo en las actividades de seguridad y convivencia ciudadana, de acuerdo con las necesidades y estrategias emanadas por el área de seguridad y convivencia de la Alcaldía Local de Fontibón. | I202: Inversión | J202: Bogotá Mejor para Todos | K202: 19 | L202: =IF(ISERROR(VLOOKUP(K202,Eje_Pilar_Prop!$C$2:$E$104,2,FALSE))," ",VLOOKUP(K202,Eje_Pilar_Prop!$C$2:$E$104,2,FALSE)) -> Seguridad y convivencia para todos | M202: =IF(ISERROR(VLOOKUP(K202,Eje_Pilar_Prop!$C$2:$E$104,3,FALSE))," ",VLOOKUP(K202,Eje_Pilar_Prop!$C$2:$E$104,3,FALSE)) -> Pilar 3 Construcción de Comunidad y Cultura Ciudadana | N202: 1467 | O202: 80418976 | P202: JULIO CESAR MUÑOZ OLMOS | Q202: 2223767 | T202: 0 | U202: 0 | V202: 2223767 | W202: 0 | X202: 2020-11-12 | Y202: 2020-11-23 | Z202: 2020-12-31 | AA202: 38 | AB202: 0 | AC202: 0 | AJ202: X | AL202: 0
... 86 more rows

Sheet Instructivo
B2: INSTRUCTIVO
B3: Recomendamos leer cuidadosamente y poner en práctica las instrucciones que se explican en este instructivo. De la calidad de la información que se registre, depende en gran medida la calidad del informe de rendición de cuentas de la Gestión Contractual que presenta el Alcalde Mayor, consolidado por la Veeduría Distrital.
B4: La base en Excel a diligenciar es inmodificable, debe utilizar versión Excel 2010 o posteriores, la versión 2007 no habilita los macros. La base no permite que se incluyan columnas con otro tipo de información que la Veeduría Distrital no está solicitando o que se cambie el formato de celda establecido. Tenga en cuenta que algunas celdas están bloqueadas y/o solo permiten el registro de una información determinada.
B5: La información que se registre en la base, debe coincidir con los reportes realizados en PREDIS y en el SECOP
B6: Diligencie la totalidad de celdas.
B7: Para insertar una o varias filas, haga click en el opción Insertar Filas y digite el número de filas a insertar. Si usted no sigue este procedimiento las filas que inserte no tomaran el formato de las filas anteriores. Se recomienda que antes de iniciar el registro de información inserte las filas que requiere, sin embargo en cualquier momento que necesite puede hacer este paso.
B8: Si requiere inserte una o varias filas realícelo después de la fila A14 y antes de la fila de Totales para que tomen el formato de las filas anteriores.
B9: Si necesita pegar información debe hacerlo por secciones debido a que hay columnas formuladas que están protegidas (como la columna J, K, T y AK) que no permiten realizar esta opción. Utilice la opción de pegado especial valores para no borrar las listas desplegables ni los formatos de las columnas.
B10: Si al pegar quedan textos en rojo, verifique y ajuste la información, el dato que adiciono no se encuentra en la lista desplegable o no corresponde con el criterio definido en el columna.
B11: En primer lugar diligencie toda la información correspondiente a los contratos suscritos con cargo a la vigencia 2020.
B12: Una vez incluidos todos los contratos de la vigencia 2020, a continuación diligencie el formato completo con la información correspondiente a las adiciones efectuadas con cargo a la vigencia 2020 de contratos suscritos en vigencias anteriores. La información general del contrato como: modalidad de selección, tipología contractual, objeto, entre otros, debe corresponder a la información del contrato adicionado o modificado. Respecto al valor solo se diligencia el valor en la columna adición, es decir la columna de valor inicial debe quedar en blanco. No olvide registrar el número de adiciones realizadas, en la columna correspondiente.
B13: En caso de haber realizado apropiaciones presupuestales en la vigencia a través de resoluciones, caja menor, honorarios ediles, servicios públicos, debe relacionar dicha información en una sola fila al final de la base, indicando de que se trata la apropiación y número de proyecto si hay lugar a ello. En el tipo de contrato se registra Otros gastos.
B15: ENCABEZADO DEL FORMATO
B16: 1 | C16: Entidad | D16: Indique el nombre completo de la Entidad.
B17: 2 | C17: Sector | D17: Seleccione el sector al cual pertenece la Entidad.
B18: 3 | C18: Presupuesto Disponible Inversión Directa | D18: Indique el valor total del presupuesto disponible de inversión directa, de acuerdo con el PREDIS, a 31 de diciembre de 2020.
B19: 4 | C19: Presupuesto Comprometido de Inversión Directa | D19: Escriba el valor total del presupuesto comprometido de inversión directa, de acuerdo con el PREDIS a 31 de diciembre de 2020.
B20: 5 | C20: Presupuesto Disponible Funcionamiento | D20: Indique el valor total del presupuesto de funcionamiento disponible, de acuerdo con el PREDIS a 31 de diciembre de 2020.
B21: 6 | C21: Presupuesto Comprometido funcionamiento | D21: Escriba el monto del presupuesto de funcionamiento, comprometido mediante contratos, de acuerdo con el PREDIS a 31 de diciembre de 2020.
B22: 7 | C22: Presupuesto Disponible Operación | D22: Coloque el monto del presupuesto de operación disponible, de acuerdo con el PREDIS, a 31 de diciembre de 2020. Los gastos de operación corresponden solamente a aquellas entidades de régimen de contratación privado.
B23: 8 | C23: Presupuesto Comprometido operación mediante contratos | D23: Escriba el monto del presupuesto de operación comprometido mediante contratos a 31 de diciembre de 2020.
B24: 9 | C24: Nombre de quien diligencia el formato: | D24: Indique el nombre completo, cargo, número de teléfono con extensión y correo electrónico del profesional que diligencia el formato y que posteriormente realizará los ajustes y aclaraciones a que haya lugar por solicitud de la Veeduría Distrital.
B26: 1- INFORMACIÓN GENERAL
B27: 1 | C27: Número de Contrato | D27: En estricto orden consecutivo registre el número del contrato, sin incluir los contratos que fueron anulados ni comodatos.
D28: Una vez terminado el registro de los contratos con cargo a la vigencia 2020, en las siguientes filas registre la información correspondiente a las adiciones efectuadas con cargo a la vigencia 2020 de contratos suscritos en vigencias anteriores, especificando el año de suscripción en la columna dos.
B29: 2 | C29: Año | D29: Registre el año de celebración del contrato.
B30: 3 | C30: Proceso Publicado | D30: Seleccione el aplicativo donde se publicó el proceso (SECOP I / SECOP II)
C31: Número de proceso en el SECOP | D31: Relacione el número de proceso con el cual se encuentra publicado el contrato en el SECOP. Ejemplo IDU-CMA-DTDP-240-2020
B32: 4 | C32: Tipo de Contrato | D32: En esta columna seleccione de la lista el tipo de contrato que corresponde al contrato suscrito. El formato no permite incluir tipo de contratos diferentes a los señaladas en la lista desplegable.
D33: Para las adiciones a contratos de años anteriores se debe diligenciar el tipo del contrato adicionado o modificado.
B34: 4 | C34: Obra | D34: Son contratos de obra los que celebren las entidades estatales para la construcción, mantenimiento, instalación y, en general, para la realización de cualquier otro trabajo material sobre bienes inmuebles, cualquiera que sea la modalidad de ejecución y pago. Numeral 1 del Artículo 32 de la Ley 80 de 1993.
C35: Consultoría | D35: Aquellos que celebran las entidades estatales, referidos a los estudios necesarios para la ejecución de proyectos de inversión, de diagnósticos, prefactibilidad o factibilidad para programas o proyectos específicos, así como a las asesorías técnicas de coordinación, control y supervisión. Numeral 2 del Artículo 32 de la Ley 80 de 1993.
C36: Interventoría | D36: Son también contratos de consultoría los que tienen por objeto la Interventoría, asesoría, gerencia de obras o de proyectos, dirección, programación y la ejecución de diseños, planos, anteproyectos y proyectos. Numeral 2 del Artículo 32 de la Ley 80 de 1993.
D37: El contrato de Interventoría tiene por objeto la supervisión, seguimiento y vigilancia a la ejecución material de un contrato principal.
C38: Contrato de Prestación de servicios | D38: Son contratos de prestación de servicios los que celebren las entidades estatales para desarrollar actividades relacionadas con la administración o funcionamiento de la entidad. Numeral 3 del Artículo 32 de la Ley 80 de 1993.
C39: Contrato de Prestación de servicios profesionales y de apoyo a la gestión | D39: Corresponden a aquellos de naturaleza intelectual diferentes a los de consultoría que se derivan del cumplimiento de las funciones de la entidad estatal; así como los relacionados con actividades operativas, logísticas, o asistenciales. Art. 2.2.1.2.1.4.9, Decreto 1082 de 2015
C40: Compraventa de bienes muebles | D40: Son aquellos contratos donde se transfiere el dominio de un bien mueble (aquellos susceptibles de ser trasladadas de un lugar a otro sin alterar ni su forma ni su esencia, tal es el caso del mobiliario y equipo de oficina, maquinaria, automóviles, etc.), cuya ejecución se agota de manera instantánea. Artículo 660, Código Civil.
C41: Compraventa de bienes inmuebles | D41: Son aquellos contratos donde se transfiere el dominio de un bien inmueble (todos aquellos bienes considerados bienes raíces, por tener de común la circunstancia de estar íntimamente ligados al suelo, unidos de modo inseparable, física o jurídicamente, al terreno). Artículo 656, Código Civil.
C42: Arrendamiento de bienes muebles | D42: Es un contrato que tiene por objeto, conceder el uso y goce de un bien mueble a cambio de un precio determinado. Artículo 1974 Código Civil.
C43: Arrendamiento de bienes inmuebles | D43: Es un contrato que tiene por objeto, conceder el uso y goce de un bien inmueble a cambio de un precio determinado. Artículo 2.2.1.2.1.4.11 Decreto 1082 de 2015
C44: Seguros | D44: El seguro es un contrato, en virtud del cual una persona jurídica llamada asegurador, asume, a cambio de una prima, un riesgo que le es trasladado por una persona natural o jurídica llamado tomador y en el cual éste tiene un interés asegurable, con el fin de indemnizarlo, en el evento de que ocurra la realización del riesgo amparado. de conformidad con el Título V, del Libro Cuarto del Código de Comercio
C45: Suministro | D45: El suministro es el contrato por el cual una parte se obliga, a cambio de una contraprestación, a cumplir en favor de otra, en forma independiente, prestaciones periódicas o continuadas de cosas o servicios. Artículo 968, Código de Comercio
C46: Empréstitos | D46: Son contratos de empréstito los que tienen por objeto proveer a la entidad estatal contratante de recursos en moneda nacional o extranjera con plazo para su pago. Artículo 7, Decreto 2681 de 1996.
C47: Fiducia mercantil o encargo fiduciario | D47: Son contratos que tienen por objeto la administración o el manejo de los recursos vinculados a los contratos que tales entidades celebren. Numeral 5 de Articulo 32 de la Ley 80 de 1993.
C48: Concesión | D48: Este contrato tiene por objeto otorgar a una persona llamada CONCESIONARIO la prestación, operación, explotación, organización o gestión, total o parcial, de un servicio público, o la construcción, explotación o conservación total o parcial, de una obra o bien destinados al servicio o uso público, así como todas aquellas actividades necesarias para la adecuada prestación o funcionamiento de la obra o servicio por cuenta y riesgo del CONCESIONARIO, y bajo la vigilancia y control de la entidad concedente, a cambio de una remuneración que puede consistir en derechos, tarifas, tasas, valorización, o en la participación que se le otorgue en la explotación del bien, obra o servicio, o en una suma periódica, única o porcentual, y en general, en cualquier otra modalidad de contraprestación que las partes acuerden. Numeral 4 del Artículo 32 de la Ley 80 de 1993
C49: Convenios de cooperación | D49: Son aquellos mediante los cuales se formaliza la asistencia, ayuda, auxilio, soporte o colaboración entre entidades de una misma nación, de distintos países o por parte de organizaciones internacionales de naturaleza pública o privada a favor de entidades públicas. Artículo 20 de la ley 1150
C50: Convenios/Contratos interadministrativos | D50: El convenio interadministrativo es el negocio jurídico en el cual están presentes dos entidades públicas en desarrollo de relaciones interadministrativas cuyo objeto es coordinar, cooperar, colaborar o distribuir competencias en la realización de funciones administrativas de interés común a los sujetos negóciales. Artículo 95 de la ley 489 de 1998.
C51: Convenios de Apoyo y/o Convenios de Asociación | D51: Los contratos que en desarrollo de lo dispuesto en el segundo inciso del artículo 355 de la Constitución Política celebren la Nación, los Departamentos, Distritos y Municipios con entidades privadas sin ánimo de lucro y de reconocida idoneidad, con el propósito de impulsar programas y actividades de interés público. Reglamentado mediante Decreto 92 de 2017
C52: Asociaciones Público Privadas | D52: Los contratos con personas naturales o jurídicas que se celebran en desarrollo de lo dispuesto en el Decreto 1508 de 2012.
C53: Otros | D53: Los demás tipos de contratos que no se encuentren definidos en las anteriores tipologías.
C54: Otros gastos | D54: Incluye los gastos no contractuales, estos se registran al final de la base, no cuentan con número de contrato, tipo, proceso o modalidad. Estos gastos en los que no media un acuerdo de voluntades, en caso de ser del rubro de inversiòn, se deben discriminar por programa y proyecto. En el caso de ser del rubro de funcionamiento no requieren ser discriminados.
B55: 5 | C55: Modalidad de Selección | D55: Al ubicarse en la celda, se despliega una lista de modalidades de selección, de las cuales debe seleccionar la indicada. El formato no permite incluir modalidades diferentes a las señaladas en la lista desplegable.
D56: Para las adiciones a contratos de años anteriores se debe diligenciar la modalidad de selección del contrato adicionado o modificado
D57: La modalidad régimen especial se refiere a todos los contratos realizados en cumplimiento del Decreto 092 de 2017, convenios de asociaciòn con ESAL. Regimen Privado es para todas aquellas entidades, que no se rigen por el Estatuto General de Contrataciòn, para el caso, en estas entidades todos sus contratos deben ser identificados con esta modalidad.
B58: 6 | C58: Procedimiento o causal | D58: Esta columna solo se habilita y debe ser diligenciada, para las modalidades de selección abreviada y contratación directa. Al ubicarse en la celda, se despliega una lista de procedimientos o causales, de las cuales debe seleccionar la indicada. El formato no permite incluir procedimientos o causales diferentes a las señaladas en la lista desplegable.
B59: 7 | C59: Objeto | D59: Registre el objeto del contrato.
B60: 8 | C60: Afectación | D60: Registre la afectación según la clasificación de cuentas del presupuesto de gastos. Funcionamiento, Inversión y Operación, esta última aplica únicamente para entidades de régimen privado. La celda solamente permite registrar estas tres opciones.
C61: Planes de Desarrollo Distrital | D61: Seleccionar el PDD de acuerdo con los diferentes contratos suscritos, automáticamente en la columna K se activan los números de programa de acuerdo al PDD escogido.
C62: Número Programa | D62: Si en la columna anterior “Afectación”, indicó funcionamiento u operación deje en blanco el número de programa, es decir esta columna solamente aplica para gastos de Inversión.
D63: Identifíquelo de acuerdo con el código presupuestal de los Planes de Desarrollo "Bogotá Mejor Para Todos" o "Un Nuevo Contrato Social y Ambiental para la Bogotá del Siglo XXI". Si un mismo contrato afecta más de un código presupuestal discrimine el contrato por cada código que afecte en filas separadas. Si se registra el número del programa, automáticamente en la columna L y M se despliega el nombre del programa y el eje, pilar o propósito según corresponda.
B64: 9 | C64: Número Proyecto | D64: Indique el código presupuestal con el que se identifica el proyecto. Si un mismo contrato afecta más de un proyecto, discriminar el contrato por cada proyecto que afecte en filas separadas.
B65: 10 | C65: Número de Identificación del contratista | D65: Indicar el número de identificación del contratista persona natural o jurídica con quien se suscribió el contrato, con digito de verificación (DV), el formato de celda no permite guiones, comas, solo números.
C66: Nombre del Contratista | D66: Indicar el nombre del contratista, persona natural o jurídica.
B68: 2- INFORMACIÓN FINANCIERA
B69: 11 | C69: Valor Inicial | D69: Registre el valor inicial del contrato con cargo a la vigencia 2020, el formato de celda no permite guiones, comas o texto. Esta columna solo debe contener información numérica.
D70: En el caso de adiciones a contratos de años anteriores, no diligencie esta columna, solamente la columna 15 "Valor Total Adiciones"
D71: Excluya las reservas de apropiación y cuentas por pagar.
B72: 12 | C72: Número de reducciones | D72: Diligencie esta columna solo en el caso de reducciones, reintegros, liberaciones, saldos a favor o cualquier factor que disminuya el valor de los contratos con cargo a la vigencia.
D73: Registre en esta celda la cantidad de reducciones que se realizaron al contrato.
B74: 13 | C74: Valor total reducciones (En valor negativo) | D74: Registre el valor total de las reducciones que se realizaron al contrato, el formato de celda no permite comas o texto. Esta columna solo debe contener información numérica.
B75: 14 | C75: Número de adiciones | D75: Diligencie esta columna solo en el caso de adiciones al valor inicial que aumenten el valor del contrato con cargo a la vigencia.
D76: Registre en esta celda el número de adiciones que se realizaron al contrato.
B77: 15 | C77: Valor total de adiciones | D77: Registre el valor total de las adiciones que se realizaron al contrato, el formato de celda no permite guiones, , comas o texto. Esta columna solo debe contener información numérica.
B78: 16 | C78: Valor Final | D78: Esta columna se encuentra formulada y bloqueada, sí el valor final no coincide, es porque están mal diligenciadas las columnas valor inicial, valor de reducciones y/o valor de adiciones. En tal caso se debe verificar dicha información.
D79: La sumatoria de la columna 16 (valor final) para los contratos de Inversión Directa, de funcionamiento y/o operación, cuando aplique, deberán coincidir con el valor del rubro registrado en el encabezado 4, Presupuesto comprometido de inversión según PREDIS, con el encabezado 6, Presupuesto Comprometido Funcionamiento según PREDIS y con el encabezado 8, Presupuesto Comprometido Operación mediante contratos, respectivamente. A la vez, estos valores deben coincidir con los informes de ejecución presupuestal del PREDIS.
D80: Si los valores no coinciden debe especificarse al final del formato en qué está representada la diferencia Otros gastos(discriminando los conceptos por Programa y Proyecto de inversión, si es el caso), con sus respectivos valores.
D81: Las bases donde dichos valores no coincidan serán devueltas por la Veeduría Distrital a cada entidad para los respectivos ajustes.
B82: 17 | C82: Giros | D82: Registre el valor total de los giros que se realizaron al contrato, el formato de celda no permite guiones, comas o texto. Esta columna solo debe contener información numérica.
B84: 3- PLAZOS
B85: 18 | C85: Fecha de Suscripción | D85: Relacionar la fecha en que se suscribió el contrato original. La celda solo admite el formato Día/Mes/Año así 17/02/2020.
D86: Para las adiciones a contratos de años anteriores se debe registrar en esta columna la fecha de suscripción de la adición en la vigencia 2020.
B87: 19 | C87: Fecha de inicio | D87: Indicar la fecha de inicio del contrato. Para las adiciones a contratos de años anteriores se debe diligenciar la fecha de inicio de la adición en la vigencia 2020. La celda solo admite el formato Día/Mes/Año así 13/03/2020.
B88: 20 | C88: Fecha de terminación | D88: Indicar la fecha efectiva de terminación del contrato. La celda solo admite el formato Día/Mes/Año así 15/02/2020.
B89: 21 | C89: Plazo en días | D89: Esta columna contiene el plazo inicial del contrato con el número total de días a ejecutar (sólo número de días, no mes, no texto).
B90: 22 | C90: Número de prórrogas | D90: Registre en esta celda el número de prórrogas que se realizaron al contrato en la vigencia 2020.
B91: 23 | C91: Prórroga en días | D91: En caso de presentarse este evento, indicar en días, el tiempo por el cual se prorrogó el contrato a partir de la fecha inicial de terminación (sólo número de días, no mes, no texto).
B93: 4- CESIÓN
B94: 24 | C94: Número de Identificación del cesionario (NIT con digito de verificación) | D94: Indicar el número de identificación del cesionario persona natural o jurídica con quien se suscribió la cesión, con digito de verificación (DV), el formato de celda no permite guiones o comas, solo números. Si hay más de una cesión adicione una fila y registre número de contrato, año, número proceso contractual SECOP y demás información que corresponda.
B95: 25 | C95: Nombre cesionario | D95: Indicar el nombre del cesionario, persona natural o jurídica.
B96: 26 | C96: Fecha cesión | D96: Relacionar la fecha en que se suscribió la cesión del contrato. La celda solo admite el formato Día/Mes/Año así 17/02/2020.
B97: 27 | C97: Valor cesión | D97: Registre el valor correspondiente a la cesión con cargo a la vigencia 2020, el formato de celda no permite guiones, comas o texto. Esta columna solo debe contener información numérica.
B99: 5- ESTADO A 31 DE DICIEMBRE DE 2020
B100: 28 | C100: Estado | D100: Marque con una X en la respectiva columna si el contrato se encuentra Celebrado o por Iniciar, En Ejecución, Terminado o Liquidado.
B102: 5- PORCENTAJE DE AVANCE Y/O CUMPLIMIENTO
B103: 29 | C103: % Avance y/o cumplimiento | D103: Indica el porcentaje de avance o de cumplimiento en términos presupuestales, es decir lo efectivamente pagado al contratista. Si no se ha iniciado la ejecución, el % de avance es 0%. La celda se encuentra formulada y protegida. Es la relación entre el valor de los giros y el valor final del contrato. Si el porcentaje de avance no coincide, se debe revisar los valores que se registraron en estas columnas. Este porcentaje no debe ser superior al 100%

Sheet Tipo (hidden)
B1: Tipo | C1: Modalidad de Selección | D1: afectacion
A2: 1 | B2: Obra pública | C2: Concurso de méritos | D2: Funcionamiento
A3: 2 | B3: Consultoría | C3: Contratación directa | D3: Inversión
A4: 3 | B4: Interventoría | C4: Contratación mínima cuantia | D4: Operación
A5: 4 | B5: Contratos de prestación de servicios | C5: Selección abreviada
A6: 5 | B6: Contratos de prestación de servicios profesionales y de apoyo a la gestión | C6: Licitación pública
A7: 6 | B7: Compraventa de bienes muebles | C7: Régimen privado
A8: 7 | B8: Compraventa de bienes inmuebles | C8: Régimen especial
A9: 8 | B9: Arrendamiento de bienes muebles
A10: 9 | B10: Arrendamiento de bienes inmuebles
A11: 10 | B11: Seguros | C11: Selección abreviada
A12: 11 | B12: Suministro | C12: Subasta inversa
A13: 12 | B13: Empréstitos | C13: Bolsas de productos
A14: 13 | B14: Fiducia mercantil o encargo fiduciario | C14: Acuerdo marco de precios
A15: 14 | B15: Concesión | C15: Selección abreviada por menor cuantía
A16: 15 | B16: Convenios de cooperacion
A17: 16 | B17: Contratos interadministrativos | C17: contratacion directa
A18: 17 | B18: Convenios de apoyo y/o convenios de asociación | C18: Urgencia manifiesta
A19: 18 | B19: Asociaciones público privadas | C19: Contratación de empréstitos
A20: 19 | B20: Otros | C20: Contratos interadministrativos
A21: 20 | B21: Otros gastos | C21: Contratación de bienes y servicios en el sector Defensa y en el Departamento Administrativo de Seguridad, DAS
B22: SECTOR | C22: Contratos para el desarrollo de actividades científicas y tecnológicas
A23: 1 | B23: Gestión Pública | C23: Contratos de encargo fiduciario que celebren las entidades territoriales cuando inician el Acuerdo de Reestructuración de Pasivos
A24: =+A23+1 -> 2 | B24: Gobierno | C24: Cuando no exista pluralidad de oferentes en el mercado
A25: =+A24+1 -> 3 | B25: Hacienda | C25: Prestación de servicios profesionales y de apoyo a la gestión, o para la ejecución de trabajos artísticos que sólo puedan encomendarse a determinadas personas naturales;
A26: 4 | B26: Planeación | C26: El arrendamiento o adquisición de inmuebles
A27: 5 | B27: Desarrollo Económico, Industria y Turismo | C27: Contratación de bienes y servicios de la Dirección Nacional de Inteligencia (DNI)
A28: 6 | B28: Educación
A29: 7 | B29: Salud
A30: 8 | B30: Integración Social | C30: Decreto 92 de 2017
A31: 9 | B31: Cultura, Recreación y Deporte | C31: No aplica
A32: 10 | B32: Ambiente
A33: 11 | B33: Movilidad | C33: SECOP I
A34: 12 | B34: Hábitat | C34: SECOP II
A35: 13 | B35: Mujeres
A36: 14 | B36: Seguridad, Convivencia y Justicia | C36: Bogotá Mejor para Todos
A37: 15 | B37: Gestión Juridíca | C37: Un Nuevo Contrato Social y Ambiental para la Bogotá del Siglo XXI
A38: 16 | B38: descentralizado territorialmente
B40: 16 - AL

Sheet Eje_Pilar_Prop
B2: PDD | C2: No. Programa | D2: Programa | E2: Pilar /Eje / propósito
B3: Bogotá Mejor para Todos | C3: 1 | D3: Prevención y atención de la maternidad y la paternidad tempranas | E3: Pilar 1 Igualdad de Calidad de Vida
B4: Bogotá Mejor para Todos | C4: 2 | D4: Desarrollo integral desde la gestación hasta la adolescencia | E4: Pilar 1 Igualdad de Calidad de Vida
B5: Bogotá Mejor para Todos | C5: 3 | D5: Igualdad y autonomía para una Bogotá incluyente | E5: Pilar 1 Igualdad de Calidad de Vida
B6: Bogotá Mejor para Todos | C6: 4 | D6: Familias protegidas y adaptadas al cambio climático | E6: Pilar 1 Igualdad de Calidad de Vida
B7: Bogotá Mejor para Todos | C7: 5 | D7: Desarrollo integral para la felicidad y el ejercicio de la ciudadanía | E7: Pilar 1 Igualdad de Calidad de Vida
B8: Bogotá Mejor para Todos | C8: 6 | D8: Calidad educativa para todos | E8: Pilar 1 Igualdad de Calidad de Vida
B9: Bogotá Mejor para Todos | C9: 7 | D9: Inclusión educativa para la equidad | E9: Pilar 1 Igualdad de Calidad de Vida
B10: Bogotá Mejor para Todos | C10: 8 | D10: Acceso con calidad a la educación superior | E10: Pilar 1 Igualdad de Calidad de Vida
B11: Bogotá Mejor para Todos | C11: 9 | D11: Atención integral y eficiente en salud | E11: Pilar 1 Igualdad de Calidad de Vida
B12: Bogotá Mejor para Todos | C12: 10 | D12: Modernización de la infraestructura física y tecnológica en salud | E12: Pilar 1 Igualdad de Calidad de Vida
B13: Bogotá Mejor para Todos | C13: 11 | D13: Mejores oportunidades para el desarrollo a través de la cultura, la recreación y el deporte | E13: Pilar 1 Igualdad de Calidad de Vida
B14: Bogotá Mejor para Todos | C14: 12 | D14: Mujeres protagonistas, activas y empoderadas en el cierre de brechas de género | E14: Pilar 1 Igualdad de Calidad de Vida
B15: Bogotá Mejor para Todos | C15: 13 | D15: Infraestructura para el desarrollo del hábitat | E15: Pilar 2 Democracía Urbana
B16: Bogotá Mejor para Todos | C16: 14 | D16: Intervenciones integrales del hábitat | E16: Pilar 2 Democracía Urbana
B17: Bogotá Mejor para Todos | C17: 15 | D17: Recuperación, incorporación, vida urbana y control de la ilegalidad | E17: Pilar 2 Democracía Urbana
B18: Bogotá Mejor para Todos | C18: 16 | D18: Integración social para una ciudad de oportunidades | E18: Pilar 2 Democracía Urbana
B19: Bogotá Mejor para Todos | C19: 17 | D19: Espacio público, derecho de todos | E19: Pilar 2 Democracía Urbana
B20: Bogotá Mejor para Todos | C20: 18 | D20: Mejor movilidad para todos | E20: Pilar 2 Democracía Urbana
B21: Bogotá Mejor para Todos | C21: 19 | D21: Seguridad y convivencia para todos | E21: Pilar 3 Construcción de Comunidad y Cultura Ciudadana
B22: Bogotá Mejor para Todos | C22: 20 | D22: Fortalecimiento del Sistema de Protección Integral a Mujeres Víctimas de Violencia - SOFIA | E22: Pilar 3 Construcción de Comunidad y Cultura Ciudadana
B23: Bogotá Mejor para Todos | C23: 21 | D23: Justicia para todos: consolidación del Sistema Distrital de Justicia | E23: Pilar 3 Construcción de Comunidad y Cultura Ciudadana
B24: Bogotá Mejor para Todos | C24: 22 | D24: Bogotá vive los derechos humanos | E24: Pilar 3 Construcción de Comunidad y Cultura Ciudadana
B25: Bogotá Mejor para Todos | C25: 23 | D25: Bogotá mejor para las víctimas, la paz y la reconciliación | E25: Pilar 3 Construcción de Comunidad y Cultura Ciudadana
B26: Bogotá Mejor para Todos | C26: 24 | D26: Equipo por la educación para el reencuentro, la reconciliación y la paz | E26: Pilar 3 Construcción de Comunidad y Cultura Ciudadana
B27: Bogotá Mejor para Todos | C27: 25 | D27: Cambio cultural y construcción del tejido social para la vida | E27: Pilar 3 Construcción de Comunidad y Cultura Ciudadana
B28: Bogotá Mejor para Todos | C28: 26 | D28: Información relevante e integral para la planeación territorial | E28: Eje Transversal 1 Nuevo Ordenamiento Territorial
B29: Bogotá Mejor para Todos | C29: 27 | D29: Proyectos urbanos integrales con visión de ciudad | E29: Eje Transversal 1 Nuevo Ordenamiento Territorial
B30: Bogotá Mejor para Todos | C30: 28 | D30: Suelo para reducir el déficit habitacional de suelo urbanizable, vivienda y soportes urbanos | E30: Eje Transversal 1 Nuevo Ordenamiento Territorial
B31: Bogotá Mejor para Todos | C31: 29 | D31: Articulación regional y planeación integral del transporte | E31: Eje Transversal 1 Nuevo Ordenamiento Territorial
B32: Bogotá Mejor para Todos | C32: 30 | D32: Financiación para el Desarrollo Territorial | E32: Eje Transversal 1 Nuevo Ordenamiento Territorial
B33: Bogotá Mejor para Todos | C33: 31 | D33: Fundamentar el desarrollo económico en la generación y uso del conocimiento para mejorar la competitividad de la Ciudad Región | E33: Eje Transversal 2 Desarrollo Económico basado en el conocimiento
B34: Bogotá Mejor para Todos | C34: 32 | D34: Generar alternativas de ingreso y empleo de mejor calidad | E34: Eje Transversal 2 Desarrollo Económico basado en el conocimiento
B35: Bogotá Mejor para Todos | C35: 33 | D35: Elevar la eficiencia de los mercados de la ciudad | E35: Eje Transversal 2 Desarrollo Económico basado en el conocimiento
B36: Bogotá Mejor para Todos | C36: 34 | D36: Mejorar y fortalecer el recaudo tributario de la ciudad e impulsar el uso de mecanismos de vinculación de capital privado | E36: Eje Transversal 2 Desarrollo Económico basado en el conocimiento
B37: Bogotá Mejor para Todos | C37: 35 | D37: Bogotá, ciudad inteligente | E37: Eje Transversal 2 Desarrollo Económico basado en el conocimiento
B38: Bogotá Mejor para Todos | C38: 36 | D38: Bogotá, una ciudad digital | E38: Eje Transversal 2 Desarrollo Económico basado en el conocimiento
B39: Bogotá Mejor para Todos | C39: 37 | D39: Consolidar el turismo como factor de desarrollo, confianza y felicidad para Bogotá Región | E39: Eje Transversal 2 Desarrollo Económico basado en el conocimiento
B40: Bogotá Mejor para Todos | C40: 38 | D40: Recuperación y manejo de la Estructura Ecológica Principal | E40: Eje Transversal 3 Sostenibilidad Ambiental basada en la eficiencia energética
B41: Bogotá Mejor para Todos | C41: 39 | D41: Ambiente sano para la equidad y disfrute del ciudadano | E41: Eje Transversal 3 Sostenibilidad Ambiental basada en la eficiencia energética
B42: Bogotá Mejor para Todos | C42: 40 | D42: Gestión de la huella ambiental urbana | E42: Eje Transversal 3 Sostenibilidad Ambiental basada en la eficiencia energética
B43: Bogotá Mejor para Todos | C43: 41 | D43: Desarrollo rural sostenible | E43: Eje Transversal 3 Sostenibilidad Ambiental basada en la eficiencia energética
B44: Bogotá Mejor para Todos | C44: 42 | D44: Transparencia, gestión pública y servicio a la ciudadanía | E44: Eje Transversal 4 Gobierno Legitimo, Fortalecimiento Local y Eficiencia
B45: Bogotá Mejor para Todos | C45: 43 | D45: Modernización institucional | E45: Eje Transversal 4 Gobierno Legitimo, Fortalecimiento Local y Eficiencia
B46: Bogotá Mejor para Todos | C46: 44 | D46: Gobierno y ciudadanía digital | E46: Eje Transversal 4 Gobierno Legitimo, Fortalecimiento Local y Eficiencia
B47: Bogotá Mejor para Todos | C47: 45 | D47: Gobernanza e influencia local, regional e internacional | E47: Eje Transversal 4 Gobierno Legitimo, Fortalecimiento Local y Eficiencia
A48: Acuerdo 761 2020 | B48: Un Nuevo Contrato Social y Ambiental para la Bogotá del Siglo XXI | C48: 1. | D48: Subsidios y transferencias para la equidad | E48: Propósito 1: Hacer un nuevo contrato social para incrementar la inclusión social, productiva y política
A49: Pag. 51 | B49: Un Nuevo Contrato Social y Ambiental para la Bogotá del Siglo XXI | C49: 2. | D49: Igualdad de oportunidades y desarrollo de capacidades para las mujeres | E49: Propósito 1: Hacer un nuevo contrato social para incrementar la inclusión social, productiva y política
B50: Un Nuevo Contrato Social y Ambiental para la Bogotá del Siglo XXI | C50: 3. | D50: Movilidad social integral | E50: Propósito 1: Hacer un nuevo contrato social para incrementar la inclusión social, productiva y política
B51: Un Nuevo Contrato Social y Ambiental para la Bogotá del Siglo XXI | C51: 4. | D51: Prevención de la exclusión por razones étnicas, religiosas, sociales, políticas y de orientación sexual | E51: Propósito 1: Hacer un nuevo contrato social para incrementar la inclusión social, productiva y política
B52: Un Nuevo Contrato Social y Ambiental para la Bogotá del Siglo XXI | C52: 5. | D52: Promoción de la igualdad, el desarrollo de capacidades y el reconocimiento de las mujeres | E52: Propósito 1: Hacer un nuevo contrato social para incrementar la inclusión social, productiva y política
B53: Un Nuevo Contrato Social y Ambiental para la Bogotá del Siglo XXI | C53: 6. | D53: Sistema Distrital de Cuidado | E53: Propósito 1: Hacer un nuevo contrato social para incrementar la inclusión social, productiva y política
B54: Un Nuevo Contrato Social y Ambiental para la Bogotá del Siglo XXI | C54: 7. | D54: Mejora de la gestión de instituciones de salud | E54: Propósito 1: Hacer un nuevo contrato social para incrementar la inclusión social, productiva y política
B55: Un Nuevo Contrato Social y Ambiental para la Bogotá del Siglo XXI | C55: 8. | D55: Prevención y atención de maternidad temprana | E55: Propósito 1: Hacer un nuevo contrato social para incrementar la inclusión social, productiva y política
B56: Un Nuevo Contrato Social y Ambiental para la Bogotá del Siglo XXI | C56: 9. | D56: Prevención y cambios para mejorar la salud de la población | E56: Propósito 1: Hacer un nuevo contrato social para incrementar la inclusión social, productiva y política
B57: Un Nuevo Contrato Social y Ambiental para la Bogotá del Siglo XXI | C57: 10. | D57: Salud para la vida y el bienestar | E57: Propósito 1: Hacer un nuevo contrato social para incrementar la inclusión social, productiva y política
B58: Un Nuevo Contrato Social y Ambiental para la Bogotá del Siglo XXI | C58: 11. | D58: Salud y bienestar para niñas y niños | E58: Propósito 1: Hacer un nuevo contrato social para incrementar la inclusión social, productiva y política
B59: Un Nuevo Contrato Social y Ambiental para la Bogotá del Siglo XXI | C59: 12. | D59: Educación inicial: Bases sólidas para la vida. | E59: Propósito 1: Hacer un nuevo contrato social para incrementar la inclusión social, productiva y política
B60: Un Nuevo Contrato Social y Ambiental para la Bogotá del Siglo XXI | C60: 13. | D60: Educación para todos y todas: acceso y permanencia con equidad y énfasis en educación rural | E60: Propósito 1: Hacer un nuevo contrato social para incrementar la inclusión social, productiva y política
B61: Un Nuevo Contrato Social y Ambiental para la Bogotá del Siglo XXI | C61: 14. | D61: Formación integral: más y mejor tiempo en los colegios | E61: Propósito 1: Hacer un nuevo contrato social para incrementar la inclusión social, productiva y política
B62: Un Nuevo Contrato Social y Ambiental para la Bogotá del Siglo XXI | C62: 15. | D62: Plan Distrital de Lectura, Escritura y Oralidad: "Leer para la vida" | E62: Propósito 1: Hacer un nuevo contrato social para incrementar la inclusión social, productiva y política
B63: Un Nuevo Contrato Social y Ambiental para la Bogotá del Siglo XXI | C63: 16. | D63: Transformación pedagógica y mejoramiento de la gestión educativa. Es con los maestros y maestras. | E63: Propósito 1: Hacer un nuevo contrato social para incrementar la inclusión social, productiva y política
B64: Un Nuevo Contrato Social y Ambiental para la Bogotá del Siglo XXI | C64: 17. | D64: Jóvenes con capacidades: Proyecto de vida para la ciudadanía, la innovación y el trabajo del siglo XXI | E64: Propósito 1: Hacer un nuevo contrato social para incrementar la inclusión social, productiva y política
B65: Un Nuevo Contrato Social y Ambiental para la Bogotá del Siglo XXI | C65: 18. | D65: Cierre de brechas para la inclusión productiva urbano rural | E65: Propósito 1: Hacer un nuevo contrato social para incrementar la inclusión social, productiva y política
B66: Un Nuevo Contrato Social y Ambiental para la Bogotá del Siglo XXI | C66: 19. | D66: Vivienda y entornos dignos en el territorio urbano y rural | E66: Propósito 1: Hacer un nuevo contrato social para incrementar la inclusión social, productiva y política
B67: Un Nuevo Contrato Social y Ambiental para la Bogotá del Siglo XXI | C67: 20. | D67: Bogotá, referente en cultura, deporte, recreación y actividad física, con parques para el desarrollo y la salud | E67: Propósito 1: Hacer un nuevo contrato social para incrementar la inclusión social, productiva y política
B68: Un Nuevo Contrato Social y Ambiental para la Bogotá del Siglo XXI | C68: 21. | D68: Creación y vida cotidiana: Apropiación ciudadana del arte, la cultura y el patrimonio, para la democracia cultural | E68: Propósito 1: Hacer un nuevo contrato social para incrementar la inclusión social, productiva y política
B69: Un Nuevo Contrato Social y Ambiental para la Bogotá del Siglo XXI | C69: 22. | D69: Transformación cultural para la conciencia ambiental y el cuidado de la fauna doméstica | E69: Propósito 1: Hacer un nuevo contrato social para incrementar la inclusión social, productiva y política
B70: Un Nuevo Contrato Social y Ambiental para la Bogotá del Siglo XXI | C70: 23. | D70: Bogotá rural | E70: Propósito 1: Hacer un nuevo contrato social para incrementar la inclusión social, productiva y política
B71: Un Nuevo Contrato Social y Ambiental para la Bogotá del Siglo XXI | C71: 24. | D71: Bogotá región emprendedora e innovadora | E71: Propósito 1: Hacer un nuevo contrato social para incrementar la inclusión social, productiva y política
B72: Un Nuevo Contrato Social y Ambiental para la Bogotá del Siglo XXI | C72: 25. | D72: Bogotá región productiva y competitiva | E72: Propósito 1: Hacer un nuevo contrato social para incrementar la inclusión social, productiva y política
B73: Un Nuevo Contrato Social y Ambiental para la Bogotá del Siglo XXI | C73: 26. | D73: Bogotá - región, el mejor destino para visitar | E73: Propósito 1: Hacer un nuevo contrato social para incrementar la inclusión social, productiva y política
B74: Un Nuevo Contrato Social y Ambiental para la Bogotá del Siglo XXI | C74: 27. | D74: Cambio cultural para la gestión de la crisis climática | E74: Propósito 2 : Cambiar Nuestros Hábitos de Vida para Reverdecer a Bogotá y Adaptarnos y Mitigar la Crisis Climática
B75: Un Nuevo Contrato Social y Ambiental para la Bogotá del Siglo XXI | C75: 28. | D75: Bogotá protectora de sus recursos naturales | E75: Propósito 2 : Cambiar Nuestros Hábitos de Vida para Reverdecer a Bogotá y Adaptarnos y Mitigar la Crisis Climática
B76: Un Nuevo Contrato Social y Ambiental para la Bogotá del Siglo XXI | C76: 29. | D76: Asentamientos y entornos protectores | E76: Propósito 2 : Cambiar Nuestros Hábitos de Vida para Reverdecer a Bogotá y Adaptarnos y Mitigar la Crisis Climática
B77: Un Nuevo Contrato Social y Ambiental para la Bogotá del Siglo XXI | C77: 30. | D77: Eficiencia en la atención de emergencias | E77: Propósito 2 : Cambiar Nuestros Hábitos de Vida para Reverdecer a Bogotá y Adaptarnos y Mitigar la Crisis Climática
B78: Un Nuevo Contrato Social y Ambiental para la Bogotá del Siglo XXI | C78: 31. | D78: Protección y valoración del patrimonio tangible e intangible en Bogotá y la región | E78: Propósito 2 : Cambiar Nuestros Hábitos de Vida para Reverdecer a Bogotá y Adaptarnos y Mitigar la Crisis Climática
B79: Un Nuevo Contrato Social y Ambiental para la Bogotá del Siglo XXI | C79: 32. | D79: Revitalización urbana para la competitividad | E79: Propósito 2 : Cambiar Nuestros Hábitos de Vida para Reverdecer a Bogotá y Adaptarnos y Mitigar la Crisis Climática
B80: Un Nuevo Contrato Social y Ambiental para la Bogotá del Siglo XXI | C80: 33. | D80: Más árboles y más y mejor espacio público | E80: Propósito 2 : Cambiar Nuestros Hábitos de Vida para Reverdecer a Bogotá y Adaptarnos y Mitigar la Crisis Climática
B81: Un Nuevo Contrato Social y Ambiental para la Bogotá del Siglo XXI | C81: 34. | D81: Bogotá protectora de los animales | E81: Propósito 2 : Cambiar Nuestros Hábitos de Vida para Reverdecer a Bogotá y Adaptarnos y Mitigar la Crisis Climática
B82: Un Nuevo Contrato Social y Ambiental para la Bogotá del Siglo XXI | C82: 35. | D82: Manejo y prevención de contaminación | E82: Propósito 2 : Cambiar Nuestros Hábitos de Vida para Reverdecer a Bogotá y Adaptarnos y Mitigar la Crisis Climática
B83: Un Nuevo Contrato Social y Ambiental para la Bogotá del Siglo XXI | C83: 36. | D83: Manejo y saneamiento de los cuerpos de agua | E83: Propósito 2 : Cambiar Nuestros Hábitos de Vida para Reverdecer a Bogotá y Adaptarnos y Mitigar la Crisis Climática
B84: Un Nuevo Contrato Social y Ambiental para la Bogotá del Siglo XXI | C84: 37. | D84: Provisión y mejoramiento de servicios públicos | E84: Propósito 2 : Cambiar Nuestros Hábitos de Vida para Reverdecer a Bogotá y Adaptarnos y Mitigar la Crisis Climática
B85: Un Nuevo Contrato Social y Ambiental para la Bogotá del Siglo XXI | C85: 38. | D85: Ecoeficiencia, reciclaje, manejo de residuos e inclusión de la población recicladora | E85: Propósito 2 : Cambiar Nuestros Hábitos de Vida para Reverdecer a Bogotá y Adaptarnos y Mitigar la Crisis Climática
B86: Un Nuevo Contrato Social y Ambiental para la Bogotá del Siglo XXI | C86: 39. | D86: Bogotá territorio de paz y atención integral a las víctimas del conflicto armado | E86: Propósito 3: Inspirar confianza y legitimidad para vivir sin miedo y ser epicentro de cultura ciudadana, paz y reconciliación
B87: Un Nuevo Contrato Social y Ambiental para la Bogotá del Siglo XXI | C87: 40. | D87: Más mujeres viven una vida libre de violencias, se sienten seguras y acceden con confianza al sistema de justicia | E87: Propósito 3: Inspirar confianza y legitimidad para vivir sin miedo y ser epicentro de cultura ciudadana, paz y reconciliación
B88: Un Nuevo Contrato Social y Ambiental para la Bogotá del Siglo XXI | C88: 41. | D88: Sin machismo ni violencias contra las mujeres, las niñas y los niños | E88: Propósito 3: Inspirar confianza y legitimidad para vivir sin miedo y ser epicentro de cultura ciudadana, paz y reconciliación
B89: Un Nuevo Contrato Social y Ambiental para la Bogotá del Siglo XXI | C89: 42. | D89: Conciencia y cultura ciudadana para la seguridad, la convivencia y la construcción de confianza | E89: Propósito 3: Inspirar confianza y legitimidad para vivir sin miedo y ser epicentro de cultura ciudadana, paz y reconciliación
B90: Un Nuevo Contrato Social y Ambiental para la Bogotá del Siglo XXI | C90: 43. | D90: Cultura ciudadana para la confianza, la convivencia y la participación desde la vida cotidiana | E90: Propósito 3: Inspirar confianza y legitimidad para vivir sin miedo y ser epicentro de cultura ciudadana, paz y reconciliación
B91: Un Nuevo Contrato Social y Ambiental para la Bogotá del Siglo XXI | C91: 44. | D91: Autoconciencia, respeto y cuidado en el espacio público | E91: Propósito 3: Inspirar confianza y legitimidad para vivir sin miedo y ser epicentro de cultura ciudadana, paz y reconciliación
B92: Un Nuevo Contrato Social y Ambiental para la Bogotá del Siglo XXI | C92: 45. | D92: Espacio público más seguro y construido colectivamente | E92: Propósito 3: Inspirar confianza y legitimidad para vivir sin miedo y ser epicentro de cultura ciudadana, paz y reconciliación
B93: Un Nuevo Contrato Social y Ambiental para la Bogotá del Siglo XXI | C93: 46. | D93: Atención a jóvenes y adultos infractores con impacto en su proyecto de vida | E93: Propósito 3: Inspirar confianza y legitimidad para vivir sin miedo y ser epicentro de cultura ciudadana, paz y reconciliación
B94: Un Nuevo Contrato Social y Ambiental para la Bogotá del Siglo XXI | C94: 47. | D94: Calidad de Vida y Derechos de la Población privada de la libertad | E94: Propósito 3: Inspirar confianza y legitimidad para vivir sin miedo y ser epicentro de cultura ciudadana, paz y reconciliación
B95: Un Nuevo Contrato Social y Ambiental para la Bogotá del Siglo XXI | C95: 48. | D95: Plataforma institucional para la seguridad y justicia | E95: Propósito 3: Inspirar confianza y legitimidad para vivir sin miedo y ser epicentro de cultura ciudadana, paz y reconciliación
B96: Un Nuevo Contrato Social y Ambiental para la Bogotá del Siglo XXI | C96: 49. | D96: Movilidad segura, sostenible y accesible | E96: Propósito 4: Hacer de Bogotá Región un modelo de movilidad multimodal, incluyente y sostenible
B97: Un Nuevo Contrato Social y Ambiental para la Bogotá del Siglo XXI | C97: 50. | D97: Red de metros | E97: Propósito 4: Hacer de Bogotá Región un modelo de movilidad multimodal, incluyente y sostenible
B98: Un Nuevo Contrato Social y Ambiental para la Bogotá del Siglo XXI | C98: 51. | D98: Gobierno Abierto | E98: Propósito 5: Construir Bogotá - Región con gobierno abierto, transparente y ciudadanía consciente
B99: Un Nuevo Contrato Social y Ambiental para la Bogotá del Siglo XXI | C99: 52. | D99: Integración regional, distrital y local | E99: Propósito 5: Construir Bogotá - Región con gobierno abierto, transparente y ciudadanía consciente
B100: Un Nuevo Contrato Social y Ambiental para la Bogotá del Siglo XXI | C100: 53. | D100: Información para la toma de decisiones | E100: Propósito 5: Construir Bogotá - Región con gobierno abierto, transparente y ciudadanía consciente
B101: Un Nuevo Contrato Social y Ambiental para la Bogotá del Siglo XXI | C101: 54. | D101: Transformación digital y gestión de TIC para un territorio inteligente | E101: Propósito 5: Construir Bogotá - Región con gobierno abierto, transparente y ciudadanía consciente
B102: Un Nuevo Contrato Social y Ambiental para la Bogotá del Siglo XXI | C102: 55. | D102: Fortalecimiento de cultura ciudadana y su institucionalidad | E102: Propósito 5: Construir Bogotá - Región con gobierno abierto, transparente y ciudadanía consciente
B103: Un Nuevo Contrato Social y Ambiental para la Bogotá del Siglo XXI | C103: 56. | D103: Gestión pública efectiva | E103: Propósito 5: Construir Bogotá - Región con gobierno abierto, transparente y ciudadanía consciente
B104: Un Nuevo Contrato Social y Ambiental para la Bogotá del Siglo XXI | C104: 57. | D104: Gestión pública local | E104: Propósito 5: Construir Bogotá - Región con gobierno abierto, transparente y ciudadanía consciente
